{"text_format":"1","workbook":"xlsx","n_sheets":6,"sheets":["Info","Database","L0","Geoearth","B00",">B00"],"not_rendered":{"charts":0,"images":37,"macros":1,"external_links":2,"defined_names":106,"comments":1,"pivot_tables":0},"unopened":[],"bounds":{"document_bytes":16777216,"sheet_cells":100000,"rows_first":2000,"rows_last":500,"rows_between":2000,"halvings":0,"cell_chars":16384,"cell_head_chars":4096},"cells_cut":0,"cells_raw":0,"read":"whole","date_system":"1900"}

{"sheet":"Info","index":0,"n_rows":57,"n_cols":41,"rows_kept":57,"cut":false,"hidden":false,"merged":[[20,4,20,9],[20,10,20,11]]}
[]
[]
[null,null,null,null,null,null,null,null,null,null,null,null,null,null,null,null,null,null,null,null,null,null,null,null,null,null,null,null,null,null,null,null,null,null,null,null,null,null,null,null,"Project info\nDecimale teken is een punt !"]
[]
[]
[]
[]
[]
[]
[]
[]
[]
[null,null,null,null,null,null,null,null,null,null,null,null,null," "]
[]
[]
[]
[]
[]
[]
[null," "]
[null,null,null,null,"AGTDrill    by tilsoft",null,null,null,null,null,"Versie_01_00"]
[]
[]
[]
[]
[]
[null,null,null,null,null,null,null,null,null,null,null,null,null," "]
[]
[null,null,null,null," "]
[]
[]
[null,null,null,null,null,null,null,null,null,null,null,null," "]
[]
[]
[]
[]
[]
[]
[]
[]
[]
[]
[]
[]
[]
[]
[null,null,null,null,null," "]
[]
[]
[]
[]
[]
[]
[]
[]
[]
[null,null,null,null,null,null,null,null,null,null,null,"Versie_11_2+L570"]

{"sheet":"Database","index":1,"n_rows":533,"n_cols":86,"rows_kept":533,"cut":false,"hidden":true,"merged":[[26,1,26,4],[0,63,0,68],[0,59,0,61],[47,6,47,9],[48,6,48,9],[22,1,22,4],[21,1,21,4],[23,1,23,4],[34,0,34,6],[30,1,30,4],[25,1,25,4],[6,9,6,10]]}
["licht",2,null,null,null,"zeer fijn zand"," + zeer fijn zand matrix","klei","zeer fijn grind","humeus","stenen","schelp","kalk","leisteen","as","dolomiet","klinkers",null,"grondstof","arc.","na update","druk op: ctrl+shift+L","gesl.","arcering","ovam","ovam",null,null,"Methoden",null,null,"Exploratie",null,null,"grondstof","ovam","ovam cde","houdend","arcering",null,"Boormeesters",null,"Boorwijze",null,null,null,"Databank Ondergrond Vlaanderen",null,"    <methoden>",null,"    <doelen>",null,"deskundige lijst","engels","ovam","arcering","stof1","stof2",null,"import tabellen",null,null,null,"Herbereken arcering",null,null,null,null,null,null,null,null,null,null,null,"B - 1000","Brussel",null,"Project"]
["sterk",3,null,null,null,"zeer fijn tot fijn zand",null,"kleilenzen","fijn grind","humus","steenslag","schelpen","kalksteenmassief","lei-fragmenten","assen","glas","metaal",null,"afval","AF","afval",null,0,null,null,null,null,null,null,null,null,null,null,null,null,null,null,null,null,null,"Alex Vannieuwenborg",null,"avegaarboring",null,"Dossierbeheerder GEO ",null,"    <type_erkenningen>",null,"onbekend",null," Exploratie minerale bronnen",null,"Labo Devlieger - Van Vooren nv","Group Van Vooren","AF",1,"afval",null,null,"W","licht",2,null,"old","Hb","Bm1","Bm2","Bm3","new",null,null,null,null,null,null,"B - 1300","Wavre",null,"Boorplaats",null,null,"grondstof","arcering","Masculin","Femelle"]
["veel",3,null,null,null,"fijn zand"," + fijn zand matrix","kleilensjes","fijn grind tot 10mm","veen","steengruis","schelpgruis",null,".","afval","holte","organisch materiaal",null,"as","AG","as",null,0,null,null,null,null,null,"onbekend",null,null,"Exploratie energie bronnen",null,null,null,null,null,null,null,null,"Dirk Icket",null,"droge boring",null,null,null,"a - Bemalingen en draineringen",null,"droge boring",null,"Exploitatie minerale bronnen",null,"Geolab nv","Project:","AG",2,"as/slakken",null,null,"W","weinig",2,null,0,8,0,0,0,0,null,null,442,2,0,null,"B - 1310","La hulpe",null,"ProjectNr","afval",null,"ardoises",56,"ardoises","ardoises",0]
["weinig",2,null,null,null,"middelmatig zand"," + middelmatig zand matrix",null,"middelmatig grind","silt","steenbrokken",null,"kalksteen","krijt","asfalt","houtresten","plantenresten",null,"asfalt","XXAS","asfalt",null,0,null,null,null,null,null,"droge boring",null,null,"Exploitatie energie bronnen",null,null,"afval","AF",6,null,1,null,"Edwin Icket",null,"edelmanboring",null,null,null,"b - Andere grondwaterwinningen",null,"lepelboring",null,"Exploratie energie bronnen",null,"Terra Engineering & Consultancy nv","Project No:","CO",49,"steenkool","steenkoolbrokken",null,"W","zeer licht",1,null,1,7,0,0,1,1,null,null,842,2,0,null,"B - 1315","Incourt",null,"BoringNr","amfiboliet","klei","argile",29,"argileux","argileuse",1]
["zeer licht",1,null,null,null,"middelmatig tot fijn zand",null,"leem","grind","slib","steenbrokken (tot 30mm)","schiste",null,null,"baksteen","houtskool","silex",null,"assen","AG","assen",null,0,null,null,null,null,null,"lepelboring",null,null,"Geothermie",null,null,"amfiboliet","AA",1,null,null,null,"Mitch Van Bendegem",null,"platte avegaar",null,null,null,"c - Stabiliteitsboringen en geotechnische boringen",null,"pulsboring",null,"Exploitatie energie bronnen",null,null,null,"DL",8,"ballast",null,null,"W","zeer weinig",1,null,2,6,0,0,2,2,null,null,1242,1,0,null,"B - 1320","Beauvechain",null,"deDatum","andesiet","asfalt","asphalte",6,"asphalte","asphalte",0]
["zeer sterk",4,null,null,null,"zand"," + zand matrix","lemig","grind tot 20mm","gips","steenfragmenten (tot 20mm)","graniet","kalkzandsteen","metaal","ballast","hoogovenzand","steenkool",null,"baksteen","XXBK","baksteen","baksteenfragmenten",1,null,null,null,null,null,"pulsboring",null,null,"Berging",null,null,"andesiet","AB",2,null,null,null,"Valentino Vandewege",null,"gestoken boring",null,null,null,"d - Verticale boringen",null,"spiraalboring",null,"Geothermie",null,null,null,"FE",34,"metaal",null,null,"V","sterk",3,null,3,5,0,0,3,3,null,null,1542,2,0,null,"B - 1325","Chaumont-gistoux",null,"LambertX","anhydriet",null,"ballast",5,"ballast","ballast",0]
["zeer veel",4,null,null,null,"grof zand"," glauconiet","leemlenzen","grof grind","geroerd/gestoord monster",null,null,"moeraskalk","pyriet","beton","kasseien","slakken",null,"ballast","XXBL","ballast",null,0,null,null,null,null,null,"spiraalboring",null,null,"Exploratie ondergrondse opslag",null,null,"anhydriet","AC",3,null,null,null,null,null,"graafmachine",null,null,null,"e - Andere boringen",null,"gestoken boring",null,"Berging",null,null,null,"FG",10,"fijn grind","fijn grindhoudend",null,"V","veel",3,null,4,4,0,0,4,4,null,null,1545,1,0,null,"B - 1330","Rixensart",null,"LambertY","ankeriet",null,"banc de pierre d'argil",30,"banc de pierre d'argil","banc de pierre d'argil",1]
["zeer weinig",1,null,null,null,"zeer grof zand"," glauconiethoudend","leemlensjes","zeer grof grind","ongeroerd monster",null,"zandsteen",null,"roest","cokes","keien","stortmaterialen",null,"beton","XXBT","beton",null,0,null,null,null,null,null,"gestoken boring",null,null,"Grondwaterwinning",null,null,"ankeriet","AD",4,null,null,null,null,null,"handboring",null,null,null,null,null,"spoelboring",null,"Exploratie ondergrondse opslag",null,null,null,"FZ",11,"fijn zand","fijn zandhoudend",null,"V","zeer sterk",4,null,10,7,0,1,0,10,null,null,1546,1,0,null,"B - 1340","Ottignies",null,"taw","ant. n. vloeistofd.","beton","béton",6,"béton","béton",0]
[0,"N","M","nihil",null," (tot 5mm)"," (tot 10mm)","(tot 15mm)"," (tot 20mm)","lensjes","brokjes","gruis","brokken","matrix","houdend","gruis","fragmenten",null,"cokes","CO","cokes",null,0,null,null,null,null,null,"spoelboring",null,null,"Geofysisch onderzoek",null,null,"ant. n. vloeistofd.","AN",8,null,null,null,null,null,"kernboring",null,null,null,null,null,"zuigboring",null,"Grondwaterwinning",null,null,null,"GA",12,"ongeroerd monster",null,null,"V","zeer veel",4,null,11,6,0,1,1,11,null,null,1547,1,0,null,"B - 1350","Orp-jauche",null,"Waterpeil","ant. vloeistofdicht","kalk","calcaire",25,"calcaire","calcaire",0]
[1,"W","Z","zeer weinig",null,null,"zeer licht","zeer weinig",null,"licht","weinig",null,"veel","sterk",null,"zeer sterk","zeer veel",null,"dolomiet","DL","dolomiet",null,0,null,null,null,null,null,"zuigboring",null,null,"Geologisch onderzoek",null,null,"ant. vloeistofdicht","AV",10,null,null,null,null,null,"lepelboring",null,null,null,null,null,"kernboring",null,"Geofysisch onderzoek",null,null,null,"GC",13,"gips",null,null,"N",null,2,null,12,5,0,1,2,12,null,null,1845,1,0,null,"B - 1357","Helecine",null,"GeboordeDiepte","ant. w. vloeistofd.","holte","cavité",18,"cavité","cavité",0]
[2,"W","Z","weinig",null,null,null,null,null,null,null,null,null,null,null,null,null,null,"erts","XXER","erts",null,0,null,null,null,null,null,"kernboring",null,null,"Hydrogeologisch onderzoek",null,null,"ant. w. vloeistofd.","AW",11,null,null,null,null,null,"luchthamer",null,null,null,null,null,"rollerbit",null,"Geologisch onderzoek",null,null,null,"GE",57,"graniet",null,null,"M",null,2,null,13,4,0,1,3,13,null,null,1846,1,0,null,"B - 1360","Perwez",null,"deSchaal","areniet","as","cendres",2,"cendres","cendres",1]
[3,"V","S","veel",null,null,null,null,null,null,null,null,null,null,null,null,null,null,"fijn grind","FG","fijn grind","fijn grindhoudend",1,null,null,null,null,null,"rollerbit",null,null,"Geotechnisch onderzoek",null,null,"areniet","AR",9,null,null,null,null,null,"omgek. spoelboring",null,null,null,null,null,"luchthamer",null,"Hydrogeologisch onderzoek",null,null,null,"GG",16,"grof grind","grof grindhoudend",null,"Z","licht",2,null,13,4,0,1,3,13,null,null,1847,1,0,null,"B - 1367","Ramillies",null,"ExtraInfo","arkose","steenkool","charbon",49,"charbon","charbon",1]
[4,"V","S","zeer veel",null,"beige","donkeroker","donkergeel","bruin","blauw","grijs","groen","rood","roest","wit","zwart",null,null,"fijn grind tot 10mm","FG","fijn grind tot 10mm","fijn grindhoudend tot 10mm",1,null,null,null,null,null,"luchthamer",null,null,"Grondwaterkwaliteit monitoring",null,null,"arkose","AE",5,null,null,null,null,null,"onbekend",null,null,null,null,null,"avegaarboring",null,"Geotechnisch onderzoek",null,null,null,"GZ",17,"grof zand","grof zandhoudend",null,"Z","weinig",2,null,20,6,0,2,0,20,null,null,1942,2,0,null,"B - 1370","Jodoigne",null,"geo_av","as","kalk","chaux",24,"calcaire","calcaire",1]
["auteur","Geolab",null,null,null,"donkerbeige","lichtoker","geel","donkerbruin","donkerblauw","donkergrijs","donkergroen","donkerrood","donkerroest","witbeige","lichtzwart",null,null,"fijn zand","FZ","fijn zand","fijn zandhoudend",1,null,null,null,null,null,"avegaarboring",null,null,"Grondwatermonitoring",null,null,"as","AG",7,null,2,null,null,null,"pulsboring",null,null,null,null,null,"ramkernboring",null,"Grondwaterkwaliteit monitoring",null,null,null,"HC",21,"houtskool",null,null,"Z","zeer licht",1,null,21,5,0,2,1,21,null,null,2145,2,0,null,"B - 1380","Lasne",null,"geo_quartair","asfalt","cokes","coke",7,"coke","coke",0]
["firma","Geolab",null,null,null,"lichtbeige","oker","geelbeige","lichtbruin","lichtblauw","lichtgrijs","lichtgroen","lichtrood","lichtroest","witgeel","zwartgrijs",null,null,"geroerd/gestoord monster","GA","geroerd/gestoord monster",null,0,null,null,null,null,null,"ramkernboring",null,null,"Monitoring vervuilde sites",null,null,"asfalt","XX",10,null,3,null,null,null,"ramguts",null,null,null,null,null,"slagboring",null,"Grondwatermonitoring",null,null,null,"HT",20,"houtresten",null,null,"Z","zeer weinig",1,null,22,4,0,2,2,22,null,null,2146,2,0,null,"B - 1390","Grez-doiceau",null,"geo_tertiair","assen","schelpen","coquille",43,"coquille","coquille",1]
["opdrachtgever","Auquafin",null,null,null,"beigebruin","okerbeige","lichtgeel","bruinrood","blauwgrijs","grijsbeige","groenbeige","roodbruin","roestbruin","witgrijs","zwartgroen",null,null,"gips","GC","gips",null,0,null,null,null,null,null,"slagboring",null,null,"Drainage en bemaling",null,null,"assen","AG",7,null,2,null,null,null,"ramkernboring",null,null,null,null,null,"spade",null,"Monitoring vervuilde sites",null,null,null,"HU",23,"humus","humushoudend",null,"S","sterk",3,null,23,4,0,2,2,22,null,null,2147,1,0,null,"B - 1400","Nivelles",null,"geo_secundair","baksteen","krijt","craie",32,"crayeux","crayeuse",1]
["XY_methode","topografisch ingemeten",null,null,null,null,"olijfgroen","geelbruin","bruinzwart","mauve","grijsbruin","groenbruin","roodroest",null,null,"zwartbruin",null,null,"glas","XXGL","glas","glasscherven",1,null,null,null,null,null,"spade",null,null,"Sanering",null,null,"baksteen","ST",321,"brokken",4,null,null,null,"rollerbit",null,null,null,null,null,"trilboring",null,"Drainage en bemaling",null,null,null,"KA",24,"kalk","kalkhoudend",null,"S","veel",3,null,24,4,0,2,2,22,null,null,2342,1,0,null,"B - 1410","Waterloo",null,"PeilbuisOnOff","ballast","steenbrokken","débris de briques",50,"débris de briques","débris de briques",1]
["Boormeeste","Alex Vannieuwenborg",null,null,null,null,null,null,"bruinbeige",null,"grijsgroen","groengeel",null,"olijfgroen",null,null,null,null,"graniet","GE","graniet",null,0,null,null,null,null,null,"trilboring",null,null,"Infiltratie",null,null,"ballast","XX",119,null,5,null,null,null,"slagboring",null,null,null,null,null,"edelmanboring",null,"Sanering",null,null,null,"KB",26,"kalksteenmassief",null,null,"S","zeer sterk",4,null,30,5,0,3,0,30,null,null,2445,2,0,null,"B - 1420","Braine-l'alleud",null,"Omstorting","basalt","steenbrokken <20mm + keien","débris de briques  < 20mm + pierraille",48,"débris de briques  < 20mm + pierraille","débris de briques  < 20mm + pierraille",1]
["Doel","Geotechnisch onderzoek",null,null,null,null,null,null,"bruingeel","bruingroen","grijszwart","groengrijs",null,"lichtolijfgroen",null,null,null,null,"grind","XG","grind","grindhoudend",1,null,null,null,null,null,"edelmanboring",null,null,null,null,null,"basalt","BA",12,null,null,null,null,null,"spade",null,null,null,null,null,"omgek. spoelboring",null,"Infiltratie",null,null,null,"KL",29,"klei","kleihoudend",null,"S","zeer veel",4,null,31,4,0,3,1,31,null,null,2446,2,0,null,"B - 1430","Rebecq",null,"AS15","bauxiet","stenen","des briques",4,"des briques","des briques",1]
["methode","droge boring",null,null,null,null,null,null,"bruingrijs","bruinroest",null,"groenzwart",null,"donkerolijfgroen",null,"kaki",null,null,"grind tot 20mm","XG","grind tot 20mm","grindhoudend tot 20mm",1,null,null,null,null,null,"omgek. spoelboring",null,null,null,null,null,"bauxiet","BB",13,null,null,null,null,null,"spiraalboring",null,null,null,null,null,"handboring",null,null,null,null,null,"KR",32,"krijt",null,null,null,null,null,null,32,4,0,2,2,22,null,null,2447,2,0,null,"B - 1435","Mont st.guibert",null,"AS18","bentoniet","dals","des pavé",31,"des pavé","des pavé",1]
["type","c - Stabiliteitsboringen en geotechnische boringen",null,null,null,null,null,null,null,null,null,null,null,null,null,null,null,null,"grof grind","GG","grof grind","grof grindhoudend",1,null,null,null,null,null,"handboring",null,null,null,null,null,"bentoniet","BC",14,null,null,null,null,null,"spoelboring",null,null,null,null,null,"graafmachine",null,null,null,null,null,"KS",25,"kalksteen","kalksteenfragmenten",null,null,null,null,null,33,4,0,2,2,22,null,null,2642,3,0,null,"B - 1440","Braine-le-chateau",null,"AS21","beton","planten","des plantes",39,"des plantes","des plantes",0]
["Template","C:\\Tilsoft\\Geodrill_prg\\",null,null,null,null,null,null,null,null,null,null,null,null,null,null,null,null,"grof zand","GZ","grof zand","grof zandhoudend",1,null,null,null,null,null,"graafmachine",null,null,null,null,null,"beton","XX",10,null,6,null,null,null,"trilboring",null,null,null,null,null,"ramguts",null,null,null,null,null,"KT",30,"kleisteen","kleisteenfragmenten",null,null,null,null,null,34,4,0,2,2,22,null,null,2845,-13,1,null,"B - 1450","Chastre",null,"AS24","blauwshist","hout","du bois",20,"du bois","du bois",0]
["De Map:","L:\\technische data\\boorstaten\\",null,null,null,null,null,null,null,null,null,null,null,null,null,null,null,null,"holte","XXHO","holte",null,0,null,null,null,null,null,"ramguts",null,null,null,null,null,"blauwshist","BS",15,null,null,null,null,null,"zuigboring",null,null,null,null,null,"geen boring",null,null,null,null,null,"LE",33,"leem/slit","silt-leemhoudend",null,null,null,null,null,40,4,0,4,0,40,null,null,2846,-13,1,null,"B - 1457","Walhain",null,"AS28","carbonaatfragmenten","glas","du verre",14,"du verre","du verre",1]
["Deskundige:","Geolab nv",null,null,null,null,null,null,null,null,null,null,null,null,null,null,null,null,"hoogovenzand","XXHZ","hoogovenzand",null,0,null,null,null,null,null,"geen boring",null,null,null,null,null,"carbonaatfragmenten","CA",16,null,null,null,null,null,null,null,null,null,null,null,"meerdere technieken",null,null,null,null,null,"LS",56,"leisteen","leisteenfragmenten",null,null,null,null,null,41,4,0,3,1,31,null,null,2847,7,-2,null,"B - 1460","Ittre",null,"AT15","chert (gebande)","ongeroerd monster","Echantillon non remanié",18,"Echantillon non remanié","Echantillon non remanié",0]
[null,null,null,null,null,null,null,null,null,null,null,null,null,null,"droog",null,null,null,"houtresten","HT","houtresten",null,0,null,null,null,null,null,"meerdere technieken",null,null,null,null,null,"chert (gebande)","CT",19,null,null,null,null,null,null,null,null,null,null,null,null,null,null,null,null,null,"MG",35,"middelmatig grind","middelmatig grindhoudend",null,null,null,null,null,42,4,0,3,1,31,null,null,3142,4,0,null,"B - 1470","Genappe",null,"AT18","cokes","leisteenfragmenten","fragments d'ardoises < 15mm",56,"fragments d'ardoises < 15mm","fragments d'ardoises < 15mm",0]
["Mac directories","/Volumes/tilsoft/Geodrill_programma/",null,null,null,null,null,null,null,null,null,null,null,null,"droog/weinig vochtig",null,null,null,"houtskool","HC","houtskool",null,0,null,null,null,null,null,null,null,null,null,null,null,"cokes","CO",18,null,7,null,null,null,null,null,null,null,null,null,null,null,null,null,null,null,"MZ",36,"middelmatig zand","middelmatig zandhoudend",null,null,null,null,null,43,4,0,2,2,22,null,null,3542,3,0,null,"B - 1480","Tubize",null,"AT21","conglomeraat/breccie","kalkfragmenten","fragments de calcaire",25,"fragments de calcaire","fragments de calcaire",0]
["on usb","/Volumes/tilsoft/Geodrill_programma/technische data/NL/",null,null,null,null,null,null,null,null,null,null,null,null,"weinig vochtig",null,null,null,"humeus","HU","humeus",null,0,null,null,null,null,null,null,null,null,null,null,null,"conglomeraat/breccie","CB",17,null,null,null,null,null,null,null,null,null,null,null,null,null,null,null,null,null,"OM",38,"organisch materiaal",null,null,null,null,null,null,44,4,0,2,2,22,null,null,3543,1,0,null,"B - 1490","Court-saint-etienne",null,"AT24","daciet","schelpfragmenten","fragments de coquille",44,"fragments de coquille","fragments de coquille",1]
[null,null,null,null,null,null,null,null,null,null,null,null,null,null,"vochtig",null,null,null,"humus","HU","humus","humushoudend",1,null,null,null,null,null,null,null,null,null,null,null,"daciet","DA",20,null,null,null,null,null,null,null,null,null,null,null,null,null,null,null,null,null,"PL",39,"plantenresten",null,null,null,null,null,null,100,7,1,0,0,100,null,null,3544,1,0,null,"B - 1495","Villers-la-ville",null,"AT28","dals","steenfragmenten","fragments de pierre",48,"fragments de pierre","fragments de pierre",0]
["Zoom",130,null,null,null,"    Worksheets(\"database\").Range(\"B19\") = FRM_dov.CB_Doel",null,null,null,null,null,null,null,null,"weinig vochtig/vochtig",null,null,null,"kalk","KA","kalk","kalkhoudend",1,null,null,null,null,null,null,null,null,null,null,null,"dals","XX",10,null,null,null,null,null,null,null,null,null,null,null,null,null,null,null,null,null,"PY",41,"pyriet",null,null,null,null,null,null,101,6,1,0,1,101,null,null,3545,1,0,null,"B - 1500","Halle",null,"AU15","diatomiet","zandsteenfragmenten","fragments de grès",55,"fragments de grès","fragments de grès",1]
[null,null,null,null,null,"    Worksheets(\"database\").Range(\"B20\") = FRM_dov.CB_Methode",null,null,null,null,null,null,null,null,"weinig vochtig/vochtig",null,null,null,"kalksteen","KS","kalksteen","kalksteenfragmenten",1,null,null,null,null,null,null,null,null,null,null,null,"diatomiet","DB",21,null,null,null,null,null,null,null,null,null,null,null,null,null,null,null,null,null,"SC",43,"schelpen","schelpfragmenten",null,null,null,null,null,102,5,1,0,2,102,null,null,3546,1,0,null,"B - 1540","Herne",null,"AU18","dioriet","grind","gravier",15,"graveleux","graveleuse",0]
["Google earth","C:\\Program Files\\Google\\Google Earth Pro\\client\\",null,null,null,"    Worksheets(\"database\").Range(\"B21\") = FRM_dov.CB_type_onderzoek",null,null,null,null,null,null,null,null,"vochtig/zeer vochtig","zeer vochtig/verzadigd",null,null,"kalksteenbreccie","KS","kalksteenbreccie",null,0,null,null,null,null,null,null,null,null,null,null,null,"dioriet","DC",22,null,null,null,null,null,null,null,null,null,null,null,null,null,null,null,null,null,"SF",44,"schelpfragmenten",null,null,null,null,null,null,103,4,1,0,3,103,null,null,3547,1,0,null,"B - 1547","Bever",null,"AU21","dolerriet",null,"gravier (fin)",10,"graveleux (fin)","graveleuse (fin)",0]
[null,null,null,null,null,null,null,null,null,null,null,null,null,null,"zeer vochtig","verzadigd",null,null,"kalksteenmassief","KS","kalksteenmassief",null,0,null,null,null,null,null,"auteur","Vannieuwenborg H.",null,null,null,null,"dolerriet","DD",23,null,null,null,null,null,null,null,null,null,null,null,null,null,null,null,null,null,"SG",45,"schelpgruis",null,null,null,null,null,null,104,4,1,0,3,103,null,null,3548,1,0,null,"B - 1560","Hoeilaart",null,"AU24","dolom kalksteen",null,"gravier (grossier)",16,"graveleux (grossier)","graveleuse (grossier)",0]
["https://www.rondebruin.nl/win/s2/win005.htm",null,null,null,null,null,null,null,null,null,null,null,null,null,null,null,null,null,"kalksteenmassief gebroken","KS","kalksteenmassief gebroken",null,0,null,null,null,null,null,null,null,null,null,null,null,"dolom kalksteen","DK",25,null,null,null,null,null,null,null,null,null,null,null,null,null,null,null,null,null,"SI",33,"slit/leem","silt-leemhoudend",null,null,null,null,null,110,6,1,1,0,110,null,null,3549,1,0,null,"B - 1570","Galmaarden",null,"AU28","dolomiet",null,"gravier (moyen)",35,"graveleux (moyen)","graveleuse (moyen)",0]
["L:\\technische data\\boorstaten\\boorst20\\",null,null,null,null,null,null,null,null,null,null,null,null,null,null,null,null,null,"kalkzandsteen","ZK","kalkzandsteen",null,0,null,null,null,null,null,"firma","Geolab",null,null,null,null,"dolomiet","DL",26,null,8,null,null,null,null,null,null,null,null,null,null,null,null,null,null,null,"SL",47,"slib",null,null,null,null,null,null,111,5,1,1,1,111,null,null,3550,1,0,null,"B - 1600","Sint-pieters-leeuw",null,"AS35","duniet",null,"gravier (trés fin)",10,"graveleux (trés fin)","graveleuse (trés fin)",0]
["C:\\Program Files\\Adobe\\Acrobat Reader DC\\Reader\\AcroRd32.exe",null,null,null,null,null,null,null,null,null,null,null,null,null,null,null,null,null,"kasseien","XXKA","kasseien",null,0,null,null,null,null,null,null,null,null,null,null,null,"duniet","DE",24,null,null,null,null,null,null,null,null,null,null,null,null,null,null,null,null,null,"ST",48,"stenen","steenfragmenten",null,null,null,null,null,112,4,1,1,2,112,null,null,3551,1,0,null,"B - 1620","Drogenbos",null,"AS38","eclogiet",null,"gravier (trés grossier)",16,"graveleux (trés grossier)","graveleuse (trés grossier)",0]
["https://online-omzetten.nl/",null,null,null,null,null,null,null,null,null,null,null,null,"brokkelig",null,null,null,null,"klei","KL","klei","kleihoudend",1,null,null,null,null,null,"Type onderzoek:",null,null,null,null,null,"eclogiet","EC",28,null,null,null,null,null,null,null,null,null,null,null,null,null,null,null,null,null,"SX",59,"silex",null,null,null,null,null,null,113,4,1,1,2,112,null,null,3552,1,0,null,"B - 1630","Linkebeek",null,"AT35","erts",null,"grès",55,"grès","grès",0]
[null,null,null,null,null,null,null,null,null,null,null,null,null,"fijn korrelig",null,null,null,null,"kleiïg","KL","kleiïg",null,0,null,null,null,null,null,null,null,null,null,null,null,"erts","XX",119,null,9,null,null,null,null,null,null,null,null,null,null,null,null,null,null,null,"SY",58,"shist",null,null,null,null,null,null,114,4,1,1,2,112,null,null,3553,1,0,null,"B - 1640","Sint-genesius-rode",null,"AT38","evaporiet",null,"grit coquille",45,"grit coquille","grit coquille",1]
[null,null,null,null,null,null,null,null,null,null,null,null,null,"matig vast",null,null,null,null,"kleilensjes","KL","kleilensjes",null,0,null,null,null,null,null,"Opdrachtgever:",null,null,null,null,null,"evaporiet","EA",27,null,null,null,null,null,null,null,null,null,null,null,null,null,null,null,null,null,"VE",51,"veen","veenhoudend",null,null,null,null,null,120,5,1,2,0,120,null,null,3554,1,0,null,"B - 1650","Beersel",null,"AU35","fijn grind",null,"gypse",13,"gypse","gypse",0]
["hoogte rij in ptn","diepte/blad in m",null,null,null,null,null,null,null,null,null,null,null,"matig vast tot vast",null,null,null,null,"kleilenzen","KL","kleilenzen",null,0,null,null,null,null,null,null,null,null,null,null,null,"fijn grind","FG",31,"houdend",10,null,null,null,null,null,null,null,null,null,null,null,null,null,null,null,"XG",15,"grind","grindhoudend",null,null,null,null,null,121,4,1,2,1,121,null,null,3842,-3,1,null,"B - 1670","Pepingen",null,"AU38","fijn zand",null,"humes",23,"humeux","humeuse",0]
[0,null,null,null,null,"    Worksheets(\"database\").Range(\"B19\") = FRM_dov.CB_Doel",null,null,null,null,null,null,null,"plastisch",null,null,null,null,"kleisteen","KT","kleisteen","kleisteenfragmenten",1,null,null,null,null,null,"Boormeester:",null,null,null,null,null,"fijn zand","FZ",34,"houdend",11,null,null,null,null,null,null,null,null,null,null,null,null,null,null,null,"XX",12,"Onbepaald",null,"was 3",null,null,null,null,122,4,1,2,1,121,null,null,3843,-3,1,null,"B - 1700","Dilbeek",null,"AV35","fosforiet",null,"limon",33,"limoneux","limoneuse",0]
[1,null,null,null,null,"    Worksheets(\"database\").Range(\"B20\") = FRM_dov.CB_Methode",null,null,null,null,null,null,null,"slap",null,null,null,null,"klinkers","XXKL","klinkers",null,0,null,null,null,null,null,null,null,null,null,null,null,"fosforiet","FA",29,null,null,null,null,null,null,null,null,null,null,null,null,null,null,null,null,null,"XZ",36,"zand","zandhoudend","was 54",null,null,null,null,123,4,1,1,2,112,null,null,3844,-3,1,null,"B - 1730","Asse",null,"AV38","fossielen",null,"limon",47,"limoneux","limoneuse",0]
[2,null,null,null,null,"    Worksheets(\"database\").Range(\"B21\") = FRM_dov.CB_type_onderzoek",null,null,null,null,null,null,null,"slap tot plastisch",null,null,null,null,"krijt","KR","krijt",null,0,null,null,null,null,null,"Methode:",null,null,null,null,null,"fossielen","FO",32,null,null,null,null,null,null,null,null,null,null,null,null,null,null,null,null,null,"ZK",27,"kalkzandsteen",null,null,null,null,null,null,124,4,1,1,2,112,null,null,3845,-3,1,null,"B - 1740","Ternat",null,"AW35","fylliet",null,"massif calcaire",26,"massif calcaire","massif calcaire",1]
[3,null,"lenovo","hp",null,null,null,null,null,null,null,null,null,"vast",null,null,null,null,"leem","LE","leem","leemhoudend",1,null,null,null,null,null,null,null,null,null,null,null,"fylliet","FY",33,null,null,null,null,null,null,null,null,null,null,null,null,null,null,null,null,null,"ZS",55,"zandsteen","zandsteenbrokken",null,null,null,null,null,130,4,1,3,0,130,null,null,3846,-3,1,null,"B - 1745","Opwijk",null,"AW38","gabbro",null,"matière organique",38,"matière organique","matière organique",1]
[4,null,null,null,null,null,null,null,null,null,null,null,null,null,null,null,null,null,"leemlensjes","LE","leemlensjes",null,0,null,null,null,null,null,"Doel:",null,null,null,null,null,"gabbro","GB",36,null,null,null,null,null,null,null,null,null,null,null,null,null,null,null,null,null,null,null,null,null,null,null,null,null,null,131,4,1,2,1,121,null,null,3847,-3,1,null,"B - 1750","Lennik",null,"AX35","geroerd / gestoord",null,"matière plastique",40,"matière plastique","matière plastique",1]
[11.6,5,5,12,null,null,null,null,null,null,null,null,null,null,null,null,null,null,"leemlenzen","LE","leemlenzen",null,0,null,null,null,null,null,null,null,null,null,null,null,"geroerd / gestoord","GA",35,null,12,null,null,null,null,null,null,null,null,null,null,null,null,null,null,null,null,null,null,null,null,null,null,null,null,132,4,1,2,1,121,null,null,3848,-3,1,null,"B - 1755","Gooik",null,"AX38","gespleten metamorf",null,"métal",34,"métal","métal",0]
[9.5,6,5,9.5,null,null,null,null,null,null,null,null,null,null,null,null,null,null,"lei-fragmenten","LS","lei-fragmenten",null,0,null,null,null,null,null,"XY methode:",null,null,null,null,null,"gespleten metamorf","GM",45,null,null,null,null,null,null,null,null,null,null,null,null,null,null,null,null,null,null,null,null,null,null,null,null,null,null,133,4,1,2,1,121,null,null,3849,-3,1,null,"B - 1760","Roosdaal",null,"AY35","gips",null,"mottes d'argile",29,"mottes d'argile","mottes d'argile",1]
[8.3000000000000007,7,5,8.6,null,null,null,null,null,null,null,null,null,null,null,null,null,null,"leisteen","LS","leisteen","leisteenfragmenten",1,null,null,null,null,null,null,null,null,null,null,null,"gips","GC",37,null,13,null,null,null,null,null,null,null,null,null,null,null,null,null,null,null,null,null,null,null,null,null,null,null,null,134,4,1,2,1,121,null,null,3850,-3,1,null,"B - 1770","Liedekerke",null,"AY38","glas",null,"pavés",28,"pavés","pavés",0]
[7.4,8,5,7.5,null,null,"C:\\Tilsoft\\Geodrill\\",null,null,null,null,null,null,null,null,null,null,null,"lemig","LE","lemig",null,0,null,null,null,null,null,null,null,null,null,null,null,"glas","XX",10,"scherven",14,null,null,null,null,null,null,null,null,null,null,null,null,null,null,null,null,null,null,null,null,null,null,null,null,140,4,1,3,0,130,null,null,3851,-3,1,null,"B - 1780","Wemmel",null,"AZ35","glauconiet",null,"pierraille",50,"pierraille","pierraille",1]
[6.5,9,5,6.7,null,null,"C:\\Tilsoft\\Geodrill\\technische data\\NL\\",null,null,null,null,null,null,null,null,null,null,null,"metaal","FE","metaal",null,0,null,null,null,null,null,null,null,null,null,null,null,"glauconiet","GL",44,null,null,null,null,null,null,null,null,null,null,null,null,null,null,null,null,null,null,null,null,null,null,null,null,null,null,141,4,1,2,1,121,null,null,3852,-3,1,null,"B - 1785","Merchtem",null,"AZ38","glimmers",null,"pierre",48,"pierre","pierre",0]
[5.9,10,5,5.9,null,null,null,null,null,null,null,null,null,null,null,null,null,null,"middelmatig grind","MG","middelmatig grind","middelmatig grindhoudend",1,null,null,null,null,null,null,null,null,null,null,null,"glimmers","GI",43,null,null,null,null,null,null,null,null,null,null,null,null,null,null,null,null,null,null,null,null,null,null,null,null,null,null,142,4,1,2,1,121,null,null,3853,-3,1,null,"B - 1790","Affligem",null,"BA35","gneiss",null,"pierre concassée",50,"pierre concassée","pierre concassée",1]
[5.3,11,5,5.5,null,null,null,null,null,null,null,null,null,null,null,null,null,null,"middelmatig tot fijn zand","MZ","middelmatig tot fijn zand","middelmatig tot fijn zandhoudend",1,null,null,null,null,null,null,null,null,null,null,null,"gneiss","GD",38,null,null,null,null,null,null,null,null,null,null,null,null,null,null,null,null,null,null,null,null,null,null,null,null,null,null,143,4,1,2,1,121,null,null,3854,-3,1,null,"B - 1800","Vilvoorde",null,"BA38",null,null,"pyrite",41,"pyrite","pyrite",1]
[5,12,5,5.0999999999999996,null,null,null,null,null,null,null,null,null,null,null,null,null,null,"middelmatig tot grof zand","MZ","middelmatig tot grof zand","middelmatig tot grof zandhoudend",1,null,null,null,null,null,null,null,null,null,null,null,null,null,null,null,null,null,null,null,null,null,null,null,null,null,null,null,null,null,null,null,null,null,null,null,null,null,null,null,null,144,4,1,2,1,121,null,null,4042,1,0,null,"B - 1820","Steenokkerzeel",null,"BB35","graniet",null,"racine",53,"racine","racine",1]
[4.9000000000000004,13,5,null,null,null,null,null,null,null,null,null,null,null,null,null,null,null,"middelmatig zand","MZ","middelmatig zand","middelmatig zandhoudend",1,null,null,null,null,null,null,null,null,null,null,null,"graniet","GE",39,null,57,null,null,null,null,null,null,null,null,null,null,null,null,null,null,null,null,null,null,null,null,null,null,null,null,200,6,2,0,0,200,null,null,4342,-26,3,null,"B - 1830","Machelen",null,"BB38","granodioriet",null,"rouille",42,"rouille","rouille",0]
[4.8,14,5,null,null,null,103,null,null,null,null,null,null,null,null,null,null,null,"moeraskalk","KA","moeraskalk",null,0,null,null,null,null,null,null,null,null,null,null,null,"granodioriet","GF",40,null,null,null,null,null,null,null,null,null,null,null,null,null,null,null,null,null,null,null,null,null,null,null,null,null,null,201,5,2,0,1,201,null,null,null,null,null,null,"B - 1840","Londerzeel",null,"AS52","grind",null,"sable",54,"sableux","sableuse",0]
[4.7,15,5,null,null,null,24,null,null,null,null,null,null,null,null,null,null,null,"ongeroerd monster","GA","ongeroerd monster",null,0,null,null,null,null,null,null,null,null,null,null,null,"grind","XG",118,"houdend",15,null,null,null,null,null,null,null,null,null,null,null,null,null,null,null,null,null,null,null,null,null,null,null,null,202,4,2,0,2,202,null,null,null,null,null,null,"B - 1850","Grimbergen",null,"AS55","groenshist",null,"sable (fin)",57,"sableux (fin)","sableuse (fin)",0]
[4.5999999999999996,16,5,null,null,null,0.2,null,null,null,null,null,null,null,null,null,null,null,"organisch materiaal","OM","organisch materiaal",null,0,null,null,null,null,null,null,null,null,null,null,null,"groenshist","GH",42,null,null,null,null,null,null,null,null,null,null,null,null,null,null,null,null,null,null,null,null,null,null,null,null,null,null,203,4,2,0,2,202,null,null,null,null,null,null,"B - 1860","Meise",null,"AT52","groensteen",null,"sable (grossier)",17,"sableux (grossier)","sableuse (grossier)",0]
[4.5,17,5,null,null,null,null,null,null,null,null,null,null,null,null,null,null,null,"plantenresten","PL","plantenresten",null,0,null,null,null,null,null,null,null,null,null,null,null,"groensteen","GS",46,null,null,null,null,null,null,null,null,null,null,null,null,null,null,null,null,null,null,null,null,null,null,null,null,null,null,204,4,2,0,2,202,null,null,null,null,null,null,"B - 1880","Kapelle-op-den-bos",null,"AT55","grof grind",null,"sable (moyen - fin)",36,"sableux (moyen - fin)","sableuse (moyen - fin)",0]
[4.4000000000000004,18,5,null,null,null,null,null,null,null,null,null,null,null,null,null,null,null,"plastiek","XXPL","plastiek",null,0,null,null,null,null,null,null,null,null,null,null,null,"grof grind","GG",41,"houdend",16,null,null,null,null,null,null,null,null,null,null,null,null,null,null,null,null,null,null,null,null,null,null,null,null,210,5,2,1,0,210,null,null,null,null,null,null,"B - 1910","Kampenhout",null,"AU52","grof tot zeer grof zand",null,"sable (moyen - grossier)",36,"sableux (moyen - grossier)","sableuse (moyen - grossier)",0]
[4.3,19,5,null,null,null,null,null,null,null,null,null,null,null,null,null,null,null,"puin","PU","puin",null,0,null,null,null,null,null,null,null,null,null,null,null,"grof tot zeer grof zand","GZ",47,"houdend",17,null,null,null,null,null,null,null,null,null,null,null,null,null,null,null,null,null,null,null,null,null,null,null,null,211,4,2,1,1,211,null,null,null,null,null,null,"B - 1930","Zaventem",null,"AU55","grof zand",null,"sable (moyen)",36,"sableux (moyen)","sableuse (moyen)",0]
[4.2,20,5,null,null,null,null,null,null,null,null,null,null,null,null,null,null,null,"pyriet","PY","pyriet",null,0,null,null,null,null,null,null,null,null,null,null,null,"grof zand","GZ",47,"houdend",17,null,null,null,null,null,null,null,null,null,null,null,null,null,null,null,null,null,null,null,null,null,null,null,null,212,4,2,1,1,211,null,null,null,null,null,null,"B - 1950","Kraainem",null,"AV52","haliet",null,"sable (très fin - fin)",11,"sableux (très fin - fin)","sableuse (très fin - fin)",0]
[4.0999999999999996,21,5,null,null,null,null,null,null,null,null,null,null,null,null,null,null,null,"roest","XXRO","roest",null,0,null,null,null,null,null,null,null,null,null,null,null,"haliet","HA",48,null,null,null,null,null,null,null,null,null,null,null,null,null,null,null,null,null,null,null,null,null,null,null,null,null,null,213,4,2,1,1,211,null,null,null,null,null,null,"B - 1970","Wezembeek-oppem",null,"AV55","hematiet",null,"sable (très fin)",11,"sableux (très fin)","sableuse (très fin)",0]
[4,22,5,null,null,null,null,null,null,null,null,null,null,null,null,null,null,null,"schelp","SC","schelp","schelpfragmenten",1,null,null,null,null,null,null,null,null,null,null,null,"hematiet","HB",49,null,null,null,null,null,null,null,null,null,null,null,null,null,null,null,null,null,null,null,null,null,null,null,null,null,null,214,4,2,1,1,211,null,null,null,null,null,null,"B - 1980","Zemst",null,"AW52","holte",null,"sable (trés grossier)",17,"sableux (trés grossier)","sableuse (trés grossier)",0]
[3.9,23,5,null,null,null,null,null,null,null,null,null,null,null,null,null,null,null,"schelpen","SC","schelpen",null,0,null,null,null,null,null,null,null,null,null,null,null,"holte","XX",10,null,18,null,null,null,null,null,null,null,null,null,null,null,null,null,null,null,null,null,null,null,null,null,null,null,null,220,4,2,2,0,220,null,null,null,null,null,null,"B - 2000","Antwerpen",null,"AW55","hoogovenzand",null,"sable haut fourneau",19,"sable haut fourneau","sable haut fourneau",1]
[3.8,24,5,null,null,null,null,null,null,null,null,null,null,null,null,null,null,null,"schelpfragmenten","SF","schelpfragmenten",null,0,null,null,null,null,null,null,null,null,null,null,null,"hoogovenzand","XX",10,null,19,null,null,null,null,null,null,null,null,null,null,null,null,null,null,null,null,null,null,null,null,null,null,null,null,221,4,2,1,1,211,null,null,null,null,null,null,"B - 2070","Zwijndrecht",null,"AX52","hornfels",null,"schiste",58,"schiste","schiste",0]
[3.7,25,5,null,null,null,null,null,null,null,null,null,null,null,null,null,null,null,"schelpgruis","SG","schelpgruis",null,0,null,null,null,null,null,null,null,null,null,null,null,"hornfels","HD",51,null,null,null,null,null,null,null,null,null,null,null,null,null,null,null,null,null,null,null,null,null,null,null,null,null,null,222,4,2,1,1,211,null,null,null,null,null,null,"B - 2110","Wijnegem",null,"AX55","houtresten",null,"tourbe",51,"tourbeux","tourbeuse",1]
[3.6,26,5,null,null,null,null,null,null,null,null,null,null,null,null,null,null,null,"schiste","SY","schiste",null,0,null,null,null,null,null,null,null,null,null,null,null,"houtresten","HT",52,null,20,null,null,null,null,null,null,null,null,null,null,null,null,null,null,null,null,null,null,null,null,null,null,null,null,223,4,2,1,1,211,null,null,null,null,null,null,"B - 2150","Borsbeek",null,"AY52","houtskool",null,"charcoal"]
[3.5000000000000102,27,5,null,null,null,null,null,null,null,null,null,null,null,null,null,null,null,"silex","ST","silex",null,0,null,null,null,null,null,null,null,null,null,null,null,"houtskool","HC",50,null,21,null,null,null,null,null,null,null,null,null,null,null,null,null,null,null,null,null,null,null,null,null,null,null,null,224,4,2,1,1,211,null,null,null,null,null,null,"B - 2160","Wommelgem",null,"AY55","huisvuil",null,"faiblement"]
[3.4000000000000101,28,5,null,null,null,null,null,null,null,null,null,null,null,null,null,null,null,"silt","LE","silt","silthoudend",1,null,null,null,null,null,null,null,null,null,null,null,"huisvuil","OM",81,null,22,null,null,null,null,null,null,null,null,null,null,null,null,null,null,null,null,null,null,null,null,null,null,null,null,230,4,2,2,0,220,null,null,null,null,null,null,"B - 2200","Herentals",null,"AZ52","humeus",null,"fortement"]
[3.30000000000001,29,5,null,null,null,null,null,null,null,null,null,null,null,null,null,null,null,"slakken","AG","slakken",null,0,null,null,null,null,null,null,null,null,null,null,null,"humeus","HU",53,null,23,null,null,null,null,null,null,null,null,null,null,null,null,null,null,null,null,null,null,null,null,null,null,null,null,231,4,2,1,1,211,null,null,null,null,null,null,"B - 2220","Heist-op-den-berg",null,"AZ55","humus",null,"beaucoup de"]
[3.2000000000000099,30,5,null,null,null,null,null,null,null,null,null,null,null,null,null,null,null,"slib","LS","slib","slibhoudend",1,null,null,null,null,null,null,null,null,null,null,null,"humus","HU",53,"houdend",23,null,null,null,null,null,null,null,null,null,null,null,null,null,null,null,null,null,null,null,null,null,null,null,null,232,4,2,1,1,211,null,null,null,null,null,null,"B - 2230","Herselt",null,"BA52","ijzer",null,"peu de"]
[3.1000000000000099,31,5,null,null,null,null,null,null,null,null,null,null,null,null,null,null,null,"steenbrokken (tot 30mm)","ST","steenbrokken (tot 30mm)","steenbrokken (tot 30mm)",0,null,null,null,null,null,null,null,null,null,null,null,"ijzer","FE",30,null,null,null,null,null,null,null,null,null,null,null,null,null,null,null,null,null,null,null,null,null,null,null,null,null,null,233,4,2,1,1,211,null,null,null,null,null,null,"B - 2235","Hulshout",null,"BA55","ijzerooliet",null,"très faiblement "]
[3.0000000000000102,32,5,null,null,null,null,null,null,null,null,null,null,null,null,null,null,null,"steenfragmenten (tot 20mm)","ST","steenfragmenten (tot 20mm)",null,0,null,null,null,null,null,null,null,null,null,null,null,"ijzerooliet","IA",54,null,null,null,null,null,null,null,null,null,null,null,null,null,null,null,null,null,null,null,null,null,null,null,null,null,null,234,4,2,1,1,211,null,null,null,null,null,null,"B - 2240","Zandhoven",null,"BB52","intrusief gesteente",null,"très fortement"]
[2.9000000000000101,33,5,null,null,null,null,null,null,null,null,null,null,null,null,null,null,null,"steengruis","ST","steengruis",null,0,null,null,null,null,null,null,null,null,null,null,null,"intrusief gesteente","IN",55,null,null,null,null,null,null,null,null,null,null,null,null,null,null,null,null,null,null,null,null,null,null,null,null,null,null,240,4,1,3,0,130,null,null,null,null,null,null,"B - 2250","Olen",null,"BB55","kalk",null,"fort beaucoup de"]
[2.80000000000001,34,5,null,null,null,null,null,null,null,null,null,null,null,null,null,null,null,"steenkool","CO","steenkool","steenkoolbrokken",1,null,null,null,null,null,null,null,null,null,null,null,"kalk","KA",56,"houdend",24,null,null,null,null,null,null,null,null,null,null,null,null,null,null,null,null,null,null,null,null,null,null,null,null,241,4,2,1,1,211,null,null,null,null,null,null,"B - 2260","Westerlo",null,"AP64","kalkschiefer",null,"très peu de"]
[2.7000000000000099,35,5,null,null,null,null,null,null,null,null,null,null,null,null,null,null,null,"steenslag","ST","steenslag",null,0,null,null,null,null,null,null,null,null,null,null,null,"kalkschiefer","KC",58,null,null,null,null,null,null,null,null,null,null,null,null,null,null,null,null,null,null,null,null,null,null,null,null,null,null,242,4,2,1,1,211,null,null,null,null,null,null,"B - 2270","Herenthout",null,"AQ64","kalksteen"]
[2.6000000000000099,36,5,null,null,null,null,null,null,null,null,null,null,null,null,null,null,null,"stenen","ST","stenen",null,0,null,null,null,null,null,null,null,null,null,null,null,"kalksteen","KS",62,"fragmenten",25,null,null,null,null,null,null,null,null,null,null,null,null,null,null,null,null,null,null,null,null,null,null,null,null,243,4,2,1,1,211,null,null,null,null,null,null,"B - 2275","Lille",null,"AP67","kalksteenbreccie"]
[2.5000000000000102,37,5,null,null,null,null,null,null,null,null,null,null,null,null,null,null,null,"stortmaterialen","SX","stortmaterialen",null,0,null,null,null,null,null,null,null,null,null,null,null,"kalksteenbreccie","KB",57,null,26,null,null,null,null,null,null,null,null,null,null,null,null,null,null,null,null,null,null,null,null,null,null,null,null,244,4,2,1,1,211,null,null,null,null,null,null,"B - 2280","Grobbendonk",null,"AQ67","kalksteenmassief"]
[2.4000000000000101,38,5,null,null,null,null,null,null,null,null,null,null,null,null,null,null,null,"veen","VE","veen","veenhoudend",1,null,null,null,null,null,null,null,null,null,null,null,"kalksteenmassief","KB",57,null,26,null,null,null,null,null,null,null,null,null,null,null,null,null,null,null,null,null,null,null,null,null,null,null,null,300,5,3,0,0,300,null,null,null,null,null,null,"B - 2290","Vorselaar",null,"AP70","kalksteenmassief gebroken"]
[2.30000000000001,39,5,null,null,null,null,null,null,null,null,null,null,null,null,null,null,null,"vliegassen","OM","vliegassen",null,0,null,null,null,null,null,null,null,null,null,null,null,"kalksteenmassief gebroken","KB",57,null,26,null,null,null,null,null,null,null,null,null,null,null,null,null,null,null,null,null,null,null,null,null,null,null,null,301,4,3,0,1,301,null,null,null,null,null,null,"B - 2300","Turnhout",null,"AQ70","kalkzandsteen"]
[2.2000000000000099,40,5,null,null,null,null,null,null,null,null,null,null,null,null,null,null,null,"wegverharding","XXWV","wegverharding",null,0,null,null,null,null,null,null,null,null,null,null,null,"kalkzandsteen","ZK",122,null,27,null,null,null,null,null,null,null,null,null,null,null,null,null,null,null,null,null,null,null,null,null,null,null,null,302,4,2,0,2,202,null,null,null,null,null,null,"B - 2310","Rijkevorsel",null,"AP73","kaseien"]
[2.1000000000000099,41,5,null,null,null,null,null,null,null,null,null,null,null,null,null,null,null,"wortel","PL","wortel",null,0,null,null,null,null,null,null,null,null,null,null,null,"kaseien","XX",10,null,28,null,null,null,null,null,null,null,null,null,null,null,null,null,null,null,null,null,null,null,null,null,null,null,null,303,1,3,2,2,322,null,null,null,null,null,null,"B - 2320","Hoogstraten",null,"AQ73","klei"]
[2.0000000000000102,42,5,null,null,null,null,null,null,null,null,null,null,null,null,null,null,null,"zand","XZ","zand","zandhoudend",1,null,null,null,null,null,null,null,null,null,null,null,"klei","KL",59,"houdend",29,null,null,null,null,null,null,null,null,null,null,null,null,null,null,null,null,null,null,null,null,null,null,null,null,304,4,2,0,2,202,null,null,null,null,null,null,"B - 2330","Merksplas",null,"AP76","kleiïg"]
[1.9000000000000099,43,5,null,null,null,null,null,null,null,null,null,null,null,null,null,null,null,"zandsteen","ZS","zandsteen","zandsteenbrokken",1,null,null,null,null,null,null,null,null,null,null,null,"kleiïg","KL",59,null,29,null,null,null,null,null,null,null,null,null,null,null,null,null,null,null,null,null,null,null,null,null,null,null,null,310,4,3,1,0,310,null,null,null,null,null,null,"B - 2340","Beerse",null,"AQ76","kleisteen"]
[1.80000000000001,44,5,null,null,null,null,null,null,null,null,null,null,null,null,null,null,null,"zeer fijn grind","FG","zeer fijn grind","zeer fijn grindhoudend",1,null,null,null,null,null,null,null,null,null,null,null,"kleisteen","KT",63,"fragmenten",30,null,null,null,null,null,null,null,null,null,null,null,null,null,null,null,null,null,null,null,null,null,null,null,null,311,4,2,1,1,211,null,null,null,null,null,null,"B - 2350","Vosselaar",null,"AP79","klinkers"]
[1.7000000000000099,45,5,null,null,null,null,null,null,null,null,null,null,null,null,null,null,null,"zeer fijn tot fijn zand","FZ","zeer fijn tot fijn zand","zeer fijn tot fijn zandhoudend",1,null,null,null,null,null,null,null,null,null,null,null,"klinkers","XX",999,null,31,null,null,null,null,null,null,null,null,null,null,null,null,null,null,null,null,null,null,null,null,null,null,null,null,312,4,2,1,1,211,null,null,null,null,null,null,"B - 2360","Oud-turnhout",null,"AQ79","komatiet"]
[1.6000000000000101,46,5,null,null,null,null,null,null,null,null,null,null,null,null,null,null,null,"zeer fijn zand","FZ","zeer fijn zand","zeer fijn zandhoudend",1,null,null,null,null,null,null,null,null,null,null,null,"komatiet","KO",60,null,null,null,null,null,null,null,null,null,null,null,null,null,null,null,null,null,null,null,null,null,null,null,null,null,null,313,4,2,1,1,211,null,null,null,null,null,null,"B - 2370","Arendonk",null,"AP82","krijt"]
[1.50000000000001,47,5,null,null,null,null,null,null,null,null,null,null,null,null,null,null,null,"zeer grof grind","GG","zeer grof grind","zeer grof grindhoudend",1,null,null,null,null,null,null,null,null,null,null,null,"krijt","KR",61,null,32,null,null,null,null,null,null,null,null,null,null,null,null,null,null,null,null,null,null,null,null,null,null,null,null,314,4,2,1,1,211,null,null,null,null,null,null,"B - 2380","Ravels",null,"AQ82","kwarts"]
[1.4000000000000099,48,5,null,null,null,null,null,null,null,null,null,null,null,null,null,null,null,"zeer grof zand","GZ","zeer grof zand","zeer grof zandhoudend",1,null,null,null,null,null,null,null,null,null,null,null,"kwarts","QU",91,null,null,null,null,null,null,null,null,null,null,null,null,null,null,null,null,null,null,null,null,null,null,null,null,null,null,320,4,3,1,0,310,null,null,null,null,null,null,"B - 2387","Baarle-hertog",null,"AP85","kwartsiet"]
[1.30000000000001,49,5,null,null,null,null,null,null,null,null,null,null,null,null,null,null,null,null,null,null,null,null,null,null,null,null,null,null,null,null,null,null,null,"kwartsiet","KW",64,null,null,null,null,null,null,null,null,null,null,null,null,null,null,null,null,null,null,null,null,null,null,null,null,null,null,321,4,2,1,1,211,null,null,null,null,null,null,"B - 2390","Malle",null,"AQ85","lateriet"]
[1.2000000000000099,50,5,null,null,null,null,null,null,null,null,null,null,null,null,null,null,null,null,null,null,null,null,null,null,null,null,null,null,null,null,null,null,null,"lateriet","LA",65,null,null,null,null,null,null,null,null,null,null,null,null,null,null,null,null,null,null,null,null,null,null,null,null,null,null,322,4,2,1,1,211,null,null,null,null,null,null,"B - 2400","Mol",null,"AP88","leem"]
[null,null,null,null,null,null,null,null,null,null,null,null,null,null,null,null,null,null,null,null,null,null,null,null,null,null,null,null,null,null,null,null,null,null,"leem","LE",66,"houdend",33,null,null,null,null,null,null,null,null,null,null,null,null,null,null,null,null,null,null,null,null,null,null,null,null,323,4,2,1,1,211,null,null,null,null,null,null,"B - 2430","Laakdal",null,"AQ88","lei-fragmenten"]
["*","*","*","*","*","*",null,null,null,null,null,null,null,null,null,null,null,null,null,null,null,null,null,null,null,null,null,null,null,null,null,null,null,null,"lei-fragmenten","LS",69,null,56,null,null,null,null,null,null,null,null,null,null,null,null,null,null,null,null,null,null,null,null,null,null,null,null,324,4,2,1,1,211,null,null,null,null,null,null,"B - 2440","Geel",null,"AP91","leisteen"]
["boring1",0.5,1,"klei","kleur","vocht",null,null,null,null,null,null,null,null,null,null,null,null,null,null,null,null,null,null,null,null,null,null,null,null,null,null,null,null,"leisteen","LS",69,"fragmenten",56,null,null,null,null,null,null,null,null,null,null,null,null,null,null,null,null,null,null,null,null,null,null,null,null,330,4,2,2,0,220,null,null,null,null,null,null,"B - 2450","Meerhout",null,"AQ91","lemig"]
["boring2",0.5,1,"klei","kleur","vocht",null,null,null,null,null,null,null,null,null,null,null,null,null,null,null,null,null,null,null,null,null,null,null,null,null,null,null,null,"lemig","LE",66,null,33,null,null,null,null,null,null,null,null,null,null,null,null,null,null,null,null,null,null,null,null,null,null,null,null,331,4,2,1,1,211,null,null,null,null,null,null,"B - 2460","Kasterlee",null,null,"ligniet"]
["boring3",0.5,1,"klei","kleur","vocht",null,null,null,null,null,null,null,null,null,null,null,null,null,null,null,null,null,null,null,null,null,null,null,null,null,null,null,null,"ligniet","LG",67,null,null,null,null,null,null,null,null,null,null,null,null,null,null,null,null,null,null,null,null,null,null,null,null,null,null,332,4,2,1,1,211,null,null,null,null,null,null,"B - 2470","Retie",null,null,"limoniet"]
["boring4",0.5,1,"klei","kleur","vocht",null,null,null,null,null,null,null,null,null,null,null,null,null,null,null,null,null,null,null,null,null,null,null,null,null,null,null,null,"limoniet","LI",68,null,null,null,null,null,null,null,null,null,null,null,null,null,null,null,null,null,null,null,null,null,null,null,null,null,null,333,4,2,1,1,211,null,null,null,null,null,null,"B - 2480","Dessel",null,null,"marmer"]
["boring5",0.5,1,"klei","kleur","vocht",null,null,null,null,null,null,null,null,null,null,null,null,null,null,null,null,null,null,null,null,null,null,null,null,null,null,null,null,"marmer","MA",70,null,null,null,null,null,null,null,null,null,null,null,null,null,null,null,null,null,null,null,null,null,null,null,null,null,null,334,4,2,1,1,211,null,null,null,null,null,null,"B - 2490","Balen",null,null,"mergel"]
["boring6",0.5,1,"klei","kleur","vocht",null,null,null,null,null,null,null,null,null,null,null,null,null,null,null,null,null,null,null,null,null,null,null,null,null,null,null,null,"mergel","ME",72,null,null,null,null,null,null,null,null,null,null,null,null,null,null,null,null,null,null,null,null,null,null,null,null,null,null,340,4,2,2,0,220,null,null,null,null,null,null,"B - 2500","Lier",null,null,"metaal"]
["boring7",0.5,1,"klei","kleur","vocht",null,null,null,null,null,null,null,null,null,null,null,null,null,null,null,null,null,null,null,null,null,null,null,null,null,null,null,null,"metaal","FE",30,null,34,null,null,null,null,null,null,null,null,null,null,null,null,null,null,null,null,null,null,null,null,null,null,null,null,341,4,2,1,1,211,null,null,null,null,null,null,"B - 2520","Ranst",null,null,"metamorf gesteente"]
["boring8",0.5,1,"klei","kleur","vocht",null,null,null,null,null,null,null,null,null,null,null,null,null,null,null,null,null,null,null,null,null,null,null,null,null,null,null,null,"metamorf gesteente","MM",75,null,null,null,null,null,null,null,null,null,null,null,null,null,null,null,null,null,null,null,null,null,null,null,null,null,null,342,4,2,1,1,211,null,null,null,null,null,null,"B - 2530","Boechout",null,null,"micashist"]
["boring9",0.5,1,"klei","kleur","vocht",null,null,null,null,null,null,null,null,null,null,null,null,null,null,null,null,null,null,null,null,null,null,null,null,null,null,null,null,"micashist","MB",71,null,null,null,null,null,null,null,null,null,null,null,null,null,null,null,null,null,null,null,null,null,null,null,null,null,null,343,4,2,1,1,211,null,null,null,null,null,null,"B - 2540","Hove",null,null,"middelmatig grind"]
["boring10",0.5,1,"klei","kleur","vocht",null,null,null,null,null,null,null,null,null,null,null,null,null,null,null,null,null,null,null,null,null,null,null,null,null,null,null,null,"middelmatig grind","MG",73,"houdend",35,null,null,null,null,null,null,null,null,null,null,null,null,null,null,null,null,null,null,null,null,null,null,null,null,344,4,2,1,1,211,null,null,null,null,null,null,"B - 2547","Lint",null,null,"middelmatig tot fijn zand"]
["boring11",0.5,1,"klei","kleur","vocht",null,null,null,null,null,null,null,null,null,null,null,null,null,null,null,null,null,null,null,null,null,null,null,null,null,null,null,null,"middelmatig tot fijn zand","MZ",78,"houdend",36,null,null,null,null,null,null,null,null,null,null,null,null,null,null,null,null,null,null,null,null,null,null,null,null,400,4,4,0,0,400,null,null,null,null,null,null,"B - 2550","Kontich",null,null,"middelmatig tot grof zand"]
["boring12",0.5,1,"klei","kleur","vocht",null,null,null,null,null,null,null,null,null,null,null,null,null,null,null,null,null,null,null,null,null,null,null,null,null,null,null,null,"middelmatig tot grof zand","MZ",78,"houdend",36,null,null,null,null,null,null,null,null,null,null,null,null,null,null,null,null,null,null,null,null,null,null,null,null,401,4,3,0,1,301,null,null,null,null,null,null,"B - 2560","Nijlen",null,null,"middelmatig zand"]
[null,null,null,null,null,null,null,null,null,null,null,null,null,null,null,null,null,null,null,null,null,null,null,null,null,null,null,null,null,null,null,null,null,null,"middelmatig zand","MZ",78,"houdend",36,null,null,null,null,null,null,null,null,null,null,null,null,null,null,null,null,null,null,null,null,null,null,null,null,402,4,3,0,1,301,null,null,null,null,null,null,"B - 2570","Duffel",null,null,"migmatiet"]
[null,null,null,null,null,null,null,null,null,null,null,null,null,null,null,null,null,null,null,null,null,null,null,null,null,null,null,null,null,null,null,null,null,null,"migmatiet","MI",74,null,null,null,null,null,null,null,null,null,null,null,null,null,null,null,null,null,null,null,null,null,null,null,null,null,null,403,4,3,0,1,301,null,null,null,null,null,null,"B - 2580","Putte",null,null,"moeraskalk"]
[null,null,null,null,null,null,null,null,null,null,null,null,null,null,null,null,null,null,null,null,null,null,null,null,null,null,null,null,null,null,null,null,null,null,"moeraskalk","KA",56,null,37,null,null,null,null,null,null,null,null,null,null,null,null,null,null,null,null,null,null,null,null,null,null,null,null,404,4,3,0,1,301,null,null,null,null,null,null,"B - 2590","Berlaar",null,null,"myloniet"]
[null,null,null,null,null,null,null,null,null,null,null,null,null,null,null,null,null,null,null,null,null,null,null,null,null,null,null,null,null,null,null,null,null,null,"myloniet","MY",77,null,null,null,null,null,null,null,null,null,null,null,null,null,null,null,null,null,null,null,null,null,null,null,null,null,null,410,4,3,1,0,310,null,null,null,null,null,null,"B - 2620","Hemiksem",null,null,"nummulieten"]
[null,null,null,null,null,null,null,null,null,null,null,null,null,null,null,null,null,null,null,null,null,null,null,null,null,null,null,null,null,null,null,null,null,null,"nummulieten","NN",79,null,null,null,null,null,null,null,null,null,null,null,null,null,null,null,null,null,null,null,null,null,null,null,null,null,null,411,4,2,1,1,211,null,null,null,null,null,null,"B - 2627","Schelle",null,null,"o√∂litische kalksteen"]
[null,null,null,null,null,null,null,null,null,null,null,null,null,null,null,null,null,null,null,null,null,null,null,null,null,null,null,null,null,null,null,null,null,null,"o√∂litische kalksteen","OK",80,null,null,null,null,null,null,null,null,null,null,null,null,null,null,null,null,null,null,null,null,null,null,null,null,null,null,412,4,2,1,1,211,null,null,null,null,null,null,"B - 2630","Aartselaar",null,null,"onbekend"]
[null,null,null,null,null,null,null,null,null,null,null,null,null,null,null,null,null,null,null,null,null,null,null,null,null,null,null,null,null,null,null,null,null,null,"onbekend","XX",119,null,null,null,null,null,null,null,null,null,null,null,null,null,null,null,null,null,null,null,null,null,null,null,null,null,null,413,4,2,1,1,211,null,null,null,null,null,null,"B - 2640","Mortsel",null,null,"organisch materiaal"]
[null,null,null,null,null,null,null,null,null,null,null,null,null,null,null,null,null,null,null,null,null,null,null,null,null,null,null,null,null,null,null,null,null,null,"organisch materiaal","OM",81,null,38,null,null,null,null,null,null,null,null,null,null,null,null,null,null,null,null,null,null,null,null,null,null,null,null,414,4,2,1,1,211,null,null,null,null,null,null,"B - 2650","Edegem",null,null,"pegmatiet"]
[null,null,null,null,null,null,null,null,null,null,null,null,null,null,null,null,null,null,null,null,null,null,null,null,null,null,null,null,null,null,null,null,null,null,"pegmatiet","PA",82,null,null,null,null,null,null,null,null,null,null,null,null,null,null,null,null,null,null,null,null,null,null,null,null,null,null,420,4,3,1,0,310,null,null,null,null,null,null,"B - 2800","Mechelen",null,null,"peridodiet"]
[null,null,null,null,null,null,null,null,null,null,null,null,null,null,null,null,null,null,null,null,null,null,null,null,null,null,null,null,null,null,null,null,null,null,"peridodiet","PB",83,null,null,null,null,null,null,null,null,null,null,null,null,null,null,null,null,null,null,null,null,null,null,null,null,null,null,421,4,2,1,1,211,null,null,null,null,null,null,"B - 2820","Bonheiden",null,null,"plantenresten"]
[null,null,null,null,null,null,null,null,null,null,null,null,null,null,null,null,null,null,null,null,null,null,null,null,null,null,null,null,null,null,null,null,null,null,"plantenresten","PL",86,null,39,null,null,null,null,null,null,null,null,null,null,null,null,null,null,null,null,null,null,null,null,null,null,null,null,422,4,2,1,1,211,null,null,null,null,null,null,"B - 2830","Willebroek",null,null,"plastiek"]
[null,null,null,null,null,null,null,null,null,null,null,null,null,null,null,null,null,null,null,null,null,null,null,null,null,null,null,null,null,null,null,null,null,null,"plastiek","XX",119,null,40,null,null,null,null,null,null,null,null,null,null,null,null,null,null,null,null,null,null,null,null,null,null,null,null,423,4,2,1,1,211,null,null,null,null,null,null,"B - 2840","Rumst",null,null,"poederkool"]
[null,null,null,null,null,null,null,null,null,null,null,null,null,null,null,null,null,null,null,null,null,null,null,null,null,null,null,null,null,null,null,null,null,null,"poederkool","PC",84,null,null,null,null,null,null,null,null,null,null,null,null,null,null,null,null,null,null,null,null,null,null,null,null,null,null,424,4,2,1,1,211,null,null,null,null,null,null,"B - 2845","Niel",null,null,"psammiet"]
[null,null,null,null,null,null,null,null,null,null,null,null,null,null,null,null,null,null,null,null,null,null,null,null,null,null,null,null,null,null,null,null,null,null,"psammiet","PS",88,null,null,null,null,null,null,null,null,null,null,null,null,null,null,null,null,null,null,null,null,null,null,null,null,null,null,430,4,2,2,0,220,null,null,null,null,null,null,"B - 2850","Boom",null,null,"puimsteen"]
[null,null,null,null,null,null,null,null,null,null,null,null,null,null,null,null,null,null,null,null,null,null,null,null,null,null,null,null,null,null,null,null,null,null,"puimsteen","PM",87,null,null,null,null,null,null,null,null,null,null,null,null,null,null,null,null,null,null,null,null,null,null,null,null,null,null,431,4,2,1,1,211,null,null,null,null,null,null,"B - 2860","Sint-katelijne-waver",null,null,"puin"]
[null,null,null,null,null,null,null,null,null,null,null,null,null,null,null,null,null,null,null,null,null,null,null,null,null,null,null,null,null,null,null,null,null,null,"puin","PU",89,null,null,null,null,null,null,null,null,null,null,null,null,null,null,null,null,null,null,null,null,null,null,null,null,null,null,432,4,2,1,1,211,null,null,null,null,null,null,"B - 2870","Puurs",null,null,"pyriet"]
[null,null,null,null,null,null,null,null,null,null,null,null,null,null,null,null,null,null,null,null,null,null,null,null,null,null,null,null,null,null,null,null,null,null,"pyriet","PY",90,null,41,null,null,null,null,null,null,null,null,null,null,null,null,null,null,null,null,null,null,null,null,null,null,null,null,433,4,2,1,1,211,null,null,null,null,null,null,"B - 2880","Bornem",null,null,"pyroxeniet"]
[null,null,null,null,null,null,null,null,null,null,null,null,null,null,null,null,null,null,null,null,null,null,null,null,null,null,null,null,null,null,null,null,null,null,"pyroxeniet","PD",85,null,null,null,null,null,null,null,null,null,null,null,null,null,null,null,null,null,null,null,null,null,null,null,null,null,null,434,4,2,1,1,211,null,null,null,null,null,null,"B - 2890","Sint-amands",null,null,"radiolariet"]
[null,null,null,null,null,null,null,null,null,null,null,null,null,null,null,null,null,null,null,null,null,null,null,null,null,null,null,null,null,null,null,null,null,null,"radiolariet","RA",92,null,null,null,null,null,null,null,null,null,null,null,null,null,null,null,null,null,null,null,null,null,null,null,null,null,null,440,4,2,2,0,220,null,null,null,null,null,null,"B - 2900","Schoten",null,null,"rhyoliet"]
[null,null,null,null,null,null,null,null,null,null,null,null,null,null,null,null,null,null,null,null,null,null,null,null,null,null,null,null,null,null,null,null,null,null,"rhyoliet","RB",93,null,null,null,null,null,null,null,null,null,null,null,null,null,null,null,null,null,null,null,null,null,null,null,null,null,null,441,4,2,1,1,211,null,null,null,null,null,null,"B - 2910","Essen",null,null,"roest"]
[null,null,null,null,null,null,null,null,null,null,null,null,null,null,null,null,null,null,null,null,null,null,null,null,null,null,null,null,null,null,null,null,null,null,"roest","XX",119,null,42,null,null,null,null,null,null,null,null,null,null,null,null,null,null,null,null,null,null,null,null,null,null,null,null,442,4,2,1,1,211,null,null,null,null,null,null,"B - 2920","Kalmthout",null,null,"rots"]
[null,null,null,null,null,null,null,null,null,null,null,null,null,null,null,null,null,null,null,null,null,null,null,null,null,null,null,null,null,null,null,null,null,null,"rots","RO",94,null,null,null,null,null,null,null,null,null,null,null,null,null,null,null,null,null,null,null,null,null,null,null,null,null,null,443,4,2,1,1,211,null,null,null,null,null,null,"B - 2930","Brasschaat",null,null,"schalie"]
[null,null,null,null,null,null,null,null,null,null,null,null,null,null,null,null,null,null,null,null,null,null,null,null,null,null,null,null,null,null,null,null,null,null,"schalie","SH",101,null,null,null,null,null,null,null,null,null,null,null,null,null,null,null,null,null,null,null,null,null,null,null,null,null,null,444,4,2,1,1,211,null,null,null,null,null,null,"B - 2940","Stabroek",null,null,"schelp"]
[null,null,null,null,null,null,null,null,null,null,null,null,null,null,null,null,null,null,null,null,null,null,null,null,null,null,null,null,null,null,null,null,null,null,"schelp","SC",97,"fragmenten",43,null,null,null,null,null,null,null,null,null,null,null,null,null,null,null,null,null,null,null,null,null,null,null,null,null,null,null,null,null,null,null,null,null,null,null,null,"B - 2950","Kapellen",null,null,"schelpen"]
[null,null,null,null,null,null,null,null,null,null,null,null,null,null,null,null,null,null,null,null,null,null,null,null,null,null,null,null,null,null,null,null,null,null,"schelpen","SC",97,null,43,null,null,null,null,null,null,null,null,null,null,null,null,null,null,null,null,null,null,null,null,null,null,null,null,null,null,null,null,null,null,null,null,null,null,null,null,"B - 2960","Brecht",null,null,"schelpfragmenten"]
[null,null,null,null,null,null,null,null,null,null,null,null,null,null,null,null,null,null,null,null,null,null,null,null,null,null,null,null,null,null,null,null,null,null,"schelpfragmenten","SF",99,null,44,null,null,null,null,null,null,null,null,null,null,null,null,null,null,null,null,null,null,null,null,null,null,null,null,null,null,null,null,null,null,null,null,null,null,null,null,"B - 2970","Schilde",null,null,"schelpgruis"]
[null,null,null,null,null,null,null,null,null,null,null,null,null,null,null,null,null,null,null,null,null,null,null,null,null,null,null,null,null,null,null,null,null,null,"schelpgruis","SG",100,null,45,null,null,null,null,null,null,null,null,null,null,null,null,null,null,null,null,null,null,null,null,null,null,null,null,null,null,null,null,null,null,null,null,null,null,null,null,"B - 2980","Zoersel",null,null,"schiefer"]
[null,null,null,null,null,null,null,null,null,null,null,null,null,null,null,null,null,null,null,null,null,null,null,null,null,null,null,null,null,null,null,null,null,null,"schiefer","MS",76,null,null,null,null,null,null,null,null,null,null,null,null,null,null,null,null,null,null,null,null,null,null,null,null,null,null,null,null,null,null,null,null,null,null,null,null,null,null,"B - 2990","Wuustwezel",null,null,"schieferige kalkst."]
[null,null,null,null,null,null,null,null,null,null,null,null,null,null,null,null,null,null,null,null,null,null,null,null,null,null,null,null,null,null,null,null,null,null,"schieferige kalkst.","SK",103,null,null,null,null,null,null,null,null,null,null,null,null,null,null,null,null,null,null,null,null,null,null,null,null,null,null,null,null,null,null,null,null,null,null,null,null,null,null,"B - 3000","Leuven",null,null,"scoria"]
[null,null,null,null,null,null,null,null,null,null,null,null,null,null,null,null,null,null,null,null,null,null,null,null,null,null,null,null,null,null,null,null,null,null,"scoria","SO",105,null,null,null,null,null,null,null,null,null,null,null,null,null,null,null,null,null,null,null,null,null,null,null,null,null,null,null,null,null,null,null,null,null,null,null,null,null,null,"B - 3020","Herent",null,null,"sedimentair"]
[null,null,null,null,null,null,null,null,null,null,null,null,null,null,null,null,null,null,null,null,null,null,null,null,null,null,null,null,null,null,null,null,null,null,"sedimentair","SE",98,null,null,null,null,null,null,null,null,null,null,null,null,null,null,null,null,null,null,null,null,null,null,null,null,null,null,null,null,null,null,null,null,null,null,null,null,null,null,"B - 3040","Huldenberg",null,null,"serpentiniet"]
[null,null,null,null,null,null,null,null,null,null,null,null,null,null,null,null,null,null,null,null,null,null,null,null,null,null,null,null,null,null,null,null,null,null,"serpentiniet","SP",106,null,null,null,null,null,null,null,null,null,null,null,null,null,null,null,null,null,null,null,null,null,null,null,null,null,null,null,null,null,null,null,null,null,null,null,null,null,null,"B - 3050","Oud-heverlee"]
[null,null,null,null,null,null,null,null,null,null,null,null,null,null,null,null,null,null,null,null,null,null,null,null,null,null,null,null,null,null,null,null,null,null,null,null,null,null,null,null,null,null,null,null,null,null,null,null,null,null,null,null,null,null,null,null,null,null,null,null,null,null,null,null,null,null,null,null,null,null,null,null,null,null,null,"B - 3060","Bertem",null,null,"shist"]
[null,null,null,null,null,null,null,null,null,null,null,null,null,null,null,null,null,null,null,null,null,null,null,null,null,null,null,null,null,null,null,null,null,null,"shist","SY",110,null,58,null,null,null,null,null,null,null,null,null,null,null,null,null,null,null,null,null,null,null,null,null,null,null,null,null,null,null,null,null,null,null,null,null,null,null,null,"B - 3070","Kortenberg",null,null,"sideriet"]
[null,null,null,null,null,null,null,null,null,null,null,null,null,null,null,null,null,null,null,null,null,null,null,null,null,null,null,null,null,null,null,null,null,null,"sideriet","SA",96,null,null,null,null,null,null,null,null,null,null,null,null,null,null,null,null,null,null,null,null,null,null,null,null,null,null,null,null,null,null,null,null,null,null,null,null,null,null,"B - 3080","Tervuren"]
[null,null,null,null,null,null,null,null,null,null,null,null,null,null,null,null,null,null,null,null,null,null,null,null,null,null,null,null,null,null,null,null,null,null,null,null,null,null,null,null,null,null,null,null,null,null,null,null,null,null,null,null,null,null,null,null,null,null,null,null,null,null,null,null,null,null,null,null,null,null,null,null,null,null,null,"B - 3090","Overijse",null,null,"silex"]
[null,null,null,null,null,null,null,null,null,null,null,null,null,null,null,null,null,null,null,null,null,null,null,null,null,null,null,null,null,null,null,null,null,null,"silex","SX",109,null,59,null,null,null,null,null,null,null,null,null,null,null,null,null,null,null,null,null,null,null,null,null,null,null,null,null,null,null,null,null,null,null,null,null,null,null,null,"B - 3110","Rotselaar",null,null,"silt"]
[null,null,null,null,null,null,null,null,null,null,null,null,null,null,null,null,null,null,null,null,null,null,null,null,null,null,null,null,null,null,null,null,null,null,"silt","SI",66,null,33,null,null,null,null,null,null,null,null,null,null,null,null,null,null,null,null,null,null,null,null,null,null,null,null,null,null,null,null,null,null,null,null,null,null,null,null,"B - 3120","Tremelo",null,null,"siltsteen"]
[null,null,null,null,null,null,null,null,null,null,null,null,null,null,null,null,null,null,null,null,null,null,null,null,null,null,null,null,null,null,null,null,null,null,"siltsteen","SS",107,null,null,null,null,null,null,null,null,null,null,null,null,null,null,null,null,null,null,null,null,null,null,null,null,null,null,null,null,null,null,null,null,null,null,null,null,null,null,"B - 3130","Begijnendijk",null,null,"slakken"]
[null,null,null,null,null,null,null,null,null,null,null,null,null,null,null,null,null,null,null,null,null,null,null,null,null,null,null,null,null,null,null,null,null,null,"slakken","AG",7,null,46,null,null,null,null,null,null,null,null,null,null,null,null,null,null,null,null,null,null,null,null,null,null,null,null,null,null,null,null,null,null,null,null,null,null,null,null,"B - 3140","Keerbergen",null,null,"slib"]
[null,null,null,null,null,null,null,null,null,null,null,null,null,null,null,null,null,null,null,null,null,null,null,null,null,null,null,null,null,null,null,null,null,null,"slib","SL",104,null,47,null,null,null,null,null,null,null,null,null,null,null,null,null,null,null,null,null,null,null,null,null,null,null,null,null,null,null,null,null,null,null,null,null,null,null,null,"B - 3150","Haacht",null,null,"spoorwegbedding"]
[null,null,null,null,null,null,null,null,null,null,null,null,null,null,null,null,null,null,null,null,null,null,null,null,null,null,null,null,null,null,null,null,null,null,"spoorwegbedding","XX",119,null,null,null,null,null,null,null,null,null,null,null,null,null,null,null,null,null,null,null,null,null,null,null,null,null,null,null,null,null,null,null,null,null,null,null,null,null,null,"B - 3190","Boortmeerbeek",null,null,"steen"]
[null,null,null,null,null,null,null,null,null,null,null,null,null,null,null,null,null,null,null,null,null,null,null,null,null,null,null,null,null,null,null,null,null,null,"steen","ST",108,"fragmenten",48,null,null,null,null,null,null,null,null,null,null,null,null,null,null,null,null,null,null,null,null,null,null,null,null,null,null,null,null,null,null,null,null,null,null,null,null,"B - 3200","Aarschot",null,null,"steenkool"]
[null,null,null,null,null,null,null,null,null,null,null,null,null,null,null,null,null,null,null,null,null,null,null,null,null,null,null,null,null,null,null,null,null,null,"steenkool","CO",18,"brokken",49,null,null,null,null,null,null,null,null,null,null,null,null,null,null,null,null,null,null,null,null,null,null,null,null,null,null,null,null,null,null,null,null,null,null,null,null,"B - 3210","Lubbeek",null,null,"steenslag"]
[null,null,null,null,null,null,null,null,null,null,null,null,null,null,null,null,null,null,null,null,null,null,null,null,null,null,null,null,null,null,null,null,null,null,"steenslag","ST",321,null,50,null,null,null,null,null,null,null,null,null,null,null,null,null,null,null,null,null,null,null,null,null,null,null,null,null,null,null,null,null,null,null,null,null,null,null,null,"B - 3220","Holsbeek",null,null,"stenen"]
[null,null,null,null,null,null,null,null,null,null,null,null,null,null,null,null,null,null,null,null,null,null,null,null,null,null,null,null,null,null,null,null,null,null,"stenen","ST",108,null,48,null,null,null,null,null,null,null,null,null,null,null,null,null,null,null,null,null,null,null,null,null,null,null,null,null,null,null,null,null,null,null,null,null,null,null,null,"B - 3270","Scherpenheuvel-zichem",null,null,"teelaarde"]
[null,null,null,null,null,null,null,null,null,null,null,null,null,null,null,null,null,null,null,null,null,null,null,null,null,null,null,null,null,null,null,null,null,null,"teelaarde","TA",111,null,null,null,null,null,null,null,null,null,null,null,null,null,null,null,null,null,null,null,null,null,null,null,null,null,null,null,null,null,null,null,null,null,null,null,null,null,null,"B - 3290","Diest",null,null,"tuff"]
[null,null,null,null,null,null,null,null,null,null,null,null,null,null,null,null,null,null,null,null,null,null,null,null,null,null,null,null,null,null,null,null,null,null,"tuff","TB",112,null,null,null,null,null,null,null,null,null,null,null,null,null,null,null,null,null,null,null,null,null,null,null,null,null,null,null,null,null,null,null,null,null,null,null,null,null,null,"B - 3300","Tienen",null,null,"tufsteen (tuffeau)"]
[null,null,null,null,null,null,null,null,null,null,null,null,null,null,null,null,null,null,null,null,null,null,null,null,null,null,null,null,null,null,null,null,null,null,"tufsteen (tuffeau)","TS",113,null,null,null,null,null,null,null,null,null,null,null,null,null,null,null,null,null,null,null,null,null,null,null,null,null,null,null,null,null,null,null,null,null,null,null,null,null,null,"B - 3320","Hoegaarden",null,null,"veen"]
[null,null,null,null,null,null,null,null,null,null,null,null,null,null,null,null,null,null,null,null,null,null,null,null,null,null,null,null,null,null,null,null,null,null,"veen","VE",115,"houdend",51,null,null,null,null,null,null,null,null,null,null,null,null,null,null,null,null,null,null,null,null,null,null,null,null,null,null,null,null,null,null,null,null,null,null,null,null,"B - 3350","Linter",null,null,"verweerde rots"]
[null,null,null,null,null,null,null,null,null,null,null,null,null,null,null,null,null,null,null,null,null,null,null,null,null,null,null,null,null,null,null,null,null,null,"verweerde rots","RV",95,null,null,null,null,null,null,null,null,null,null,null,null,null,null,null,null,null,null,null,null,null,null,null,null,null,null,null,null,null,null,null,null,null,null,null,null,null,null,"B - 3360","Bierbeek",null,null,"vulkanisch gesteente"]
[null,null,null,null,null,null,null,null,null,null,null,null,null,null,null,null,null,null,null,null,null,null,null,null,null,null,null,null,null,null,null,null,null,null,"vulkanisch gesteente","VA",114,null,null,null,null,null,null,null,null,null,null,null,null,null,null,null,null,null,null,null,null,null,null,null,null,null,null,null,null,null,null,null,null,null,null,null,null,null,null,"B - 3370","Boutersem",null,null,"vuursteen"]
[null,null,null,null,null,null,null,null,null,null,null,null,null,null,null,null,null,null,null,null,null,null,null,null,null,null,null,null,null,null,null,null,null,null,"vuursteen","VS",116,null,null,null,null,null,null,null,null,null,null,null,null,null,null,null,null,null,null,null,null,null,null,null,null,null,null,null,null,null,null,null,null,null,null,null,null,null,null,"B - 3380","Glabbeek-zuurbemde",null,null,"wacksteen"]
[null,null,null,null,null,null,null,null,null,null,null,null,null,null,null,null,null,null,null,null,null,null,null,null,null,null,null,null,null,null,null,null,null,null,"wacksteen","WA",117,null,null,null,null,null,null,null,null,null,null,null,null,null,null,null,null,null,null,null,null,null,null,null,null,null,null,null,null,null,null,null,null,null,null,null,null,null,null,"B - 3390","Tielt-winge",null,null,"wegverharding"]
[null,null,null,null,null,null,null,null,null,null,null,null,null,null,null,null,null,null,null,null,null,null,null,null,null,null,null,null,null,null,null,null,null,null,"wegverharding","XX",999,null,52,null,null,null,null,null,null,null,null,null,null,null,null,null,null,null,null,null,null,null,null,null,null,null,null,null,null,null,null,null,null,null,null,null,null,null,null,"B - 3400","Landen",null,null,"wortel"]
[null,null,null,null,null,null,null,null,null,null,null,null,null,null,null,null,null,null,null,null,null,null,null,null,null,null,null,null,null,null,null,null,null,null,"wortel","PL",86,null,53,null,null,null,null,null,null,null,null,null,null,null,null,null,null,null,null,null,null,null,null,null,null,null,null,null,null,null,null,null,null,null,null,null,null,null,null,"B - 3440","Zoutleeuw",null,null,"zand"]
[null,null,null,null,null,null,null,null,null,null,null,null,null,null,null,null,null,null,null,null,null,null,null,null,null,null,null,null,null,null,null,null,null,null,"zand","XZ",120,"houdend",54,null,null,null,null,null,null,null,null,null,null,null,null,null,null,null,null,null,null,null,null,null,null,null,null,null,null,null,null,null,null,null,null,null,null,null,null,"B - 3450","Geetbets",null,null,"zandleem"]
[null,null,null,null,null,null,null,null,null,null,null,null,null,null,null,null,null,null,null,null,null,null,null,null,null,null,null,null,null,null,null,null,null,null,"zandleem","ZL",123,null,null,null,null,null,null,null,null,null,null,null,null,null,null,null,null,null,null,null,null,null,null,null,null,null,null,null,null,null,null,null,null,null,null,null,null,null,null,"B - 3460","Bekkevoort",null,null,"zandsteen"]
[null,null,null,null,null,null,null,null,null,null,null,null,null,null,null,null,null,null,null,null,null,null,null,null,null,null,null,null,null,null,null,null,null,null,"zandsteen","ZS",124,"brokken",55,null,null,null,null,null,null,null,null,null,null,null,null,null,null,null,null,null,null,null,null,null,null,null,null,null,null,null,null,null,null,null,null,null,null,null,null,"B - 3470","Kortenaken",null,null,"zeepsteen"]
[null,null,null,null,null,null,null,null,null,null,null,null,null,null,null,null,null,null,null,null,null,null,null,null,null,null,null,null,null,null,null,null,null,null,"zeepsteen","ZE",121,null,null,null,null,null,null,null,null,null,null,null,null,null,null,null,null,null,null,null,null,null,null,null,null,null,null,null,null,null,null,null,null,null,null,null,null,null,null,"B - 3500","Hasselt",null,null,"zeer fijn tot fijn zand"]
[null,null,null,null,null,null,null,null,null,null,null,null,null,null,null,null,null,null,null,null,null,null,null,null,null,null,null,null,null,null,null,null,null,null,"zeer fijn tot fijn zand","FZ",34,"houdend",11,null,null,null,null,null,null,null,null,null,null,null,null,null,null,null,null,null,null,null,null,null,null,null,null,null,null,null,null,null,null,null,null,null,null,null,null,"B - 3520","Zonhoven",null,null,"zeer fijn zand"]
[null,null,null,null,null,null,null,null,null,null,null,null,null,null,null,null,null,null,null,null,null,null,null,null,null,null,null,null,null,null,null,null,null,null,"zeer fijn zand","FZ",34,"houdend",11,null,null,null,null,null,null,null,null,null,null,null,null,null,null,null,null,null,null,null,null,null,null,null,null,null,null,null,null,null,null,null,null,null,null,null,null,"B - 3530","Houthalen-helchteren",null,null,"afval"]
[null,null,null,null,null,null,null,null,null,null,null,null,null,null,null,null,null,null,null,null,null,null,null,null,null,null,null,null,null,null,null,null,null,null,"afval","AF",141.27555002259299,null,52.6582781890597,null,null,null,null,null,null,null,null,null,null,null,null,null,null,null,null,null,null,null,null,null,null,null,null,null,null,null,null,null,null,null,null,null,null,null,null,"B - 3540","Herk-de-stad",null,null,"afval"]
[null,null,null,null,null,null,null,null,null,null,null,null,null,null,null,null,null,null,null,null,null,null,null,null,null,null,null,null,null,null,null,null,null,null,"afval","AF",142.06856866770599,null,52.956522623229198,null,null,null,null,null,null,null,null,null,null,null,null,null,null,null,null,null,null,null,null,null,null,null,null,null,null,null,null,null,null,null,null,null,null,null,null,"B - 3545","Halen",null,null,"afval"]
[null,null,null,null,null,null,null,null,null,null,null,null,null,null,null,null,null,null,null,null,null,null,null,null,null,null,null,null,null,null,null,null,null,null,"afval","AF",142.86158731281799,null,53.254767057398702,null,null,null,null,null,null,null,null,null,null,null,null,null,null,null,null,null,null,null,null,null,null,null,null,null,null,null,null,null,null,null,null,null,null,null,null,"B - 3550","Heusden-zolder"]
[null,null,null,null,null,null,null,null,null,null,null,null,null,null,null,null,null,null,null,null,null,null,null,null,null,null,null,null,null,null,null,null,null,null,null,null,null,null,null,null,null,null,null,null,null,null,null,null,null,null,null,null,null,null,null,null,null,null,null,null,null,null,null,null,null,null,null,null,null,null,null,null,null,null,null,"B - 3560","Lummen"]
[null,null,null,null,null,null,null,null,null,null,null,null,null,null,null,null,null,null,null,null,null,null,null,null,null,null,null,null,null,null,null,null,null,null,null,null,null,null,null,null,null,null,null,null,null,null,null,null,null,null,null,null,null,null,null,null,null,null,null,null,null,null,null,null,null,null,null,null,null,null,null,null,null,null,null,"B - 3570","Alken"]
[null,null,null,null,null,null,null,null,null,null,null,null,null,null,null,null,null,null,null,null,null,null,null,null,null,null,null,null,null,null,null,null,null,null,null,null,null,null,null,null,null,null,null,null,null,null,null,null,null,null,null,null,null,null,null,null,null,null,null,null,null,null,null,null,null,null,null,null,null,null,null,null,null,null,null,"B - 3580","Beringen"]
[null,null,null,null,null,null,null,null,null,null,null,null,null,null,null,null,null,null,null,null,null,null,null,null,null,null,null,null,null,null,null,null,null,null,null,null,null,null,null,null,null,null,null,null,null,null,null,null,null,null,null,null,null,null,null,null,null,null,null,null,null,null,null,null,null,null,null,null,null,null,null,null,null,null,null,"B - 3590","Diepenbeek"]
[null,null,null,null,null,null,null,null,null,null,null,null,null,null,null,null,null,null,null,null,null,null,null,null,null,null,null,null,null,null,null,null,null,null,null,null,null,null,null,null,null,null,null,null,null,null,null,null,null,null,null,null,null,null,null,null,null,null,null,null,null,null,null,null,null,null,null,null,null,null,null,null,null,null,null,"B - 3600","Genk"]
[null,null,null,null,null,null,null,null,null,null,null,null,null,null,null,null,null,null,null,null,null,null,null,null,null,null,null,null,null,null,null,null,null,null,null,null,null,null,null,null,null,null,null,null,null,null,null,null,null,null,null,null,null,null,null,null,null,null,null,null,null,null,null,null,null,null,null,null,null,null,null,null,null,null,null,"B - 3620","Lanaken"]
[null,null,null,null,null,null,null,null,null,null,null,null,null,null,null,null,null,null,null,null,null,null,null,null,null,null,null,null,null,null,null,null,null,null,null,null,null,null,null,null,null,null,null,null,null,null,null,null,null,null,null,null,null,null,null,null,null,null,null,null,null,null,null,null,null,null,null,null,null,null,null,null,null,null,null,"B - 3630","Maasmechelen"]
[null,null,null,null,null,null,null,null,null,null,null,null,null,null,null,null,null,null,null,null,null,null,null,null,null,null,null,null,null,null,null,null,null,null,null,null,null,null,null,null,null,null,null,null,null,null,null,null,null,null,null,null,null,null,null,null,null,null,null,null,null,null,null,null,null,null,null,null,null,null,null,null,null,null,null,"B - 3640","Kinrooi"]
[null,null,null,null,null,null,null,null,null,null,null,null,null,null,null,null,null,null,null,null,null,null,null,null,null,null,null,null,null,null,null,null,null,null,null,null,null,null,null,null,null,null,null,null,null,null,null,null,null,null,null,null,null,null,null,null,null,null,null,null,null,null,null,null,null,null,null,null,null,null,null,null,null,null,null,"B - 3650","Dilsen-stokkem"]
[null,null,null,null,null,null,null,null,null,null,null,null,null,null,null,null,null,null,null,null,null,null,null,null,null,null,null,null,null,null,null,null,null,null,null,null,null,null,null,null,null,null,null,null,null,null,null,null,null,null,null,null,null,null,null,null,null,null,null,null,null,null,null,null,null,null,null,null,null,null,null,null,null,null,null,"B - 3660","Opglabbeek"]
[null,null,null,null,null,null,null,null,null,null,null,null,null,null,null,null,null,null,null,null,null,null,null,null,null,null,null,null,null,null,null,null,null,null,null,null,null,null,null,null,null,null,null,null,null,null,null,null,null,null,null,null,null,null,null,null,null,null,null,null,null,null,null,null,null,null,null,null,null,null,null,null,null,null,null,"B - 3665","As"]
[null,null,null,null,null,null,null,null,null,null,null,null,null,null,null,null,null,null,null,null,null,null,null,null,null,null,null,null,null,null,null,null,null,null,null,null,null,null,null,null,null,null,null,null,null,null,null,null,null,null,null,null,null,null,null,null,null,null,null,null,null,null,null,null,null,null,null,null,null,null,null,null,null,null,null,"B - 3670","Meeuwen-gruitrode"]
[null,null,null,null,null,null,null,null,null,null,null,null,null,null,null,null,null,null,null,null,null,null,null,null,null,null,null,null,null,null,null,null,null,null,null,null,null,null,null,null,null,null,null,null,null,null,null,null,null,null,null,null,null,null,null,null,null,null,null,null,null,null,null,null,null,null,null,null,null,null,null,null,null,null,null,"B - 3680","Maaseik"]
[null,null,null,null,null,null,null,null,null,null,null,null,null,null,null,null,null,null,null,null,null,null,null,null,null,null,null,null,null,null,null,null,null,null,null,null,null,null,null,null,null,null,null,null,null,null,null,null,null,null,null,null,null,null,null,null,null,null,null,null,null,null,null,null,null,null,null,null,null,null,null,null,null,null,null,"B - 3690","Zutendaal"]
[null,null,null,null,null,null,null,null,null,null,null,null,null,null,null,null,null,null,null,null,null,null,null,null,null,null,null,null,null,null,null,null,null,null,null,null,null,null,null,null,null,null,null,null,null,null,null,null,null,null,null,null,null,null,null,null,null,null,null,null,null,null,null,null,null,null,null,null,null,null,null,null,null,null,null,"B - 3700","Tongeren"]
[null,null,null,null,null,null,null,null,null,null,null,null,null,null,null,null,null,null,null,null,null,null,null,null,null,null,null,null,null,null,null,null,null,null,null,null,null,null,null,null,null,null,null,null,null,null,null,null,null,null,null,null,null,null,null,null,null,null,null,null,null,null,null,null,null,null,null,null,null,null,null,null,null,null,null,"B - 3717","Herstappe"]
[null,null,null,null,null,null,null,null,null,null,null,null,null,null,null,null,null,null,null,null,null,null,null,null,null,null,null,null,null,null,null,null,null,null,null,null,null,null,null,null,null,null,null,null,null,null,null,null,null,null,null,null,null,null,null,null,null,null,null,null,null,null,null,null,null,null,null,null,null,null,null,null,null,null,null,"B - 3720","Kortessem"]
[null,null,null,null,null,null,null,null,null,null,null,null,null,null,null,null,null,null,null,null,null,null,null,null,null,null,null,null,null,null,null,null,null,null,null,null,null,null,null,null,null,null,null,null,null,null,null,null,null,null,null,null,null,null,null,null,null,null,null,null,null,null,null,null,null,null,null,null,null,null,null,null,null,null,null,"B - 3730","Hoeselt"]
[null,null,null,null,null,null,null,null,null,null,null,null,null,null,null,null,null,null,null,null,null,null,null,null,null,null,null,null,null,null,null,null,null,null,null,null,null,null,null,null,null,null,null,null,null,null,null,null,null,null,null,null,null,null,null,null,null,null,null,null,null,null,null,null,null,null,null,null,null,null,null,null,null,null,null,"B - 3740","Bilzen"]
[null,null,null,null,null,null,null,null,null,null,null,null,null,null,null,null,null,null,null,null,null,null,null,null,null,null,null,null,null,null,null,null,null,null,null,null,null,null,null,null,null,null,null,null,null,null,null,null,null,null,null,null,null,null,null,null,null,null,null,null,null,null,null,null,null,null,null,null,null,null,null,null,null,null,null,"B - 3770","Riemst"]
[null,null,null,null,null,null,null,null,null,null,null,null,null,null,null,null,null,null,null,null,null,null,null,null,null,null,null,null,null,null,null,null,null,null,null,null,null,null,null,null,null,null,null,null,null,null,null,null,null,null,null,null,null,null,null,null,null,null,null,null,null,null,null,null,null,null,null,null,null,null,null,null,null,null,null,"B - 3790","Voeren"]
[null,null,null,null,null,null,null,null,null,null,null,null,null,null,null,null,null,null,null,null,null,null,null,null,null,null,null,null,null,null,null,null,null,null,null,null,null,null,null,null,null,null,null,null,null,null,null,null,null,null,null,null,null,null,null,null,null,null,null,null,null,null,null,null,null,null,null,null,null,null,null,null,null,null,null,"B - 3800","Sint-truiden"]
[null,null,null,null,null,null,null,null,null,null,null,null,null,null,null,null,null,null,null,null,null,null,null,null,null,null,null,null,null,null,null,null,null,null,null,null,null,null,null,null,null,null,null,null,null,null,null,null,null,null,null,null,null,null,null,null,null,null,null,null,null,null,null,null,null,null,null,null,null,null,null,null,null,null,null,"B - 3830","Wellen"]
[null,null,null,null,null,null,null,null,null,null,null,null,null,null,null,null,null,null,null,null,null,null,null,null,null,null,null,null,null,null,null,null,null,null,null,null,null,null,null,null,null,null,null,null,null,null,null,null,null,null,null,null,null,null,null,null,null,null,null,null,null,null,null,null,null,null,null,null,null,null,null,null,null,null,null,"B - 3840","Borgloon"]
[null,null,null,null,null,null,null,null,null,null,null,null,null,null,null,null,null,null,null,null,null,null,null,null,null,null,null,null,null,null,null,null,null,null,null,null,null,null,null,null,null,null,null,null,null,null,null,null,null,null,null,null,null,null,null,null,null,null,null,null,null,null,null,null,null,null,null,null,null,null,null,null,null,null,null,"B - 3850","Nieuwerkerken"]
[null,null,null,null,null,null,null,null,null,null,null,null,null,null,null,null,null,null,null,null,null,null,null,null,null,null,null,null,null,null,null,null,null,null,null,null,null,null,null,null,null,null,null,null,null,null,null,null,null,null,null,null,null,null,null,null,null,null,null,null,null,null,null,null,null,null,null,null,null,null,null,null,null,null,null,"B - 3870","Heers"]
[null,null,null,null,null,null,null,null,null,null,null,null,null,null,null,null,null,null,null,null,null,null,null,null,null,null,null,null,null,null,null,null,null,null,null,null,null,null,null,null,null,null,null,null,null,null,null,null,null,null,null,null,null,null,null,null,null,null,null,null,null,null,null,null,null,null,null,null,null,null,null,null,null,null,null,"B - 3890","Gingelom"]
[null,null,null,null,null,null,null,null,null,null,null,null,null,null,null,null,null,null,null,null,null,null,null,null,null,null,null,null,null,null,null,null,null,null,null,null,null,null,null,null,null,null,null,null,null,null,null,null,null,null,null,null,null,null,null,null,null,null,null,null,null,null,null,null,null,null,null,null,null,null,null,null,null,null,null,"B - 3900","Overpelt"]
[null,null,null,null,null,null,null,null,null,null,null,null,null,null,null,null,null,null,null,null,null,null,null,null,null,null,null,null,null,null,null,null,null,null,null,null,null,null,null,null,null,null,null,null,null,null,null,null,null,null,null,null,null,null,null,null,null,null,null,null,null,null,null,null,null,null,null,null,null,null,null,null,null,null,null,"B - 3910","Neerpelt"]
[null,null,null,null,null,null,null,null,null,null,null,null,null,null,null,null,null,null,null,null,null,null,null,null,null,null,null,null,null,null,null,null,null,null,null,null,null,null,null,null,null,null,null,null,null,null,null,null,null,null,null,null,null,null,null,null,null,null,null,null,null,null,null,null,null,null,null,null,null,null,null,null,null,null,null,"B - 3920","Lommel"]
[null,null,null,null,null,null,null,null,null,null,null,null,null,null,null,null,null,null,null,null,null,null,null,null,null,null,null,null,null,null,null,null,null,null,null,null,null,null,null,null,null,null,null,null,null,null,null,null,null,null,null,null,null,null,null,null,null,null,null,null,null,null,null,null,null,null,null,null,null,null,null,null,null,null,null,"B - 3930","Hamont-achel"]
[null,null,null,null,null,null,null,null,null,null,null,null,null,null,null,null,null,null,null,null,null,null,null,null,null,null,null,null,null,null,null,null,null,null,null,null,null,null,null,null,null,null,null,null,null,null,null,null,null,null,null,null,null,null,null,null,null,null,null,null,null,null,null,null,null,null,null,null,null,null,null,null,null,null,null,"B - 3940","Hechtel-eksel"]
[null,null,null,null,null,null,null,null,null,null,null,null,null,null,null,null,null,null,null,null,null,null,null,null,null,null,null,null,null,null,null,null,null,null,null,null,null,null,null,null,null,null,null,null,null,null,null,null,null,null,null,null,null,null,null,null,null,null,null,null,null,null,null,null,null,null,null,null,null,null,null,null,null,null,null,"B - 3945","Ham"]
[null,null,null,null,null,null,null,null,null,null,null,null,null,null,null,null,null,null,null,null,null,null,null,null,null,null,null,null,null,null,null,null,null,null,null,null,null,null,null,null,null,null,null,null,null,null,null,null,null,null,null,null,null,null,null,null,null,null,null,null,null,null,null,null,null,null,null,null,null,null,null,null,null,null,null,"B - 3950","Bocholt"]
[null,null,null,null,null,null,null,null,null,null,null,null,null,null,null,null,null,null,null,null,null,null,null,null,null,null,null,null,null,null,null,null,null,null,null,null,null,null,null,null,null,null,null,null,null,null,null,null,null,null,null,null,null,null,null,null,null,null,null,null,null,null,null,null,null,null,null,null,null,null,null,null,null,null,null,"B - 3960","Bree"]
[null,null,null,null,null,null,null,null,null,null,null,null,null,null,null,null,null,null,null,null,null,null,null,null,null,null,null,null,null,null,null,null,null,null,null,null,null,null,null,null,null,null,null,null,null,null,null,null,null,null,null,null,null,null,null,null,null,null,null,null,null,null,null,null,null,null,null,null,null,null,null,null,null,null,null,"B - 3970","Leopoldsburg"]
[null,null,null,null,null,null,null,null,null,null,null,null,null,null,null,null,null,null,null,null,null,null,null,null,null,null,null,null,null,null,null,null,null,null,null,null,null,null,null,null,null,null,null,null,null,null,null,null,null,null,null,null,null,null,null,null,null,null,null,null,null,null,null,null,null,null,null,null,null,null,null,null,null,null,null,"B - 3980","Tessenderlo"]
[null,null,null,null,null,null,null,null,null,null,null,null,null,null,null,null,null,null,null,null,null,null,null,null,null,null,null,null,null,null,null,null,null,null,null,null,null,null,null,null,null,null,null,null,null,null,null,null,null,null,null,null,null,null,null,null,null,null,null,null,null,null,null,null,null,null,null,null,null,null,null,null,null,null,null,"B - 3990","Peer"]
[null,null,null,null,null,null,null,null,null,null,null,null,null,null,null,null,null,null,null,null,null,null,null,null,null,null,null,null,null,null,null,null,null,null,null,null,null,null,null,null,null,null,null,null,null,null,null,null,null,null,null,null,null,null,null,null,null,null,null,null,null,null,null,null,null,null,null,null,null,null,null,null,null,null,null,"B - 4000","Liege"]
[null,null,null,null,null,null,null,null,null,null,null,null,null,null,null,null,null,null,null,null,null,null,null,null,null,null,null,null,null,null,null,null,null,null,null,null,null,null,null,null,null,null,null,null,null,null,null,null,null,null,null,null,null,null,null,null,null,null,null,null,null,null,null,null,null,null,null,null,null,null,null,null,null,null,null,"B - 4040","Herstal"]
[null,null,null,null,null,null,null,null,null,null,null,null,null,null,null,null,null,null,null,null,null,null,null,null,null,null,null,null,null,null,null,null,null,null,null,null,null,null,null,null,null,null,null,null,null,null,null,null,null,null,null,null,null,null,null,null,null,null,null,null,null,null,null,null,null,null,null,null,null,null,null,null,null,null,null,"B - 4050","Chaudfontaine"]
[null,null,null,null,null,null,null,null,null,null,null,null,null,null,null,null,null,null,null,null,null,null,null,null,null,null,null,null,null,null,null,null,null,null,null,null,null,null,null,null,null,null,null,null,null,null,null,null,null,null,null,null,null,null,null,null,null,null,null,null,null,null,null,null,null,null,null,null,null,null,null,null,null,null,null,"B - 4100","Seraing"]
[null,null,null,null,null,null,null,null,null,null,null,null,null,null,null,null,null,null,null,null,null,null,null,null,null,null,null,null,null,null,null,null,null,null,null,null,null,null,null,null,null,null,null,null,null,null,null,null,null,null,null,null,null,null,null,null,null,null,null,null,null,null,null,null,null,null,null,null,null,null,null,null,null,null,null,"B - 4120","Neupre"]
[null,null,null,null,null,null,null,null,null,null,null,null,null,null,null,null,null,null,null,null,null,null,null,null,null,null,null,null,null,null,null,null,null,null,null,null,null,null,null,null,null,null,null,null,null,null,null,null,null,null,null,null,null,null,null,null,null,null,null,null,null,null,null,null,null,null,null,null,null,null,null,null,null,null,null,"B - 4130","Esneux"]
[null,null,null,null,null,null,null,null,null,null,null,null,null,null,null,null,null,null,null,null,null,null,null,null,null,null,null,null,null,null,null,null,null,null,null,null,null,null,null,null,null,null,null,null,null,null,null,null,null,null,null,null,null,null,null,null,null,null,null,null,null,null,null,null,null,null,null,null,null,null,null,null,null,null,null,"B - 4140","Sprimont"]
[null,null,null,null,null,null,null,null,null,null,null,null,null,null,null,null,null,null,null,null,null,null,null,null,null,null,null,null,null,null,null,null,null,null,null,null,null,null,null,null,null,null,null,null,null,null,null,null,null,null,null,null,null,null,null,null,null,null,null,null,null,null,null,null,null,null,null,null,null,null,null,null,null,null,null,"B - 4160","Anthisnes"]
[null,null,null,null,null,null,null,null,null,null,null,null,null,null,null,null,null,null,null,null,null,null,null,null,null,null,null,null,null,null,null,null,null,null,null,null,null,null,null,null,null,null,null,null,null,null,null,null,null,null,null,null,null,null,null,null,null,null,null,null,null,null,null,null,null,null,null,null,null,null,null,null,null,null,null,"B - 4170","Comblain-au-pont"]
[null,null,null,null,null,null,null,null,null,null,null,null,null,null,null,null,null,null,null,null,null,null,null,null,null,null,null,null,null,null,null,null,null,null,null,null,null,null,null,null,null,null,null,null,null,null,null,null,null,null,null,null,null,null,null,null,null,null,null,null,null,null,null,null,null,null,null,null,null,null,null,null,null,null,null,"B - 4180","Hamoir"]
[null,null,null,null,null,null,null,null,null,null,null,null,null,null,null,null,null,null,null,null,null,null,null,null,null,null,null,null,null,null,null,null,null,null,null,null,null,null,null,null,null,null,null,null,null,null,null,null,null,null,null,null,null,null,null,null,null,null,null,null,null,null,null,null,null,null,null,null,null,null,null,null,null,null,null,"B - 4190","Ferrieres"]
[null,null,null,null,null,null,null,null,null,null,null,null,null,null,null,null,null,null,null,null,null,null,null,null,null,null,null,null,null,null,null,null,null,null,null,null,null,null,null,null,null,null,null,null,null,null,null,null,null,null,null,null,null,null,null,null,null,null,null,null,null,null,null,null,null,null,null,null,null,null,null,null,null,null,null,"B - 4210","Burdinne"]
[null,null,null,null,null,null,null,null,null,null,null,null,null,null,null,null,null,null,null,null,null,null,null,null,null,null,null,null,null,null,null,null,null,null,null,null,null,null,null,null,null,null,null,null,null,null,null,null,null,null,null,null,null,null,null,null,null,null,null,null,null,null,null,null,null,null,null,null,null,null,null,null,null,null,null,"B - 4217","Heron"]
[null,null,null,null,null,null,null,null,null,null,null,null,null,null,null,null,null,null,null,null,null,null,null,null,null,null,null,null,null,null,null,null,null,null,null,null,null,null,null,null,null,null,null,null,null,null,null,null,null,null,null,null,null,null,null,null,null,null,null,null,null,null,null,null,null,null,null,null,null,null,null,null,null,null,null,"B - 4219","Wasseiges"]
[null,null,null,null,null,null,null,null,null,null,null,null,null,null,null,null,null,null,null,null,null,null,null,null,null,null,null,null,null,null,null,null,null,null,null,null,null,null,null,null,null,null,null,null,null,null,null,null,null,null,null,null,null,null,null,null,null,null,null,null,null,null,null,null,null,null,null,null,null,null,null,null,null,null,null,"B - 4250","Geer"]
[null,null,null,null,null,null,null,null,null,null,null,null,null,null,null,null,null,null,null,null,null,null,null,null,null,null,null,null,null,null,null,null,null,null,null,null,null,null,null,null,null,null,null,null,null,null,null,null,null,null,null,null,null,null,null,null,null,null,null,null,null,null,null,null,null,null,null,null,null,null,null,null,null,null,null,"B - 4257","Berloz"]
[null,null,null,null,null,null,null,null,null,null,null,null,null,null,null,null,null,null,null,null,null,null,null,null,null,null,null,null,null,null,null,null,null,null,null,null,null,null,null,null,null,null,null,null,null,null,null,null,null,null,null,null,null,null,null,null,null,null,null,null,null,null,null,null,null,null,null,null,null,null,null,null,null,null,null,"B - 4260","Braives"]
[null,null,null,null,null,null,null,null,null,null,null,null,null,null,null,null,null,null,null,null,null,null,null,null,null,null,null,null,null,null,null,null,null,null,null,null,null,null,null,null,null,null,null,null,null,null,null,null,null,null,null,null,null,null,null,null,null,null,null,null,null,null,null,null,null,null,null,null,null,null,null,null,null,null,null,"B - 4280","Hannut"]
[null,null,null,null,null,null,null,null,null,null,null,null,null,null,null,null,null,null,null,null,null,null,null,null,null,null,null,null,null,null,null,null,null,null,null,null,null,null,null,null,null,null,null,null,null,null,null,null,null,null,null,null,null,null,null,null,null,null,null,null,null,null,null,null,null,null,null,null,null,null,null,null,null,null,null,"B - 4287","Lincent"]
[null,null,null,null,null,null,null,null,null,null,null,null,null,null,null,null,null,null,null,null,null,null,null,null,null,null,null,null,null,null,null,null,null,null,null,null,null,null,null,null,null,null,null,null,null,null,null,null,null,null,null,null,null,null,null,null,null,null,null,null,null,null,null,null,null,null,null,null,null,null,null,null,null,null,null,"B - 4300","Waremme"]
[null,null,null,null,null,null,null,null,null,null,null,null,null,null,null,null,null,null,null,null,null,null,null,null,null,null,null,null,null,null,null,null,null,null,null,null,null,null,null,null,null,null,null,null,null,null,null,null,null,null,null,null,null,null,null,null,null,null,null,null,null,null,null,null,null,null,null,null,null,null,null,null,null,null,null,"B - 4317","Faimes"]
[null,null,null,null,null,null,null,null,null,null,null,null,null,null,null,null,null,null,null,null,null,null,null,null,null,null,null,null,null,null,null,null,null,null,null,null,null,null,null,null,null,null,null,null,null,null,null,null,null,null,null,null,null,null,null,null,null,null,null,null,null,null,null,null,null,null,null,null,null,null,null,null,null,null,null,"B - 4340","Awans"]
[null,null,null,null,null,null,null,null,null,null,null,null,null,null,null,null,null,null,null,null,null,null,null,null,null,null,null,null,null,null,null,null,null,null,null,null,null,null,null,null,null,null,null,null,null,null,null,null,null,null,null,null,null,null,null,null,null,null,null,null,null,null,null,null,null,null,null,null,null,null,null,null,null,null,null,"B - 4347","Fexhe-le-haut-clocher"]
[null,null,null,null,null,null,null,null,null,null,null,null,null,null,null,null,null,null,null,null,null,null,null,null,null,null,null,null,null,null,null,null,null,null,null,null,null,null,null,null,null,null,null,null,null,null,null,null,null,null,null,null,null,null,null,null,null,null,null,null,null,null,null,null,null,null,null,null,null,null,null,null,null,null,null,"B - 4350","Remicourt"]
[null,null,null,null,null,null,null,null,null,null,null,null,null,null,null,null,null,null,null,null,null,null,null,null,null,null,null,null,null,null,null,null,null,null,null,null,null,null,null,null,null,null,null,null,null,null,null,null,null,null,null,null,null,null,null,null,null,null,null,null,null,null,null,null,null,null,null,null,null,null,null,null,null,null,null,"B - 4357","Donceel"]
[null,null,null,null,null,null,null,null,null,null,null,null,null,null,null,null,null,null,null,null,null,null,null,null,null,null,null,null,null,null,null,null,null,null,null,null,null,null,null,null,null,null,null,null,null,null,null,null,null,null,null,null,null,null,null,null,null,null,null,null,null,null,null,null,null,null,null,null,null,null,null,null,null,null,null,"B - 4360","Oreye"]
[null,null,null,null,null,null,null,null,null,null,null,null,null,null,null,null,null,null,null,null,null,null,null,null,null,null,null,null,null,null,null,null,null,null,null,null,null,null,null,null,null,null,null,null,null,null,null,null,null,null,null,null,null,null,null,null,null,null,null,null,null,null,null,null,null,null,null,null,null,null,null,null,null,null,null,"B - 4367","Crisnee"]
[null,null,null,null,null,null,null,null,null,null,null,null,null,null,null,null,null,null,null,null,null,null,null,null,null,null,null,null,null,null,null,null,null,null,null,null,null,null,null,null,null,null,null,null,null,null,null,null,null,null,null,null,null,null,null,null,null,null,null,null,null,null,null,null,null,null,null,null,null,null,null,null,null,null,null,"B - 4400","Flemalle"]
[null,null,null,null,null,null,null,null,null,null,null,null,null,null,null,null,null,null,null,null,null,null,null,null,null,null,null,null,null,null,null,null,null,null,null,null,null,null,null,null,null,null,null,null,null,null,null,null,null,null,null,null,null,null,null,null,null,null,null,null,null,null,null,null,null,null,null,null,null,null,null,null,null,null,null,"B - 4420","Saint-nicolas"]
[null,null,null,null,null,null,null,null,null,null,null,null,null,null,null,null,null,null,null,null,null,null,null,null,null,null,null,null,null,null,null,null,null,null,null,null,null,null,null,null,null,null,null,null,null,null,null,null,null,null,null,null,null,null,null,null,null,null,null,null,null,null,null,null,null,null,null,null,null,null,null,null,null,null,null,"B - 4430","Ans"]
[null,null,null,null,null,null,null,null,null,null,null,null,null,null,null,null,null,null,null,null,null,null,null,null,null,null,null,null,null,null,null,null,null,null,null,null,null,null,null,null,null,null,null,null,null,null,null,null,null,null,null,null,null,null,null,null,null,null,null,null,null,null,null,null,null,null,null,null,null,null,null,null,null,null,null,"B - 4450","Juprelle"]
[null,null,null,null,null,null,null,null,null,null,null,null,null,null,null,null,null,null,null,null,null,null,null,null,null,null,null,null,null,null,null,null,null,null,null,null,null,null,null,null,null,null,null,null,null,null,null,null,null,null,null,null,null,null,null,null,null,null,null,null,null,null,null,null,null,null,null,null,null,null,null,null,null,null,null,"B - 4460","Grace-hollogne"]
[null,null,null,null,null,null,null,null,null,null,null,null,null,null,null,null,null,null,null,null,null,null,null,null,null,null,null,null,null,null,null,null,null,null,null,null,null,null,null,null,null,null,null,null,null,null,null,null,null,null,null,null,null,null,null,null,null,null,null,null,null,null,null,null,null,null,null,null,null,null,null,null,null,null,null,"B - 4470","St.-georges-sur-meuse"]
[null,null,null,null,null,null,null,null,null,null,null,null,null,null,null,null,null,null,null,null,null,null,null,null,null,null,null,null,null,null,null,null,null,null,null,null,null,null,null,null,null,null,null,null,null,null,null,null,null,null,null,null,null,null,null,null,null,null,null,null,null,null,null,null,null,null,null,null,null,null,null,null,null,null,null,"B - 4480","Engis"]
[null,null,null,null,null,null,null,null,null,null,null,null,null,null,null,null,null,null,null,null,null,null,null,null,null,null,null,null,null,null,null,null,null,null,null,null,null,null,null,null,null,null,null,null,null,null,null,null,null,null,null,null,null,null,null,null,null,null,null,null,null,null,null,null,null,null,null,null,null,null,null,null,null,null,null,"B - 4500","Huy"]
[null,null,null,null,null,null,null,null,null,null,null,null,null,null,null,null,null,null,null,null,null,null,null,null,null,null,null,null,null,null,null,null,null,null,null,null,null,null,null,null,null,null,null,null,null,null,null,null,null,null,null,null,null,null,null,null,null,null,null,null,null,null,null,null,null,null,null,null,null,null,null,null,null,null,null,"B - 4520","Wanze"]
[null,null,null,null,null,null,null,null,null,null,null,null,null,null,null,null,null,null,null,null,null,null,null,null,null,null,null,null,null,null,null,null,null,null,null,null,null,null,null,null,null,null,null,null,null,null,null,null,null,null,null,null,null,null,null,null,null,null,null,null,null,null,null,null,null,null,null,null,null,null,null,null,null,null,null,"B - 4530","Villers-le-bouillet"]
[null,null,null,null,null,null,null,null,null,null,null,null,null,null,null,null,null,null,null,null,null,null,null,null,null,null,null,null,null,null,null,null,null,null,null,null,null,null,null,null,null,null,null,null,null,null,null,null,null,null,null,null,null,null,null,null,null,null,null,null,null,null,null,null,null,null,null,null,null,null,null,null,null,null,null,"B - 4537","Verlaine"]
[null,null,null,null,null,null,null,null,null,null,null,null,null,null,null,null,null,null,null,null,null,null,null,null,null,null,null,null,null,null,null,null,null,null,null,null,null,null,null,null,null,null,null,null,null,null,null,null,null,null,null,null,null,null,null,null,null,null,null,null,null,null,null,null,null,null,null,null,null,null,null,null,null,null,null,"B - 4540","Amay"]
[null,null,null,null,null,null,null,null,null,null,null,null,null,null,null,null,null,null,null,null,null,null,null,null,null,null,null,null,null,null,null,null,null,null,null,null,null,null,null,null,null,null,null,null,null,null,null,null,null,null,null,null,null,null,null,null,null,null,null,null,null,null,null,null,null,null,null,null,null,null,null,null,null,null,null,"B - 4550","Nandrin"]
[null,null,null,null,null,null,null,null,null,null,null,null,null,null,null,null,null,null,null,null,null,null,null,null,null,null,null,null,null,null,null,null,null,null,null,null,null,null,null,null,null,null,null,null,null,null,null,null,null,null,null,null,null,null,null,null,null,null,null,null,null,null,null,null,null,null,null,null,null,null,null,null,null,null,null,"B - 4557","Tinlot"]
[null,null,null,null,null,null,null,null,null,null,null,null,null,null,null,null,null,null,null,null,null,null,null,null,null,null,null,null,null,null,null,null,null,null,null,null,null,null,null,null,null,null,null,null,null,null,null,null,null,null,null,null,null,null,null,null,null,null,null,null,null,null,null,null,null,null,null,null,null,null,null,null,null,null,null,"B - 4560","Clavier"]
[null,null,null,null,null,null,null,null,null,null,null,null,null,null,null,null,null,null,null,null,null,null,null,null,null,null,null,null,null,null,null,null,null,null,null,null,null,null,null,null,null,null,null,null,null,null,null,null,null,null,null,null,null,null,null,null,null,null,null,null,null,null,null,null,null,null,null,null,null,null,null,null,null,null,null,"B - 4570","Marchin"]
[null,null,null,null,null,null,null,null,null,null,null,null,null,null,null,null,null,null,null,null,null,null,null,null,null,null,null,null,null,null,null,null,null,null,null,null,null,null,null,null,null,null,null,null,null,null,null,null,null,null,null,null,null,null,null,null,null,null,null,null,null,null,null,null,null,null,null,null,null,null,null,null,null,null,null,"B - 4577","Modave"]
[null,null,null,null,null,null,null,null,null,null,null,null,null,null,null,null,null,null,null,null,null,null,null,null,null,null,null,null,null,null,null,null,null,null,null,null,null,null,null,null,null,null,null,null,null,null,null,null,null,null,null,null,null,null,null,null,null,null,null,null,null,null,null,null,null,null,null,null,null,null,null,null,null,null,null,"B - 4590","Ouffet"]
[null,null,null,null,null,null,null,null,null,null,null,null,null,null,null,null,null,null,null,null,null,null,null,null,null,null,null,null,null,null,null,null,null,null,null,null,null,null,null,null,null,null,null,null,null,null,null,null,null,null,null,null,null,null,null,null,null,null,null,null,null,null,null,null,null,null,null,null,null,null,null,null,null,null,null,"B - 4600","Vise"]
[null,null,null,null,null,null,null,null,null,null,null,null,null,null,null,null,null,null,null,null,null,null,null,null,null,null,null,null,null,null,null,null,null,null,null,null,null,null,null,null,null,null,null,null,null,null,null,null,null,null,null,null,null,null,null,null,null,null,null,null,null,null,null,null,null,null,null,null,null,null,null,null,null,null,null,"B - 4607","Dalhem"]
[null,null,null,null,null,null,null,null,null,null,null,null,null,null,null,null,null,null,null,null,null,null,null,null,null,null,null,null,null,null,null,null,null,null,null,null,null,null,null,null,null,null,null,null,null,null,null,null,null,null,null,null,null,null,null,null,null,null,null,null,null,null,null,null,null,null,null,null,null,null,null,null,null,null,null,"B - 4610","Beyne-heusay"]
[null,null,null,null,null,null,null,null,null,null,null,null,null,null,null,null,null,null,null,null,null,null,null,null,null,null,null,null,null,null,null,null,null,null,null,null,null,null,null,null,null,null,null,null,null,null,null,null,null,null,null,null,null,null,null,null,null,null,null,null,null,null,null,null,null,null,null,null,null,null,null,null,null,null,null,"B - 4620","Fleron"]
[null,null,null,null,null,null,null,null,null,null,null,null,null,null,null,null,null,null,null,null,null,null,null,null,null,null,null,null,null,null,null,null,null,null,null,null,null,null,null,null,null,null,null,null,null,null,null,null,null,null,null,null,null,null,null,null,null,null,null,null,null,null,null,null,null,null,null,null,null,null,null,null,null,null,null,"B - 4630","Soumagne"]
[null,null,null,null,null,null,null,null,null,null,null,null,null,null,null,null,null,null,null,null,null,null,null,null,null,null,null,null,null,null,null,null,null,null,null,null,null,null,null,null,null,null,null,null,null,null,null,null,null,null,null,null,null,null,null,null,null,null,null,null,null,null,null,null,null,null,null,null,null,null,null,null,null,null,null,"B - 4650","Herve"]
[null,null,null,null,null,null,null,null,null,null,null,null,null,null,null,null,null,null,null,null,null,null,null,null,null,null,null,null,null,null,null,null,null,null,null,null,null,null,null,null,null,null,null,null,null,null,null,null,null,null,null,null,null,null,null,null,null,null,null,null,null,null,null,null,null,null,null,null,null,null,null,null,null,null,null,"B - 4670","Blegny"]
[null,null,null,null,null,null,null,null,null,null,null,null,null,null,null,null,null,null,null,null,null,null,null,null,null,null,null,null,null,null,null,null,null,null,null,null,null,null,null,null,null,null,null,null,null,null,null,null,null,null,null,null,null,null,null,null,null,null,null,null,null,null,null,null,null,null,null,null,null,null,null,null,null,null,null,"B - 4680","Oupeye"]
[null,null,null,null,null,null,null,null,null,null,null,null,null,null,null,null,null,null,null,null,null,null,null,null,null,null,null,null,null,null,null,null,null,null,null,null,null,null,null,null,null,null,null,null,null,null,null,null,null,null,null,null,null,null,null,null,null,null,null,null,null,null,null,null,null,null,null,null,null,null,null,null,null,null,null,"B - 4690","Bassenge"]
[null,null,null,null,null,null,null,null,null,null,null,null,null,null,null,null,null,null,null,null,null,null,null,null,null,null,null,null,null,null,null,null,null,null,null,null,null,null,null,null,null,null,null,null,null,null,null,null,null,null,null,null,null,null,null,null,null,null,null,null,null,null,null,null,null,null,null,null,null,null,null,null,null,null,null,"B - 4700","Eupen"]
[null,null,null,null,null,null,null,null,null,null,null,null,null,null,null,null,null,null,null,null,null,null,null,null,null,null,null,null,null,null,null,null,null,null,null,null,null,null,null,null,null,null,null,null,null,null,null,null,null,null,null,null,null,null,null,null,null,null,null,null,null,null,null,null,null,null,null,null,null,null,null,null,null,null,null,"B - 4710","Lontzen"]
[null,null,null,null,null,null,null,null,null,null,null,null,null,null,null,null,null,null,null,null,null,null,null,null,null,null,null,null,null,null,null,null,null,null,null,null,null,null,null,null,null,null,null,null,null,null,null,null,null,null,null,null,null,null,null,null,null,null,null,null,null,null,null,null,null,null,null,null,null,null,null,null,null,null,null,"B - 4720","Kelmis"]
[null,null,null,null,null,null,null,null,null,null,null,null,null,null,null,null,null,null,null,null,null,null,null,null,null,null,null,null,null,null,null,null,null,null,null,null,null,null,null,null,null,null,null,null,null,null,null,null,null,null,null,null,null,null,null,null,null,null,null,null,null,null,null,null,null,null,null,null,null,null,null,null,null,null,null,"B - 4730","Raeren"]
[null,null,null,null,null,null,null,null,null,null,null,null,null,null,null,null,null,null,null,null,null,null,null,null,null,null,null,null,null,null,null,null,null,null,null,null,null,null,null,null,null,null,null,null,null,null,null,null,null,null,null,null,null,null,null,null,null,null,null,null,null,null,null,null,null,null,null,null,null,null,null,null,null,null,null,"B - 4750","Butgenbach"]
[null,null,null,null,null,null,null,null,null,null,null,null,null,null,null,null,null,null,null,null,null,null,null,null,null,null,null,null,null,null,null,null,null,null,null,null,null,null,null,null,null,null,null,null,null,null,null,null,null,null,null,null,null,null,null,null,null,null,null,null,null,null,null,null,null,null,null,null,null,null,null,null,null,null,null,"B - 4760","Bullingen"]
[null,null,null,null,null,null,null,null,null,null,null,null,null,null,null,null,null,null,null,null,null,null,null,null,null,null,null,null,null,null,null,null,null,null,null,null,null,null,null,null,null,null,null,null,null,null,null,null,null,null,null,null,null,null,null,null,null,null,null,null,null,null,null,null,null,null,null,null,null,null,null,null,null,null,null,"B - 4770","Amel"]
[null,null,null,null,null,null,null,null,null,null,null,null,null,null,null,null,null,null,null,null,null,null,null,null,null,null,null,null,null,null,null,null,null,null,null,null,null,null,null,null,null,null,null,null,null,null,null,null,null,null,null,null,null,null,null,null,null,null,null,null,null,null,null,null,null,null,null,null,null,null,null,null,null,null,null,"B - 4780","Sankt vith"]
[null,null,null,null,null,null,null,null,null,null,null,null,null,null,null,null,null,null,null,null,null,null,null,null,null,null,null,null,null,null,null,null,null,null,null,null,null,null,null,null,null,null,null,null,null,null,null,null,null,null,null,null,null,null,null,null,null,null,null,null,null,null,null,null,null,null,null,null,null,null,null,null,null,null,null,"B - 4790","Burg-reuland"]
[null,null,null,null,null,null,null,null,null,null,null,null,null,null,null,null,null,null,null,null,null,null,null,null,null,null,null,null,null,null,null,null,null,null,null,null,null,null,null,null,null,null,null,null,null,null,null,null,null,null,null,null,null,null,null,null,null,null,null,null,null,null,null,null,null,null,null,null,null,null,null,null,null,null,null,"B - 4800","Verviers"]
[null,null,null,null,null,null,null,null,null,null,null,null,null,null,null,null,null,null,null,null,null,null,null,null,null,null,null,null,null,null,null,null,null,null,null,null,null,null,null,null,null,null,null,null,null,null,null,null,null,null,null,null,null,null,null,null,null,null,null,null,null,null,null,null,null,null,null,null,null,null,null,null,null,null,null,"B - 4820","Dison"]
[null,null,null,null,null,null,null,null,null,null,null,null,null,null,null,null,null,null,null,null,null,null,null,null,null,null,null,null,null,null,null,null,null,null,null,null,null,null,null,null,null,null,null,null,null,null,null,null,null,null,null,null,null,null,null,null,null,null,null,null,null,null,null,null,null,null,null,null,null,null,null,null,null,null,null,"B - 4830","Limbourg"]
[null,null,null,null,null,null,null,null,null,null,null,null,null,null,null,null,null,null,null,null,null,null,null,null,null,null,null,null,null,null,null,null,null,null,null,null,null,null,null,null,null,null,null,null,null,null,null,null,null,null,null,null,null,null,null,null,null,null,null,null,null,null,null,null,null,null,null,null,null,null,null,null,null,null,null,"B - 4837","Baelen"]
[null,null,null,null,null,null,null,null,null,null,null,null,null,null,null,null,null,null,null,null,null,null,null,null,null,null,null,null,null,null,null,null,null,null,null,null,null,null,null,null,null,null,null,null,null,null,null,null,null,null,null,null,null,null,null,null,null,null,null,null,null,null,null,null,null,null,null,null,null,null,null,null,null,null,null,"B - 4840","Welkenraedt"]
[null,null,null,null,null,null,null,null,null,null,null,null,null,null,null,null,null,null,null,null,null,null,null,null,null,null,null,null,null,null,null,null,null,null,null,null,null,null,null,null,null,null,null,null,null,null,null,null,null,null,null,null,null,null,null,null,null,null,null,null,null,null,null,null,null,null,null,null,null,null,null,null,null,null,null,"B - 4845","Jalhay"]
[null,null,null,null,null,null,null,null,null,null,null,null,null,null,null,null,null,null,null,null,null,null,null,null,null,null,null,null,null,null,null,null,null,null,null,null,null,null,null,null,null,null,null,null,null,null,null,null,null,null,null,null,null,null,null,null,null,null,null,null,null,null,null,null,null,null,null,null,null,null,null,null,null,null,null,"B - 4850","Plombieres"]
[null,null,null,null,null,null,null,null,null,null,null,null,null,null,null,null,null,null,null,null,null,null,null,null,null,null,null,null,null,null,null,null,null,null,null,null,null,null,null,null,null,null,null,null,null,null,null,null,null,null,null,null,null,null,null,null,null,null,null,null,null,null,null,null,null,null,null,null,null,null,null,null,null,null,null,"B - 4860","Pepinster"]
[null,null,null,null,null,null,null,null,null,null,null,null,null,null,null,null,null,null,null,null,null,null,null,null,null,null,null,null,null,null,null,null,null,null,null,null,null,null,null,null,null,null,null,null,null,null,null,null,null,null,null,null,null,null,null,null,null,null,null,null,null,null,null,null,null,null,null,null,null,null,null,null,null,null,null,"B - 4870","Trooz"]
[null,null,null,null,null,null,null,null,null,null,null,null,null,null,null,null,null,null,null,null,null,null,null,null,null,null,null,null,null,null,null,null,null,null,null,null,null,null,null,null,null,null,null,null,null,null,null,null,null,null,null,null,null,null,null,null,null,null,null,null,null,null,null,null,null,null,null,null,null,null,null,null,null,null,null,"B - 4877","Olne"]
[null,null,null,null,null,null,null,null,null,null,null,null,null,null,null,null,null,null,null,null,null,null,null,null,null,null,null,null,null,null,null,null,null,null,null,null,null,null,null,null,null,null,null,null,null,null,null,null,null,null,null,null,null,null,null,null,null,null,null,null,null,null,null,null,null,null,null,null,null,null,null,null,null,null,null,"B - 4880","Aubel"]
[null,null,null,null,null,null,null,null,null,null,null,null,null,null,null,null,null,null,null,null,null,null,null,null,null,null,null,null,null,null,null,null,null,null,null,null,null,null,null,null,null,null,null,null,null,null,null,null,null,null,null,null,null,null,null,null,null,null,null,null,null,null,null,null,null,null,null,null,null,null,null,null,null,null,null,"B - 4890","Thimister-clermont"]
[null,null,null,null,null,null,null,null,null,null,null,null,null,null,null,null,null,null,null,null,null,null,null,null,null,null,null,null,null,null,null,null,null,null,null,null,null,null,null,null,null,null,null,null,null,null,null,null,null,null,null,null,null,null,null,null,null,null,null,null,null,null,null,null,null,null,null,null,null,null,null,null,null,null,null,"B - 4900","Spa"]
[null,null,null,null,null,null,null,null,null,null,null,null,null,null,null,null,null,null,null,null,null,null,null,null,null,null,null,null,null,null,null,null,null,null,null,null,null,null,null,null,null,null,null,null,null,null,null,null,null,null,null,null,null,null,null,null,null,null,null,null,null,null,null,null,null,null,null,null,null,null,null,null,null,null,null,"B - 4910","Theux"]
[null,null,null,null,null,null,null,null,null,null,null,null,null,null,null,null,null,null,null,null,null,null,null,null,null,null,null,null,null,null,null,null,null,null,null,null,null,null,null,null,null,null,null,null,null,null,null,null,null,null,null,null,null,null,null,null,null,null,null,null,null,null,null,null,null,null,null,null,null,null,null,null,null,null,null,"B - 4920","Aywaille"]
[null,null,null,null,null,null,null,null,null,null,null,null,null,null,null,null,null,null,null,null,null,null,null,null,null,null,null,null,null,null,null,null,null,null,null,null,null,null,null,null,null,null,null,null,null,null,null,null,null,null,null,null,null,null,null,null,null,null,null,null,null,null,null,null,null,null,null,null,null,null,null,null,null,null,null,"B - 4950","Waimes"]
[null,null,null,null,null,null,null,null,null,null,null,null,null,null,null,null,null,null,null,null,null,null,null,null,null,null,null,null,null,null,null,null,null,null,null,null,null,null,null,null,null,null,null,null,null,null,null,null,null,null,null,null,null,null,null,null,null,null,null,null,null,null,null,null,null,null,null,null,null,null,null,null,null,null,null,"B - 4960","Malmedy"]
[null,null,null,null,null,null,null,null,null,null,null,null,null,null,null,null,null,null,null,null,null,null,null,null,null,null,null,null,null,null,null,null,null,null,null,null,null,null,null,null,null,null,null,null,null,null,null,null,null,null,null,null,null,null,null,null,null,null,null,null,null,null,null,null,null,null,null,null,null,null,null,null,null,null,null,"B - 4970","Stavelot"]
[null,null,null,null,null,null,null,null,null,null,null,null,null,null,null,null,null,null,null,null,null,null,null,null,null,null,null,null,null,null,null,null,null,null,null,null,null,null,null,null,null,null,null,null,null,null,null,null,null,null,null,null,null,null,null,null,null,null,null,null,null,null,null,null,null,null,null,null,null,null,null,null,null,null,null,"B - 4980","Trois-ponts"]
[null,null,null,null,null,null,null,null,null,null,null,null,null,null,null,null,null,null,null,null,null,null,null,null,null,null,null,null,null,null,null,null,null,null,null,null,null,null,null,null,null,null,null,null,null,null,null,null,null,null,null,null,null,null,null,null,null,null,null,null,null,null,null,null,null,null,null,null,null,null,null,null,null,null,null,"B - 4987","Stoumont"]
[null,null,null,null,null,null,null,null,null,null,null,null,null,null,null,null,null,null,null,null,null,null,null,null,null,null,null,null,null,null,null,null,null,null,null,null,null,null,null,null,null,null,null,null,null,null,null,null,null,null,null,null,null,null,null,null,null,null,null,null,null,null,null,null,null,null,null,null,null,null,null,null,null,null,null,"B - 4990","Lierneux"]
[null,null,null,null,null,null,null,null,null,null,null,null,null,null,null,null,null,null,null,null,null,null,null,null,null,null,null,null,null,null,null,null,null,null,null,null,null,null,null,null,null,null,null,null,null,null,null,null,null,null,null,null,null,null,null,null,null,null,null,null,null,null,null,null,null,null,null,null,null,null,null,null,null,null,null,"B - 6000","Charleroi"]
[null,null,null,null,null,null,null,null,null,null,null,null,null,null,null,null,null,null,null,null,null,null,null,null,null,null,null,null,null,null,null,null,null,null,null,null,null,null,null,null,null,null,null,null,null,null,null,null,null,null,null,null,null,null,null,null,null,null,null,null,null,null,null,null,null,null,null,null,null,null,null,null,null,null,null,"B - 6110","Montignies-le-tilleul"]
[null,null,null,null,null,null,null,null,null,null,null,null,null,null,null,null,null,null,null,null,null,null,null,null,null,null,null,null,null,null,null,null,null,null,null,null,null,null,null,null,null,null,null,null,null,null,null,null,null,null,null,null,null,null,null,null,null,null,null,null,null,null,null,null,null,null,null,null,null,null,null,null,null,null,null,"B - 6120","Ham-sur-heure-nalinne"]
[null,null,null,null,null,null,null,null,null,null,null,null,null,null,null,null,null,null,null,null,null,null,null,null,null,null,null,null,null,null,null,null,null,null,null,null,null,null,null,null,null,null,null,null,null,null,null,null,null,null,null,null,null,null,null,null,null,null,null,null,null,null,null,null,null,null,null,null,null,null,null,null,null,null,null,"B - 6140","Fontaine-l'eveque"]
[null,null,null,null,null,null,null,null,null,null,null,null,null,null,null,null,null,null,null,null,null,null,null,null,null,null,null,null,null,null,null,null,null,null,null,null,null,null,null,null,null,null,null,null,null,null,null,null,null,null,null,null,null,null,null,null,null,null,null,null,null,null,null,null,null,null,null,null,null,null,null,null,null,null,null,"B - 6150","Anderlues"]
[null,null,null,null,null,null,null,null,null,null,null,null,null,null,null,null,null,null,null,null,null,null,null,null,null,null,null,null,null,null,null,null,null,null,null,null,null,null,null,null,null,null,null,null,null,null,null,null,null,null,null,null,null,null,null,null,null,null,null,null,null,null,null,null,null,null,null,null,null,null,null,null,null,null,null,"B - 6180","Courcelles"]
[null,null,null,null,null,null,null,null,null,null,null,null,null,null,null,null,null,null,null,null,null,null,null,null,null,null,null,null,null,null,null,null,null,null,null,null,null,null,null,null,null,null,null,null,null,null,null,null,null,null,null,null,null,null,null,null,null,null,null,null,null,null,null,null,null,null,null,null,null,null,null,null,null,null,null,"B - 6200","Chatelet"]
[null,null,null,null,null,null,null,null,null,null,null,null,null,null,null,null,null,null,null,null,null,null,null,null,null,null,null,null,null,null,null,null,null,null,null,null,null,null,null,null,null,null,null,null,null,null,null,null,null,null,null,null,null,null,null,null,null,null,null,null,null,null,null,null,null,null,null,null,null,null,null,null,null,null,null,"B - 6210","Les bons villers"]
[null,null,null,null,null,null,null,null,null,null,null,null,null,null,null,null,null,null,null,null,null,null,null,null,null,null,null,null,null,null,null,null,null,null,null,null,null,null,null,null,null,null,null,null,null,null,null,null,null,null,null,null,null,null,null,null,null,null,null,null,null,null,null,null,null,null,null,null,null,null,null,null,null,null,null,"B - 6220","Fleurus"]
[null,null,null,null,null,null,null,null,null,null,null,null,null,null,null,null,null,null,null,null,null,null,null,null,null,null,null,null,null,null,null,null,null,null,null,null,null,null,null,null,null,null,null,null,null,null,null,null,null,null,null,null,null,null,null,null,null,null,null,null,null,null,null,null,null,null,null,null,null,null,null,null,null,null,null,"B - 6230","Pont-a-celles"]
[null,null,null,null,null,null,null,null,null,null,null,null,null,null,null,null,null,null,null,null,null,null,null,null,null,null,null,null,null,null,null,null,null,null,null,null,null,null,null,null,null,null,null,null,null,null,null,null,null,null,null,null,null,null,null,null,null,null,null,null,null,null,null,null,null,null,null,null,null,null,null,null,null,null,null,"B - 6240","Farciennes"]
[null,null,null,null,null,null,null,null,null,null,null,null,null,null,null,null,null,null,null,null,null,null,null,null,null,null,null,null,null,null,null,null,null,null,null,null,null,null,null,null,null,null,null,null,null,null,null,null,null,null,null,null,null,null,null,null,null,null,null,null,null,null,null,null,null,null,null,null,null,null,null,null,null,null,null,"B - 6250","Aiseau-presles"]
[null,null,null,null,null,null,null,null,null,null,null,null,null,null,null,null,null,null,null,null,null,null,null,null,null,null,null,null,null,null,null,null,null,null,null,null,null,null,null,null,null,null,null,null,null,null,null,null,null,null,null,null,null,null,null,null,null,null,null,null,null,null,null,null,null,null,null,null,null,null,null,null,null,null,null,"B - 6280","Gerpinnes"]
[null,null,null,null,null,null,null,null,null,null,null,null,null,null,null,null,null,null,null,null,null,null,null,null,null,null,null,null,null,null,null,null,null,null,null,null,null,null,null,null,null,null,null,null,null,null,null,null,null,null,null,null,null,null,null,null,null,null,null,null,null,null,null,null,null,null,null,null,null,null,null,null,null,null,null,"B - 6440","Froidchapelle"]
[null,null,null,null,null,null,null,null,null,null,null,null,null,null,null,null,null,null,null,null,null,null,null,null,null,null,null,null,null,null,null,null,null,null,null,null,null,null,null,null,null,null,null,null,null,null,null,null,null,null,null,null,null,null,null,null,null,null,null,null,null,null,null,null,null,null,null,null,null,null,null,null,null,null,null,"B - 6460","Chimay"]
[null,null,null,null,null,null,null,null,null,null,null,null,null,null,null,null,null,null,null,null,null,null,null,null,null,null,null,null,null,null,null,null,null,null,null,null,null,null,null,null,null,null,null,null,null,null,null,null,null,null,null,null,null,null,null,null,null,null,null,null,null,null,null,null,null,null,null,null,null,null,null,null,null,null,null,"B - 6470","Sivry-rance"]
[null,null,null,null,null,null,null,null,null,null,null,null,null,null,null,null,null,null,null,null,null,null,null,null,null,null,null,null,null,null,null,null,null,null,null,null,null,null,null,null,null,null,null,null,null,null,null,null,null,null,null,null,null,null,null,null,null,null,null,null,null,null,null,null,null,null,null,null,null,null,null,null,null,null,null,"B - 6500","Beaumont"]
[null,null,null,null,null,null,null,null,null,null,null,null,null,null,null,null,null,null,null,null,null,null,null,null,null,null,null,null,null,null,null,null,null,null,null,null,null,null,null,null,null,null,null,null,null,null,null,null,null,null,null,null,null,null,null,null,null,null,null,null,null,null,null,null,null,null,null,null,null,null,null,null,null,null,null,"B - 6530","Thuin"]
[null,null,null,null,null,null,null,null,null,null,null,null,null,null,null,null,null,null,null,null,null,null,null,null,null,null,null,null,null,null,null,null,null,null,null,null,null,null,null,null,null,null,null,null,null,null,null,null,null,null,null,null,null,null,null,null,null,null,null,null,null,null,null,null,null,null,null,null,null,null,null,null,null,null,null,"B - 6540","Lobbes"]
[null,null,null,null,null,null,null,null,null,null,null,null,null,null,null,null,null,null,null,null,null,null,null,null,null,null,null,null,null,null,null,null,null,null,null,null,null,null,null,null,null,null,null,null,null,null,null,null,null,null,null,null,null,null,null,null,null,null,null,null,null,null,null,null,null,null,null,null,null,null,null,null,null,null,null,"B - 6560","Erquelinnes"]
[null,null,null,null,null,null,null,null,null,null,null,null,null,null,null,null,null,null,null,null,null,null,null,null,null,null,null,null,null,null,null,null,null,null,null,null,null,null,null,null,null,null,null,null,null,null,null,null,null,null,null,null,null,null,null,null,null,null,null,null,null,null,null,null,null,null,null,null,null,null,null,null,null,null,null,"B - 6567","Merbes-le-chateau"]
[null,null,null,null,null,null,null,null,null,null,null,null,null,null,null,null,null,null,null,null,null,null,null,null,null,null,null,null,null,null,null,null,null,null,null,null,null,null,null,null,null,null,null,null,null,null,null,null,null,null,null,null,null,null,null,null,null,null,null,null,null,null,null,null,null,null,null,null,null,null,null,null,null,null,null,"B - 6590","Momignies"]
[null,null,null,null,null,null,null,null,null,null,null,null,null,null,null,null,null,null,null,null,null,null,null,null,null,null,null,null,null,null,null,null,null,null,null,null,null,null,null,null,null,null,null,null,null,null,null,null,null,null,null,null,null,null,null,null,null,null,null,null,null,null,null,null,null,null,null,null,null,null,null,null,null,null,null,"B - 6600","Bastogne"]
[null,null,null,null,null,null,null,null,null,null,null,null,null,null,null,null,null,null,null,null,null,null,null,null,null,null,null,null,null,null,null,null,null,null,null,null,null,null,null,null,null,null,null,null,null,null,null,null,null,null,null,null,null,null,null,null,null,null,null,null,null,null,null,null,null,null,null,null,null,null,null,null,null,null,null,"B - 6630","Martelange"]
[null,null,null,null,null,null,null,null,null,null,null,null,null,null,null,null,null,null,null,null,null,null,null,null,null,null,null,null,null,null,null,null,null,null,null,null,null,null,null,null,null,null,null,null,null,null,null,null,null,null,null,null,null,null,null,null,null,null,null,null,null,null,null,null,null,null,null,null,null,null,null,null,null,null,null,"B - 6637","Fauvillers"]
[null,null,null,null,null,null,null,null,null,null,null,null,null,null,null,null,null,null,null,null,null,null,null,null,null,null,null,null,null,null,null,null,null,null,null,null,null,null,null,null,null,null,null,null,null,null,null,null,null,null,null,null,null,null,null,null,null,null,null,null,null,null,null,null,null,null,null,null,null,null,null,null,null,null,null,"B - 6640","Vaux-sur-sure"]
[null,null,null,null,null,null,null,null,null,null,null,null,null,null,null,null,null,null,null,null,null,null,null,null,null,null,null,null,null,null,null,null,null,null,null,null,null,null,null,null,null,null,null,null,null,null,null,null,null,null,null,null,null,null,null,null,null,null,null,null,null,null,null,null,null,null,null,null,null,null,null,null,null,null,null,"B - 6660","Houffalize"]
[null,null,null,null,null,null,null,null,null,null,null,null,null,null,null,null,null,null,null,null,null,null,null,null,null,null,null,null,null,null,null,null,null,null,null,null,null,null,null,null,null,null,null,null,null,null,null,null,null,null,null,null,null,null,null,null,null,null,null,null,null,null,null,null,null,null,null,null,null,null,null,null,null,null,null,"B - 6667","Bertogne"]
[null,null,null,null,null,null,null,null,null,null,null,null,null,null,null,null,null,null,null,null,null,null,null,null,null,null,null,null,null,null,null,null,null,null,null,null,null,null,null,null,null,null,null,null,null,null,null,null,null,null,null,null,null,null,null,null,null,null,null,null,null,null,null,null,null,null,null,null,null,null,null,null,null,null,null,"B - 6670","Gouvy"]
[null,null,null,null,null,null,null,null,null,null,null,null,null,null,null,null,null,null,null,null,null,null,null,null,null,null,null,null,null,null,null,null,null,null,null,null,null,null,null,null,null,null,null,null,null,null,null,null,null,null,null,null,null,null,null,null,null,null,null,null,null,null,null,null,null,null,null,null,null,null,null,null,null,null,null,"B - 6680","Sainte-ode"]
[null,null,null,null,null,null,null,null,null,null,null,null,null,null,null,null,null,null,null,null,null,null,null,null,null,null,null,null,null,null,null,null,null,null,null,null,null,null,null,null,null,null,null,null,null,null,null,null,null,null,null,null,null,null,null,null,null,null,null,null,null,null,null,null,null,null,null,null,null,null,null,null,null,null,null,"B - 6690","Vielsalm"]
[null,null,null,null,null,null,null,null,null,null,null,null,null,null,null,null,null,null,null,null,null,null,null,null,null,null,null,null,null,null,null,null,null,null,null,null,null,null,null,null,null,null,null,null,null,null,null,null,null,null,null,null,null,null,null,null,null,null,null,null,null,null,null,null,null,null,null,null,null,null,null,null,null,null,null,"B - 6700","Arlon"]
[null,null,null,null,null,null,null,null,null,null,null,null,null,null,null,null,null,null,null,null,null,null,null,null,null,null,null,null,null,null,null,null,null,null,null,null,null,null,null,null,null,null,null,null,null,null,null,null,null,null,null,null,null,null,null,null,null,null,null,null,null,null,null,null,null,null,null,null,null,null,null,null,null,null,null,"B - 6717","Attert"]
[null,null,null,null,null,null,null,null,null,null,null,null,null,null,null,null,null,null,null,null,null,null,null,null,null,null,null,null,null,null,null,null,null,null,null,null,null,null,null,null,null,null,null,null,null,null,null,null,null,null,null,null,null,null,null,null,null,null,null,null,null,null,null,null,null,null,null,null,null,null,null,null,null,null,null,"B - 6720","Habay"]
[null,null,null,null,null,null,null,null,null,null,null,null,null,null,null,null,null,null,null,null,null,null,null,null,null,null,null,null,null,null,null,null,null,null,null,null,null,null,null,null,null,null,null,null,null,null,null,null,null,null,null,null,null,null,null,null,null,null,null,null,null,null,null,null,null,null,null,null,null,null,null,null,null,null,null,"B - 6730","Tintigny"]
[null,null,null,null,null,null,null,null,null,null,null,null,null,null,null,null,null,null,null,null,null,null,null,null,null,null,null,null,null,null,null,null,null,null,null,null,null,null,null,null,null,null,null,null,null,null,null,null,null,null,null,null,null,null,null,null,null,null,null,null,null,null,null,null,null,null,null,null,null,null,null,null,null,null,null,"B - 6740","Etalle"]
[null,null,null,null,null,null,null,null,null,null,null,null,null,null,null,null,null,null,null,null,null,null,null,null,null,null,null,null,null,null,null,null,null,null,null,null,null,null,null,null,null,null,null,null,null,null,null,null,null,null,null,null,null,null,null,null,null,null,null,null,null,null,null,null,null,null,null,null,null,null,null,null,null,null,null,"B - 6747","Saint-leger"]
[null,null,null,null,null,null,null,null,null,null,null,null,null,null,null,null,null,null,null,null,null,null,null,null,null,null,null,null,null,null,null,null,null,null,null,null,null,null,null,null,null,null,null,null,null,null,null,null,null,null,null,null,null,null,null,null,null,null,null,null,null,null,null,null,null,null,null,null,null,null,null,null,null,null,null,"B - 6750","Musson"]
[null,null,null,null,null,null,null,null,null,null,null,null,null,null,null,null,null,null,null,null,null,null,null,null,null,null,null,null,null,null,null,null,null,null,null,null,null,null,null,null,null,null,null,null,null,null,null,null,null,null,null,null,null,null,null,null,null,null,null,null,null,null,null,null,null,null,null,null,null,null,null,null,null,null,null,"B - 6760","Virton"]
[null,null,null,null,null,null,null,null,null,null,null,null,null,null,null,null,null,null,null,null,null,null,null,null,null,null,null,null,null,null,null,null,null,null,null,null,null,null,null,null,null,null,null,null,null,null,null,null,null,null,null,null,null,null,null,null,null,null,null,null,null,null,null,null,null,null,null,null,null,null,null,null,null,null,null,"B - 6767","Rouvroy"]
[null,null,null,null,null,null,null,null,null,null,null,null,null,null,null,null,null,null,null,null,null,null,null,null,null,null,null,null,null,null,null,null,null,null,null,null,null,null,null,null,null,null,null,null,null,null,null,null,null,null,null,null,null,null,null,null,null,null,null,null,null,null,null,null,null,null,null,null,null,null,null,null,null,null,null,"B - 6769","Meix-devant-virton"]
[null,null,null,null,null,null,null,null,null,null,null,null,null,null,null,null,null,null,null,null,null,null,null,null,null,null,null,null,null,null,null,null,null,null,null,null,null,null,null,null,null,null,null,null,null,null,null,null,null,null,null,null,null,null,null,null,null,null,null,null,null,null,null,null,null,null,null,null,null,null,null,null,null,null,null,"B - 6780","Messancy"]
[null,null,null,null,null,null,null,null,null,null,null,null,null,null,null,null,null,null,null,null,null,null,null,null,null,null,null,null,null,null,null,null,null,null,null,null,null,null,null,null,null,null,null,null,null,null,null,null,null,null,null,null,null,null,null,null,null,null,null,null,null,null,null,null,null,null,null,null,null,null,null,null,null,null,null,"B - 6790","Aubange"]
[null,null,null,null,null,null,null,null,null,null,null,null,null,null,null,null,null,null,null,null,null,null,null,null,null,null,null,null,null,null,null,null,null,null,null,null,null,null,null,null,null,null,null,null,null,null,null,null,null,null,null,null,null,null,null,null,null,null,null,null,null,null,null,null,null,null,null,null,null,null,null,null,null,null,null,"B - 6800","Libramont-chevigny"]
[null,null,null,null,null,null,null,null,null,null,null,null,null,null,null,null,null,null,null,null,null,null,null,null,null,null,null,null,null,null,null,null,null,null,null,null,null,null,null,null,null,null,null,null,null,null,null,null,null,null,null,null,null,null,null,null,null,null,null,null,null,null,null,null,null,null,null,null,null,null,null,null,null,null,null,"B - 6810","Chiny"]
[null,null,null,null,null,null,null,null,null,null,null,null,null,null,null,null,null,null,null,null,null,null,null,null,null,null,null,null,null,null,null,null,null,null,null,null,null,null,null,null,null,null,null,null,null,null,null,null,null,null,null,null,null,null,null,null,null,null,null,null,null,null,null,null,null,null,null,null,null,null,null,null,null,null,null,"B - 6820","Florenville"]
[null,null,null,null,null,null,null,null,null,null,null,null,null,null,null,null,null,null,null,null,null,null,null,null,null,null,null,null,null,null,null,null,null,null,null,null,null,null,null,null,null,null,null,null,null,null,null,null,null,null,null,null,null,null,null,null,null,null,null,null,null,null,null,null,null,null,null,null,null,null,null,null,null,null,null,"B - 6830","Bouillon"]
[null,null,null,null,null,null,null,null,null,null,null,null,null,null,null,null,null,null,null,null,null,null,null,null,null,null,null,null,null,null,null,null,null,null,null,null,null,null,null,null,null,null,null,null,null,null,null,null,null,null,null,null,null,null,null,null,null,null,null,null,null,null,null,null,null,null,null,null,null,null,null,null,null,null,null,"B - 6840","Neufchateau"]
[null,null,null,null,null,null,null,null,null,null,null,null,null,null,null,null,null,null,null,null,null,null,null,null,null,null,null,null,null,null,null,null,null,null,null,null,null,null,null,null,null,null,null,null,null,null,null,null,null,null,null,null,null,null,null,null,null,null,null,null,null,null,null,null,null,null,null,null,null,null,null,null,null,null,null,"B - 6850","Paliseul"]
[null,null,null,null,null,null,null,null,null,null,null,null,null,null,null,null,null,null,null,null,null,null,null,null,null,null,null,null,null,null,null,null,null,null,null,null,null,null,null,null,null,null,null,null,null,null,null,null,null,null,null,null,null,null,null,null,null,null,null,null,null,null,null,null,null,null,null,null,null,null,null,null,null,null,null,"B - 6860","Leglise"]
[null,null,null,null,null,null,null,null,null,null,null,null,null,null,null,null,null,null,null,null,null,null,null,null,null,null,null,null,null,null,null,null,null,null,null,null,null,null,null,null,null,null,null,null,null,null,null,null,null,null,null,null,null,null,null,null,null,null,null,null,null,null,null,null,null,null,null,null,null,null,null,null,null,null,null,"B - 6870","Saint-hubert"]
[null,null,null,null,null,null,null,null,null,null,null,null,null,null,null,null,null,null,null,null,null,null,null,null,null,null,null,null,null,null,null,null,null,null,null,null,null,null,null,null,null,null,null,null,null,null,null,null,null,null,null,null,null,null,null,null,null,null,null,null,null,null,null,null,null,null,null,null,null,null,null,null,null,null,null,"B - 6880","Bertrix"]
[null,null,null,null,null,null,null,null,null,null,null,null,null,null,null,null,null,null,null,null,null,null,null,null,null,null,null,null,null,null,null,null,null,null,null,null,null,null,null,null,null,null,null,null,null,null,null,null,null,null,null,null,null,null,null,null,null,null,null,null,null,null,null,null,null,null,null,null,null,null,null,null,null,null,null,"B - 6887","Herbeumont"]
[null,null,null,null,null,null,null,null,null,null,null,null,null,null,null,null,null,null,null,null,null,null,null,null,null,null,null,null,null,null,null,null,null,null,null,null,null,null,null,null,null,null,null,null,null,null,null,null,null,null,null,null,null,null,null,null,null,null,null,null,null,null,null,null,null,null,null,null,null,null,null,null,null,null,null,"B - 6890","Libin"]
[null,null,null,null,null,null,null,null,null,null,null,null,null,null,null,null,null,null,null,null,null,null,null,null,null,null,null,null,null,null,null,null,null,null,null,null,null,null,null,null,null,null,null,null,null,null,null,null,null,null,null,null,null,null,null,null,null,null,null,null,null,null,null,null,null,null,null,null,null,null,null,null,null,null,null,"B - 6900","Marche-en-famenne"]
[null,null,null,null,null,null,null,null,null,null,null,null,null,null,null,null,null,null,null,null,null,null,null,null,null,null,null,null,null,null,null,null,null,null,null,null,null,null,null,null,null,null,null,null,null,null,null,null,null,null,null,null,null,null,null,null,null,null,null,null,null,null,null,null,null,null,null,null,null,null,null,null,null,null,null,"B - 6920","Wellin"]
[null,null,null,null,null,null,null,null,null,null,null,null,null,null,null,null,null,null,null,null,null,null,null,null,null,null,null,null,null,null,null,null,null,null,null,null,null,null,null,null,null,null,null,null,null,null,null,null,null,null,null,null,null,null,null,null,null,null,null,null,null,null,null,null,null,null,null,null,null,null,null,null,null,null,null,"B - 6927","Tellin"]
[null,null,null,null,null,null,null,null,null,null,null,null,null,null,null,null,null,null,null,null,null,null,null,null,null,null,null,null,null,null,null,null,null,null,null,null,null,null,null,null,null,null,null,null,null,null,null,null,null,null,null,null,null,null,null,null,null,null,null,null,null,null,null,null,null,null,null,null,null,null,null,null,null,null,null,"B - 6929","Daverdisse"]
[null,null,null,null,null,null,null,null,null,null,null,null,null,null,null,null,null,null,null,null,null,null,null,null,null,null,null,null,null,null,null,null,null,null,null,null,null,null,null,null,null,null,null,null,null,null,null,null,null,null,null,null,null,null,null,null,null,null,null,null,null,null,null,null,null,null,null,null,null,null,null,null,null,null,null,"B - 6940","Durbuy"]
[null,null,null,null,null,null,null,null,null,null,null,null,null,null,null,null,null,null,null,null,null,null,null,null,null,null,null,null,null,null,null,null,null,null,null,null,null,null,null,null,null,null,null,null,null,null,null,null,null,null,null,null,null,null,null,null,null,null,null,null,null,null,null,null,null,null,null,null,null,null,null,null,null,null,null,"B - 6950","Nassogne"]
[null,null,null,null,null,null,null,null,null,null,null,null,null,null,null,null,null,null,null,null,null,null,null,null,null,null,null,null,null,null,null,null,null,null,null,null,null,null,null,null,null,null,null,null,null,null,null,null,null,null,null,null,null,null,null,null,null,null,null,null,null,null,null,null,null,null,null,null,null,null,null,null,null,null,null,"B - 6960","Manhay"]
[null,null,null,null,null,null,null,null,null,null,null,null,null,null,null,null,null,null,null,null,null,null,null,null,null,null,null,null,null,null,null,null,null,null,null,null,null,null,null,null,null,null,null,null,null,null,null,null,null,null,null,null,null,null,null,null,null,null,null,null,null,null,null,null,null,null,null,null,null,null,null,null,null,null,null,"B - 6970","Tenneville"]
[null,null,null,null,null,null,null,null,null,null,null,null,null,null,null,null,null,null,null,null,null,null,null,null,null,null,null,null,null,null,null,null,null,null,null,null,null,null,null,null,null,null,null,null,null,null,null,null,null,null,null,null,null,null,null,null,null,null,null,null,null,null,null,null,null,null,null,null,null,null,null,null,null,null,null,"B - 6980","La roche-en-ardenne"]
[null,null,null,null,null,null,null,null,null,null,null,null,null,null,null,null,null,null,null,null,null,null,null,null,null,null,null,null,null,null,null,null,null,null,null,null,null,null,null,null,null,null,null,null,null,null,null,null,null,null,null,null,null,null,null,null,null,null,null,null,null,null,null,null,null,null,null,null,null,null,null,null,null,null,null,"B - 6987","Rendeux"]
[null,null,null,null,null,null,null,null,null,null,null,null,null,null,null,null,null,null,null,null,null,null,null,null,null,null,null,null,null,null,null,null,null,null,null,null,null,null,null,null,null,null,null,null,null,null,null,null,null,null,null,null,null,null,null,null,null,null,null,null,null,null,null,null,null,null,null,null,null,null,null,null,null,null,null,"B - 6990","Hotton"]
[null,null,null,null,null,null,null,null,null,null,null,null,null,null,null,null,null,null,null,null,null,null,null,null,null,null,null,null,null,null,null,null,null,null,null,null,null,null,null,null,null,null,null,null,null,null,null,null,null,null,null,null,null,null,null,null,null,null,null,null,null,null,null,null,null,null,null,null,null,null,null,null,null,null,null,"B - 6997","Erezee"]
[null,null,null,null,null,null,null,null,null,null,null,null,null,null,null,null,null,null,null,null,null,null,null,null,null,null,null,null,null,null,null,null,null,null,null,null,null,null,null,null,null,null,null,null,null,null,null,null,null,null,null,null,null,null,null,null,null,null,null,null,null,null,null,null,null,null,null,null,null,null,null,null,null,null,null,"B - 7000","Mons"]
[null,null,null,null,null,null,null,null,null,null,null,null,null,null,null,null,null,null,null,null,null,null,null,null,null,null,null,null,null,null,null,null,null,null,null,null,null,null,null,null,null,null,null,null,null,null,null,null,null,null,null,null,null,null,null,null,null,null,null,null,null,null,null,null,null,null,null,null,null,null,null,null,null,null,null,"B - 7040","Quevy"]
[null,null,null,null,null,null,null,null,null,null,null,null,null,null,null,null,null,null,null,null,null,null,null,null,null,null,null,null,null,null,null,null,null,null,null,null,null,null,null,null,null,null,null,null,null,null,null,null,null,null,null,null,null,null,null,null,null,null,null,null,null,null,null,null,null,null,null,null,null,null,null,null,null,null,null,"B - 7050","Jurbise"]
[null,null,null,null,null,null,null,null,null,null,null,null,null,null,null,null,null,null,null,null,null,null,null,null,null,null,null,null,null,null,null,null,null,null,null,null,null,null,null,null,null,null,null,null,null,null,null,null,null,null,null,null,null,null,null,null,null,null,null,null,null,null,null,null,null,null,null,null,null,null,null,null,null,null,null,"B - 7060","Soignies"]
[null,null,null,null,null,null,null,null,null,null,null,null,null,null,null,null,null,null,null,null,null,null,null,null,null,null,null,null,null,null,null,null,null,null,null,null,null,null,null,null,null,null,null,null,null,null,null,null,null,null,null,null,null,null,null,null,null,null,null,null,null,null,null,null,null,null,null,null,null,null,null,null,null,null,null,"B - 7070","Le roeulx"]
[null,null,null,null,null,null,null,null,null,null,null,null,null,null,null,null,null,null,null,null,null,null,null,null,null,null,null,null,null,null,null,null,null,null,null,null,null,null,null,null,null,null,null,null,null,null,null,null,null,null,null,null,null,null,null,null,null,null,null,null,null,null,null,null,null,null,null,null,null,null,null,null,null,null,null,"B - 7080","Frameries"]
[null,null,null,null,null,null,null,null,null,null,null,null,null,null,null,null,null,null,null,null,null,null,null,null,null,null,null,null,null,null,null,null,null,null,null,null,null,null,null,null,null,null,null,null,null,null,null,null,null,null,null,null,null,null,null,null,null,null,null,null,null,null,null,null,null,null,null,null,null,null,null,null,null,null,null,"B - 7090","Braine-le-comte"]
[null,null,null,null,null,null,null,null,null,null,null,null,null,null,null,null,null,null,null,null,null,null,null,null,null,null,null,null,null,null,null,null,null,null,null,null,null,null,null,null,null,null,null,null,null,null,null,null,null,null,null,null,null,null,null,null,null,null,null,null,null,null,null,null,null,null,null,null,null,null,null,null,null,null,null,"B - 7100","La louviere"]
[null,null,null,null,null,null,null,null,null,null,null,null,null,null,null,null,null,null,null,null,null,null,null,null,null,null,null,null,null,null,null,null,null,null,null,null,null,null,null,null,null,null,null,null,null,null,null,null,null,null,null,null,null,null,null,null,null,null,null,null,null,null,null,null,null,null,null,null,null,null,null,null,null,null,null,"B - 7120","Estinnes"]
[null,null,null,null,null,null,null,null,null,null,null,null,null,null,null,null,null,null,null,null,null,null,null,null,null,null,null,null,null,null,null,null,null,null,null,null,null,null,null,null,null,null,null,null,null,null,null,null,null,null,null,null,null,null,null,null,null,null,null,null,null,null,null,null,null,null,null,null,null,null,null,null,null,null,null,"B - 7130","Binche"]
[null,null,null,null,null,null,null,null,null,null,null,null,null,null,null,null,null,null,null,null,null,null,null,null,null,null,null,null,null,null,null,null,null,null,null,null,null,null,null,null,null,null,null,null,null,null,null,null,null,null,null,null,null,null,null,null,null,null,null,null,null,null,null,null,null,null,null,null,null,null,null,null,null,null,null,"B - 7140","Morlanwelz"]
[null,null,null,null,null,null,null,null,null,null,null,null,null,null,null,null,null,null,null,null,null,null,null,null,null,null,null,null,null,null,null,null,null,null,null,null,null,null,null,null,null,null,null,null,null,null,null,null,null,null,null,null,null,null,null,null,null,null,null,null,null,null,null,null,null,null,null,null,null,null,null,null,null,null,null,"B - 7160","Chapelle-lez-herlaim"]
[null,null,null,null,null,null,null,null,null,null,null,null,null,null,null,null,null,null,null,null,null,null,null,null,null,null,null,null,null,null,null,null,null,null,null,null,null,null,null,null,null,null,null,null,null,null,null,null,null,null,null,null,null,null,null,null,null,null,null,null,null,null,null,null,null,null,null,null,null,null,null,null,null,null,null,"B - 7170","Manage"]
[null,null,null,null,null,null,null,null,null,null,null,null,null,null,null,null,null,null,null,null,null,null,null,null,null,null,null,null,null,null,null,null,null,null,null,null,null,null,null,null,null,null,null,null,null,null,null,null,null,null,null,null,null,null,null,null,null,null,null,null,null,null,null,null,null,null,null,null,null,null,null,null,null,null,null,"B - 7180","Seneffe"]
[null,null,null,null,null,null,null,null,null,null,null,null,null,null,null,null,null,null,null,null,null,null,null,null,null,null,null,null,null,null,null,null,null,null,null,null,null,null,null,null,null,null,null,null,null,null,null,null,null,null,null,null,null,null,null,null,null,null,null,null,null,null,null,null,null,null,null,null,null,null,null,null,null,null,null,"B - 7190","Ecaussinnes"]
[null,null,null,null,null,null,null,null,null,null,null,null,null,null,null,null,null,null,null,null,null,null,null,null,null,null,null,null,null,null,null,null,null,null,null,null,null,null,null,null,null,null,null,null,null,null,null,null,null,null,null,null,null,null,null,null,null,null,null,null,null,null,null,null,null,null,null,null,null,null,null,null,null,null,null,"B - 7300","Boussu"]
[null,null,null,null,null,null,null,null,null,null,null,null,null,null,null,null,null,null,null,null,null,null,null,null,null,null,null,null,null,null,null,null,null,null,null,null,null,null,null,null,null,null,null,null,null,null,null,null,null,null,null,null,null,null,null,null,null,null,null,null,null,null,null,null,null,null,null,null,null,null,null,null,null,null,null,"B - 7320","Bernissart"]
[null,null,null,null,null,null,null,null,null,null,null,null,null,null,null,null,null,null,null,null,null,null,null,null,null,null,null,null,null,null,null,null,null,null,null,null,null,null,null,null,null,null,null,null,null,null,null,null,null,null,null,null,null,null,null,null,null,null,null,null,null,null,null,null,null,null,null,null,null,null,null,null,null,null,null,"B - 7330","Saint-ghislain"]
[null,null,null,null,null,null,null,null,null,null,null,null,null,null,null,null,null,null,null,null,null,null,null,null,null,null,null,null,null,null,null,null,null,null,null,null,null,null,null,null,null,null,null,null,null,null,null,null,null,null,null,null,null,null,null,null,null,null,null,null,null,null,null,null,null,null,null,null,null,null,null,null,null,null,null,"B - 7340","Colfontaine"]
[null,null,null,null,null,null,null,null,null,null,null,null,null,null,null,null,null,null,null,null,null,null,null,null,null,null,null,null,null,null,null,null,null,null,null,null,null,null,null,null,null,null,null,null,null,null,null,null,null,null,null,null,null,null,null,null,null,null,null,null,null,null,null,null,null,null,null,null,null,null,null,null,null,null,null,"B - 7350","Hensies"]
[null,null,null,null,null,null,null,null,null,null,null,null,null,null,null,null,null,null,null,null,null,null,null,null,null,null,null,null,null,null,null,null,null,null,null,null,null,null,null,null,null,null,null,null,null,null,null,null,null,null,null,null,null,null,null,null,null,null,null,null,null,null,null,null,null,null,null,null,null,null,null,null,null,null,null,"B - 7370","Dour"]
[null,null,null,null,null,null,null,null,null,null,null,null,null,null,null,null,null,null,null,null,null,null,null,null,null,null,null,null,null,null,null,null,null,null,null,null,null,null,null,null,null,null,null,null,null,null,null,null,null,null,null,null,null,null,null,null,null,null,null,null,null,null,null,null,null,null,null,null,null,null,null,null,null,null,null,"B - 7380","Quievrain"]
[null,null,null,null,null,null,null,null,null,null,null,null,null,null,null,null,null,null,null,null,null,null,null,null,null,null,null,null,null,null,null,null,null,null,null,null,null,null,null,null,null,null,null,null,null,null,null,null,null,null,null,null,null,null,null,null,null,null,null,null,null,null,null,null,null,null,null,null,null,null,null,null,null,null,null,"B - 7387","Honnelles"]
[null,null,null,null,null,null,null,null,null,null,null,null,null,null,null,null,null,null,null,null,null,null,null,null,null,null,null,null,null,null,null,null,null,null,null,null,null,null,null,null,null,null,null,null,null,null,null,null,null,null,null,null,null,null,null,null,null,null,null,null,null,null,null,null,null,null,null,null,null,null,null,null,null,null,null,"B - 7390","Quaregnon"]
[null,null,null,null,null,null,null,null,null,null,null,null,null,null,null,null,null,null,null,null,null,null,null,null,null,null,null,null,null,null,null,null,null,null,null,null,null,null,null,null,null,null,null,null,null,null,null,null,null,null,null,null,null,null,null,null,null,null,null,null,null,null,null,null,null,null,null,null,null,null,null,null,null,null,null,"B - 7500","Tournai"]
[null,null,null,null,null,null,null,null,null,null,null,null,null,null,null,null,null,null,null,null,null,null,null,null,null,null,null,null,null,null,null,null,null,null,null,null,null,null,null,null,null,null,null,null,null,null,null,null,null,null,null,null,null,null,null,null,null,null,null,null,null,null,null,null,null,null,null,null,null,null,null,null,null,null,null,"B - 7600","Peruwelz"]
[null,null,null,null,null,null,null,null,null,null,null,null,null,null,null,null,null,null,null,null,null,null,null,null,null,null,null,null,null,null,null,null,null,null,null,null,null,null,null,null,null,null,null,null,null,null,null,null,null,null,null,null,null,null,null,null,null,null,null,null,null,null,null,null,null,null,null,null,null,null,null,null,null,null,null,"B - 7610","Rumes"]
[null,null,null,null,null,null,null,null,null,null,null,null,null,null,null,null,null,null,null,null,null,null,null,null,null,null,null,null,null,null,null,null,null,null,null,null,null,null,null,null,null,null,null,null,null,null,null,null,null,null,null,null,null,null,null,null,null,null,null,null,null,null,null,null,null,null,null,null,null,null,null,null,null,null,null,"B - 7620","Brunehaut"]
[null,null,null,null,null,null,null,null,null,null,null,null,null,null,null,null,null,null,null,null,null,null,null,null,null,null,null,null,null,null,null,null,null,null,null,null,null,null,null,null,null,null,null,null,null,null,null,null,null,null,null,null,null,null,null,null,null,null,null,null,null,null,null,null,null,null,null,null,null,null,null,null,null,null,null,"B - 7640","Antoing"]
[null,null,null,null,null,null,null,null,null,null,null,null,null,null,null,null,null,null,null,null,null,null,null,null,null,null,null,null,null,null,null,null,null,null,null,null,null,null,null,null,null,null,null,null,null,null,null,null,null,null,null,null,null,null,null,null,null,null,null,null,null,null,null,null,null,null,null,null,null,null,null,null,null,null,null,"B - 7700","Mouscron"]
[null,null,null,null,null,null,null,null,null,null,null,null,null,null,null,null,null,null,null,null,null,null,null,null,null,null,null,null,null,null,null,null,null,null,null,null,null,null,null,null,null,null,null,null,null,null,null,null,null,null,null,null,null,null,null,null,null,null,null,null,null,null,null,null,null,null,null,null,null,null,null,null,null,null,null,"B - 7730","Estaimpuis"]
[null,null,null,null,null,null,null,null,null,null,null,null,null,null,null,null,null,null,null,null,null,null,null,null,null,null,null,null,null,null,null,null,null,null,null,null,null,null,null,null,null,null,null,null,null,null,null,null,null,null,null,null,null,null,null,null,null,null,null,null,null,null,null,null,null,null,null,null,null,null,null,null,null,null,null,"B - 7740","Pecq"]
[null,null,null,null,null,null,null,null,null,null,null,null,null,null,null,null,null,null,null,null,null,null,null,null,null,null,null,null,null,null,null,null,null,null,null,null,null,null,null,null,null,null,null,null,null,null,null,null,null,null,null,null,null,null,null,null,null,null,null,null,null,null,null,null,null,null,null,null,null,null,null,null,null,null,null,"B - 7750","Mont de l enclus"]
[null,null,null,null,null,null,null,null,null,null,null,null,null,null,null,null,null,null,null,null,null,null,null,null,null,null,null,null,null,null,null,null,null,null,null,null,null,null,null,null,null,null,null,null,null,null,null,null,null,null,null,null,null,null,null,null,null,null,null,null,null,null,null,null,null,null,null,null,null,null,null,null,null,null,null,"B - 7760","Celles"]
[null,null,null,null,null,null,null,null,null,null,null,null,null,null,null,null,null,null,null,null,null,null,null,null,null,null,null,null,null,null,null,null,null,null,null,null,null,null,null,null,null,null,null,null,null,null,null,null,null,null,null,null,null,null,null,null,null,null,null,null,null,null,null,null,null,null,null,null,null,null,null,null,null,null,null,"B - 7780","Comines"]
[null,null,null,null,null,null,null,null,null,null,null,null,null,null,null,null,null,null,null,null,null,null,null,null,null,null,null,null,null,null,null,null,null,null,null,null,null,null,null,null,null,null,null,null,null,null,null,null,null,null,null,null,null,null,null,null,null,null,null,null,null,null,null,null,null,null,null,null,null,null,null,null,null,null,null,"B - 7800","Ath"]
[null,null,null,null,null,null,null,null,null,null,null,null,null,null,null,null,null,null,null,null,null,null,null,null,null,null,null,null,null,null,null,null,null,null,null,null,null,null,null,null,null,null,null,null,null,null,null,null,null,null,null,null,null,null,null,null,null,null,null,null,null,null,null,null,null,null,null,null,null,null,null,null,null,null,null,"B - 7830","Silly"]
[null,null,null,null,null,null,null,null,null,null,null,null,null,null,null,null,null,null,null,null,null,null,null,null,null,null,null,null,null,null,null,null,null,null,null,null,null,null,null,null,null,null,null,null,null,null,null,null,null,null,null,null,null,null,null,null,null,null,null,null,null,null,null,null,null,null,null,null,null,null,null,null,null,null,null,"B - 7850","Enghien"]
[null,null,null,null,null,null,null,null,null,null,null,null,null,null,null,null,null,null,null,null,null,null,null,null,null,null,null,null,null,null,null,null,null,null,null,null,null,null,null,null,null,null,null,null,null,null,null,null,null,null,null,null,null,null,null,null,null,null,null,null,null,null,null,null,null,null,null,null,null,null,null,null,null,null,null,"B - 7860","Lessines"]
[null,null,null,null,null,null,null,null,null,null,null,null,null,null,null,null,null,null,null,null,null,null,null,null,null,null,null,null,null,null,null,null,null,null,null,null,null,null,null,null,null,null,null,null,null,null,null,null,null,null,null,null,null,null,null,null,null,null,null,null,null,null,null,null,null,null,null,null,null,null,null,null,null,null,null,"B - 7870","Lens"]
[null,null,null,null,null,null,null,null,null,null,null,null,null,null,null,null,null,null,null,null,null,null,null,null,null,null,null,null,null,null,null,null,null,null,null,null,null,null,null,null,null,null,null,null,null,null,null,null,null,null,null,null,null,null,null,null,null,null,null,null,null,null,null,null,null,null,null,null,null,null,null,null,null,null,null,"B - 7880","Flobecq"]
[null,null,null,null,null,null,null,null,null,null,null,null,null,null,null,null,null,null,null,null,null,null,null,null,null,null,null,null,null,null,null,null,null,null,null,null,null,null,null,null,null,null,null,null,null,null,null,null,null,null,null,null,null,null,null,null,null,null,null,null,null,null,null,null,null,null,null,null,null,null,null,null,null,null,null,"B - 7890","Ellezelles"]
[null,null,null,null,null,null,null,null,null,null,null,null,null,null,null,null,null,null,null,null,null,null,null,null,null,null,null,null,null,null,null,null,null,null,null,null,null,null,null,null,null,null,null,null,null,null,null,null,null,null,null,null,null,null,null,null,null,null,null,null,null,null,null,null,null,null,null,null,null,null,null,null,null,null,null,"B - 7900","Leuze"]
[null,null,null,null,null,null,null,null,null,null,null,null,null,null,null,null,null,null,null,null,null,null,null,null,null,null,null,null,null,null,null,null,null,null,null,null,null,null,null,null,null,null,null,null,null,null,null,null,null,null,null,null,null,null,null,null,null,null,null,null,null,null,null,null,null,null,null,null,null,null,null,null,null,null,null,"B - 7910","Frasnes-lez-anvaing"]
[null,null,null,null,null,null,null,null,null,null,null,null,null,null,null,null,null,null,null,null,null,null,null,null,null,null,null,null,null,null,null,null,null,null,null,null,null,null,null,null,null,null,null,null,null,null,null,null,null,null,null,null,null,null,null,null,null,null,null,null,null,null,null,null,null,null,null,null,null,null,null,null,null,null,null,"B - 7940","Brugelette"]
[null,null,null,null,null,null,null,null,null,null,null,null,null,null,null,null,null,null,null,null,null,null,null,null,null,null,null,null,null,null,null,null,null,null,null,null,null,null,null,null,null,null,null,null,null,null,null,null,null,null,null,null,null,null,null,null,null,null,null,null,null,null,null,null,null,null,null,null,null,null,null,null,null,null,null,"B - 7950","Chievres"]
[null,null,null,null,null,null,null,null,null,null,null,null,null,null,null,null,null,null,null,null,null,null,null,null,null,null,null,null,null,null,null,null,null,null,null,null,null,null,null,null,null,null,null,null,null,null,null,null,null,null,null,null,null,null,null,null,null,null,null,null,null,null,null,null,null,null,null,null,null,null,null,null,null,null,null,"B - 7970","Beloeil"]
[null,null,null,null,null,null,null,null,null,null,null,null,null,null,null,null,null,null,null,null,null,null,null,null,null,null,null,null,null,null,null,null,null,null,null,null,null,null,null,null,null,null,null,null,null,null,null,null,null,null,null,null,null,null,null,null,null,null,null,null,null,null,null,null,null,null,null,null,null,null,null,null,null,null,null,"B - 8000","Brugge"]
[null,null,null,null,null,null,null,null,null,null,null,null,null,null,null,null,null,null,null,null,null,null,null,null,null,null,null,null,null,null,null,null,null,null,null,null,null,null,null,null,null,null,null,null,null,null,null,null,null,null,null,null,null,null,null,null,null,null,null,null,null,null,null,null,null,null,null,null,null,null,null,null,null,null,null,"B - 8020","Oostkamp"]
[null,null,null,null,null,null,null,null,null,null,null,null,null,null,null,null,null,null,null,null,null,null,null,null,null,null,null,null,null,null,null,null,null,null,null,null,null,null,null,null,null,null,null,null,null,null,null,null,null,null,null,null,null,null,null,null,null,null,null,null,null,null,null,null,null,null,null,null,null,null,null,null,null,null,null,"B - 8210","Zedelgem"]
[null,null,null,null,null,null,null,null,null,null,null,null,null,null,null,null,null,null,null,null,null,null,null,null,null,null,null,null,null,null,null,null,null,null,null,null,null,null,null,null,null,null,null,null,null,null,null,null,null,null,null,null,null,null,null,null,null,null,null,null,null,null,null,null,null,null,null,null,null,null,null,null,null,null,null,"B - 8300","Knokke-heist"]
[null,null,null,null,null,null,null,null,null,null,null,null,null,null,null,null,null,null,null,null,null,null,null,null,null,null,null,null,null,null,null,null,null,null,null,null,null,null,null,null,null,null,null,null,null,null,null,null,null,null,null,null,null,null,null,null,null,null,null,null,null,null,null,null,null,null,null,null,null,null,null,null,null,null,null,"B - 8340","Damme"]
[null,null,null,null,null,null,null,null,null,null,null,null,null,null,null,null,null,null,null,null,null,null,null,null,null,null,null,null,null,null,null,null,null,null,null,null,null,null,null,null,null,null,null,null,null,null,null,null,null,null,null,null,null,null,null,null,null,null,null,null,null,null,null,null,null,null,null,null,null,null,null,null,null,null,null,"B - 8370","Blankenberge"]
[null,null,null,null,null,null,null,null,null,null,null,null,null,null,null,null,null,null,null,null,null,null,null,null,null,null,null,null,null,null,null,null,null,null,null,null,null,null,null,null,null,null,null,null,null,null,null,null,null,null,null,null,null,null,null,null,null,null,null,null,null,null,null,null,null,null,null,null,null,null,null,null,null,null,null,"B - 8377","Zuienkerke"]
[null,null,null,null,null,null,null,null,null,null,null,null,null,null,null,null,null,null,null,null,null,null,null,null,null,null,null,null,null,null,null,null,null,null,null,null,null,null,null,null,null,null,null,null,null,null,null,null,null,null,null,null,null,null,null,null,null,null,null,null,null,null,null,null,null,null,null,null,null,null,null,null,null,null,null,"B - 8400","Oostende"]
[null,null,null,null,null,null,null,null,null,null,null,null,null,null,null,null,null,null,null,null,null,null,null,null,null,null,null,null,null,null,null,null,null,null,null,null,null,null,null,null,null,null,null,null,null,null,null,null,null,null,null,null,null,null,null,null,null,null,null,null,null,null,null,null,null,null,null,null,null,null,null,null,null,null,null,"B - 8420","De haan"]
[null,null,null,null,null,null,null,null,null,null,null,null,null,null,null,null,null,null,null,null,null,null,null,null,null,null,null,null,null,null,null,null,null,null,null,null,null,null,null,null,null,null,null,null,null,null,null,null,null,null,null,null,null,null,null,null,null,null,null,null,null,null,null,null,null,null,null,null,null,null,null,null,null,null,null,"B - 8430","Middelkerke"]
[null,null,null,null,null,null,null,null,null,null,null,null,null,null,null,null,null,null,null,null,null,null,null,null,null,null,null,null,null,null,null,null,null,null,null,null,null,null,null,null,null,null,null,null,null,null,null,null,null,null,null,null,null,null,null,null,null,null,null,null,null,null,null,null,null,null,null,null,null,null,null,null,null,null,null,"B - 8450","Bredene"]
[null,null,null,null,null,null,null,null,null,null,null,null,null,null,null,null,null,null,null,null,null,null,null,null,null,null,null,null,null,null,null,null,null,null,null,null,null,null,null,null,null,null,null,null,null,null,null,null,null,null,null,null,null,null,null,null,null,null,null,null,null,null,null,null,null,null,null,null,null,null,null,null,null,null,null,"B - 8460","Oudenburg"]
[null,null,null,null,null,null,null,null,null,null,null,null,null,null,null,null,null,null,null,null,null,null,null,null,null,null,null,null,null,null,null,null,null,null,null,null,null,null,null,null,null,null,null,null,null,null,null,null,null,null,null,null,null,null,null,null,null,null,null,null,null,null,null,null,null,null,null,null,null,null,null,null,null,null,null,"B - 8470","Gistel"]
[null,null,null,null,null,null,null,null,null,null,null,null,null,null,null,null,null,null,null,null,null,null,null,null,null,null,null,null,null,null,null,null,null,null,null,null,null,null,null,null,null,null,null,null,null,null,null,null,null,null,null,null,null,null,null,null,null,null,null,null,null,null,null,null,null,null,null,null,null,null,null,null,null,null,null,"B - 8480","Ichtegem"]
[null,null,null,null,null,null,null,null,null,null,null,null,null,null,null,null,null,null,null,null,null,null,null,null,null,null,null,null,null,null,null,null,null,null,null,null,null,null,null,null,null,null,null,null,null,null,null,null,null,null,null,null,null,null,null,null,null,null,null,null,null,null,null,null,null,null,null,null,null,null,null,null,null,null,null,"B - 8490","Jabbeke"]
[null,null,null,null,null,null,null,null,null,null,null,null,null,null,null,null,null,null,null,null,null,null,null,null,null,null,null,null,null,null,null,null,null,null,null,null,null,null,null,null,null,null,null,null,null,null,null,null,null,null,null,null,null,null,null,null,null,null,null,null,null,null,null,null,null,null,null,null,null,null,null,null,null,null,null,"B - 8500","Kortrijk"]
[null,null,null,null,null,null,null,null,null,null,null,null,null,null,null,null,null,null,null,null,null,null,null,null,null,null,null,null,null,null,null,null,null,null,null,null,null,null,null,null,null,null,null,null,null,null,null,null,null,null,null,null,null,null,null,null,null,null,null,null,null,null,null,null,null,null,null,null,null,null,null,null,null,null,null,"B - 8520","Kuurne"]
[null,null,null,null,null,null,null,null,null,null,null,null,null,null,null,null,null,null,null,null,null,null,null,null,null,null,null,null,null,null,null,null,null,null,null,null,null,null,null,null,null,null,null,null,null,null,null,null,null,null,null,null,null,null,null,null,null,null,null,null,null,null,null,null,null,null,null,null,null,null,null,null,null,null,null,"B - 8530","Harelbeke"]
[null,null,null,null,null,null,null,null,null,null,null,null,null,null,null,null,null,null,null,null,null,null,null,null,null,null,null,null,null,null,null,null,null,null,null,null,null,null,null,null,null,null,null,null,null,null,null,null,null,null,null,null,null,null,null,null,null,null,null,null,null,null,null,null,null,null,null,null,null,null,null,null,null,null,null,"B - 8540","Deerlijk"]
[null,null,null,null,null,null,null,null,null,null,null,null,null,null,null,null,null,null,null,null,null,null,null,null,null,null,null,null,null,null,null,null,null,null,null,null,null,null,null,null,null,null,null,null,null,null,null,null,null,null,null,null,null,null,null,null,null,null,null,null,null,null,null,null,null,null,null,null,null,null,null,null,null,null,null,"B - 8550","Zwevegem"]
[null,null,null,null,null,null,null,null,null,null,null,null,null,null,null,null,null,null,null,null,null,null,null,null,null,null,null,null,null,null,null,null,null,null,null,null,null,null,null,null,null,null,null,null,null,null,null,null,null,null,null,null,null,null,null,null,null,null,null,null,null,null,null,null,null,null,null,null,null,null,null,null,null,null,null,"B - 8560","Wevelgem"]
[null,null,null,null,null,null,null,null,null,null,null,null,null,null,null,null,null,null,null,null,null,null,null,null,null,null,null,null,null,null,null,null,null,null,null,null,null,null,null,null,null,null,null,null,null,null,null,null,null,null,null,null,null,null,null,null,null,null,null,null,null,null,null,null,null,null,null,null,null,null,null,null,null,null,null,"B - 8570","Anzegem"]
[null,null,null,null,null,null,null,null,null,null,null,null,null,null,null,null,null,null,null,null,null,null,null,null,null,null,null,null,null,null,null,null,null,null,null,null,null,null,null,null,null,null,null,null,null,null,null,null,null,null,null,null,null,null,null,null,null,null,null,null,null,null,null,null,null,null,null,null,null,null,null,null,null,null,null,"B - 8580","Avelgem"]
[null,null,null,null,null,null,null,null,null,null,null,null,null,null,null,null,null,null,null,null,null,null,null,null,null,null,null,null,null,null,null,null,null,null,null,null,null,null,null,null,null,null,null,null,null,null,null,null,null,null,null,null,null,null,null,null,null,null,null,null,null,null,null,null,null,null,null,null,null,null,null,null,null,null,null,"B - 8587","Spiere-helkijn"]
[null,null,null,null,null,null,null,null,null,null,null,null,null,null,null,null,null,null,null,null,null,null,null,null,null,null,null,null,null,null,null,null,null,null,null,null,null,null,null,null,null,null,null,null,null,null,null,null,null,null,null,null,null,null,null,null,null,null,null,null,null,null,null,null,null,null,null,null,null,null,null,null,null,null,null,"B - 8600","Diksmuide"]
[null,null,null,null,null,null,null,null,null,null,null,null,null,null,null,null,null,null,null,null,null,null,null,null,null,null,null,null,null,null,null,null,null,null,null,null,null,null,null,null,null,null,null,null,null,null,null,null,null,null,null,null,null,null,null,null,null,null,null,null,null,null,null,null,null,null,null,null,null,null,null,null,null,null,null,"B - 8610","Kortemark"]
[null,null,null,null,null,null,null,null,null,null,null,null,null,null,null,null,null,null,null,null,null,null,null,null,null,null,null,null,null,null,null,null,null,null,null,null,null,null,null,null,null,null,null,null,null,null,null,null,null,null,null,null,null,null,null,null,null,null,null,null,null,null,null,null,null,null,null,null,null,null,null,null,null,null,null,"B - 8620","Nieuwpoort"]
[null,null,null,null,null,null,null,null,null,null,null,null,null,null,null,null,null,null,null,null,null,null,null,null,null,null,null,null,null,null,null,null,null,null,null,null,null,null,null,null,null,null,null,null,null,null,null,null,null,null,null,null,null,null,null,null,null,null,null,null,null,null,null,null,null,null,null,null,null,null,null,null,null,null,null,"B - 8630","Veurne"]
[null,null,null,null,null,null,null,null,null,null,null,null,null,null,null,null,null,null,null,null,null,null,null,null,null,null,null,null,null,null,null,null,null,null,null,null,null,null,null,null,null,null,null,null,null,null,null,null,null,null,null,null,null,null,null,null,null,null,null,null,null,null,null,null,null,null,null,null,null,null,null,null,null,null,null,"B - 8640","Vleteren"]
[null,null,null,null,null,null,null,null,null,null,null,null,null,null,null,null,null,null,null,null,null,null,null,null,null,null,null,null,null,null,null,null,null,null,null,null,null,null,null,null,null,null,null,null,null,null,null,null,null,null,null,null,null,null,null,null,null,null,null,null,null,null,null,null,null,null,null,null,null,null,null,null,null,null,null,"B - 8647","Lo-reninge"]
[null,null,null,null,null,null,null,null,null,null,null,null,null,null,null,null,null,null,null,null,null,null,null,null,null,null,null,null,null,null,null,null,null,null,null,null,null,null,null,null,null,null,null,null,null,null,null,null,null,null,null,null,null,null,null,null,null,null,null,null,null,null,null,null,null,null,null,null,null,null,null,null,null,null,null,"B - 8650","Houthulst"]
[null,null,null,null,null,null,null,null,null,null,null,null,null,null,null,null,null,null,null,null,null,null,null,null,null,null,null,null,null,null,null,null,null,null,null,null,null,null,null,null,null,null,null,null,null,null,null,null,null,null,null,null,null,null,null,null,null,null,null,null,null,null,null,null,null,null,null,null,null,null,null,null,null,null,null,"B - 8660","De panne"]
[null,null,null,null,null,null,null,null,null,null,null,null,null,null,null,null,null,null,null,null,null,null,null,null,null,null,null,null,null,null,null,null,null,null,null,null,null,null,null,null,null,null,null,null,null,null,null,null,null,null,null,null,null,null,null,null,null,null,null,null,null,null,null,null,null,null,null,null,null,null,null,null,null,null,null,"B - 8670","Koksijde"]
[null,null,null,null,null,null,null,null,null,null,null,null,null,null,null,null,null,null,null,null,null,null,null,null,null,null,null,null,null,null,null,null,null,null,null,null,null,null,null,null,null,null,null,null,null,null,null,null,null,null,null,null,null,null,null,null,null,null,null,null,null,null,null,null,null,null,null,null,null,null,null,null,null,null,null,"B - 8680","Koekelare"]
[null,null,null,null,null,null,null,null,null,null,null,null,null,null,null,null,null,null,null,null,null,null,null,null,null,null,null,null,null,null,null,null,null,null,null,null,null,null,null,null,null,null,null,null,null,null,null,null,null,null,null,null,null,null,null,null,null,null,null,null,null,null,null,null,null,null,null,null,null,null,null,null,null,null,null,"B - 8690","Alveringem"]
[null,null,null,null,null,null,null,null,null,null,null,null,null,null,null,null,null,null,null,null,null,null,null,null,null,null,null,null,null,null,null,null,null,null,null,null,null,null,null,null,null,null,null,null,null,null,null,null,null,null,null,null,null,null,null,null,null,null,null,null,null,null,null,null,null,null,null,null,null,null,null,null,null,null,null,"B - 8700","Tielt"]
[null,null,null,null,null,null,null,null,null,null,null,null,null,null,null,null,null,null,null,null,null,null,null,null,null,null,null,null,null,null,null,null,null,null,null,null,null,null,null,null,null,null,null,null,null,null,null,null,null,null,null,null,null,null,null,null,null,null,null,null,null,null,null,null,null,null,null,null,null,null,null,null,null,null,null,"B - 8710","Wielsbeke"]
[null,null,null,null,null,null,null,null,null,null,null,null,null,null,null,null,null,null,null,null,null,null,null,null,null,null,null,null,null,null,null,null,null,null,null,null,null,null,null,null,null,null,null,null,null,null,null,null,null,null,null,null,null,null,null,null,null,null,null,null,null,null,null,null,null,null,null,null,null,null,null,null,null,null,null,"B - 8720","Dentergem"]
[null,null,null,null,null,null,null,null,null,null,null,null,null,null,null,null,null,null,null,null,null,null,null,null,null,null,null,null,null,null,null,null,null,null,null,null,null,null,null,null,null,null,null,null,null,null,null,null,null,null,null,null,null,null,null,null,null,null,null,null,null,null,null,null,null,null,null,null,null,null,null,null,null,null,null,"B - 8730","Beernem"]
[null,null,null,null,null,null,null,null,null,null,null,null,null,null,null,null,null,null,null,null,null,null,null,null,null,null,null,null,null,null,null,null,null,null,null,null,null,null,null,null,null,null,null,null,null,null,null,null,null,null,null,null,null,null,null,null,null,null,null,null,null,null,null,null,null,null,null,null,null,null,null,null,null,null,null,"B - 8740","Pittem"]
[null,null,null,null,null,null,null,null,null,null,null,null,null,null,null,null,null,null,null,null,null,null,null,null,null,null,null,null,null,null,null,null,null,null,null,null,null,null,null,null,null,null,null,null,null,null,null,null,null,null,null,null,null,null,null,null,null,null,null,null,null,null,null,null,null,null,null,null,null,null,null,null,null,null,null,"B - 8750","Wingene"]
[null,null,null,null,null,null,null,null,null,null,null,null,null,null,null,null,null,null,null,null,null,null,null,null,null,null,null,null,null,null,null,null,null,null,null,null,null,null,null,null,null,null,null,null,null,null,null,null,null,null,null,null,null,null,null,null,null,null,null,null,null,null,null,null,null,null,null,null,null,null,null,null,null,null,null,"B - 8755","Ruiselede"]
[null,null,null,null,null,null,null,null,null,null,null,null,null,null,null,null,null,null,null,null,null,null,null,null,null,null,null,null,null,null,null,null,null,null,null,null,null,null,null,null,null,null,null,null,null,null,null,null,null,null,null,null,null,null,null,null,null,null,null,null,null,null,null,null,null,null,null,null,null,null,null,null,null,null,null,"B - 8760","Meulebeke"]
[null,null,null,null,null,null,null,null,null,null,null,null,null,null,null,null,null,null,null,null,null,null,null,null,null,null,null,null,null,null,null,null,null,null,null,null,null,null,null,null,null,null,null,null,null,null,null,null,null,null,null,null,null,null,null,null,null,null,null,null,null,null,null,null,null,null,null,null,null,null,null,null,null,null,null,"B - 8770","Ingelmunster"]
[null,null,null,null,null,null,null,null,null,null,null,null,null,null,null,null,null,null,null,null,null,null,null,null,null,null,null,null,null,null,null,null,null,null,null,null,null,null,null,null,null,null,null,null,null,null,null,null,null,null,null,null,null,null,null,null,null,null,null,null,null,null,null,null,null,null,null,null,null,null,null,null,null,null,null,"B - 8780","Oostrozebeke"]
[null,null,null,null,null,null,null,null,null,null,null,null,null,null,null,null,null,null,null,null,null,null,null,null,null,null,null,null,null,null,null,null,null,null,null,null,null,null,null,null,null,null,null,null,null,null,null,null,null,null,null,null,null,null,null,null,null,null,null,null,null,null,null,null,null,null,null,null,null,null,null,null,null,null,null,"B - 8790","Waregem"]
[null,null,null,null,null,null,null,null,null,null,null,null,null,null,null,null,null,null,null,null,null,null,null,null,null,null,null,null,null,null,null,null,null,null,null,null,null,null,null,null,null,null,null,null,null,null,null,null,null,null,null,null,null,null,null,null,null,null,null,null,null,null,null,null,null,null,null,null,null,null,null,null,null,null,null,"B - 8800","Roeselare"]
[null,null,null,null,null,null,null,null,null,null,null,null,null,null,null,null,null,null,null,null,null,null,null,null,null,null,null,null,null,null,null,null,null,null,null,null,null,null,null,null,null,null,null,null,null,null,null,null,null,null,null,null,null,null,null,null,null,null,null,null,null,null,null,null,null,null,null,null,null,null,null,null,null,null,null,"B - 8810","Lichtervelde"]
[null,null,null,null,null,null,null,null,null,null,null,null,null,null,null,null,null,null,null,null,null,null,null,null,null,null,null,null,null,null,null,null,null,null,null,null,null,null,null,null,null,null,null,null,null,null,null,null,null,null,null,null,null,null,null,null,null,null,null,null,null,null,null,null,null,null,null,null,null,null,null,null,null,null,null,"B - 8820","Torhout"]
[null,null,null,null,null,null,null,null,null,null,null,null,null,null,null,null,null,null,null,null,null,null,null,null,null,null,null,null,null,null,null,null,null,null,null,null,null,null,null,null,null,null,null,null,null,null,null,null,null,null,null,null,null,null,null,null,null,null,null,null,null,null,null,null,null,null,null,null,null,null,null,null,null,null,null,"B - 8830","Hooglede"]
[null,null,null,null,null,null,null,null,null,null,null,null,null,null,null,null,null,null,null,null,null,null,null,null,null,null,null,null,null,null,null,null,null,null,null,null,null,null,null,null,null,null,null,null,null,null,null,null,null,null,null,null,null,null,null,null,null,null,null,null,null,null,null,null,null,null,null,null,null,null,null,null,null,null,null,"B - 8840","Staden"]
[null,null,null,null,null,null,null,null,null,null,null,null,null,null,null,null,null,null,null,null,null,null,null,null,null,null,null,null,null,null,null,null,null,null,null,null,null,null,null,null,null,null,null,null,null,null,null,null,null,null,null,null,null,null,null,null,null,null,null,null,null,null,null,null,null,null,null,null,null,null,null,null,null,null,null,"B - 8850","Ardooie"]
[null,null,null,null,null,null,null,null,null,null,null,null,null,null,null,null,null,null,null,null,null,null,null,null,null,null,null,null,null,null,null,null,null,null,null,null,null,null,null,null,null,null,null,null,null,null,null,null,null,null,null,null,null,null,null,null,null,null,null,null,null,null,null,null,null,null,null,null,null,null,null,null,null,null,null,"B - 8860","Lendelede"]
[null,null,null,null,null,null,null,null,null,null,null,null,null,null,null,null,null,null,null,null,null,null,null,null,null,null,null,null,null,null,null,null,null,null,null,null,null,null,null,null,null,null,null,null,null,null,null,null,null,null,null,null,null,null,null,null,null,null,null,null,null,null,null,null,null,null,null,null,null,null,null,null,null,null,null,"B - 8870","Izegem"]
[null,null,null,null,null,null,null,null,null,null,null,null,null,null,null,null,null,null,null,null,null,null,null,null,null,null,null,null,null,null,null,null,null,null,null,null,null,null,null,null,null,null,null,null,null,null,null,null,null,null,null,null,null,null,null,null,null,null,null,null,null,null,null,null,null,null,null,null,null,null,null,null,null,null,null,"B - 8880","Ledegem"]
[null,null,null,null,null,null,null,null,null,null,null,null,null,null,null,null,null,null,null,null,null,null,null,null,null,null,null,null,null,null,null,null,null,null,null,null,null,null,null,null,null,null,null,null,null,null,null,null,null,null,null,null,null,null,null,null,null,null,null,null,null,null,null,null,null,null,null,null,null,null,null,null,null,null,null,"B - 8890","Moorslede"]
[null,null,null,null,null,null,null,null,null,null,null,null,null,null,null,null,null,null,null,null,null,null,null,null,null,null,null,null,null,null,null,null,null,null,null,null,null,null,null,null,null,null,null,null,null,null,null,null,null,null,null,null,null,null,null,null,null,null,null,null,null,null,null,null,null,null,null,null,null,null,null,null,null,null,null,"B - 8900","Ieper"]
[null,null,null,null,null,null,null,null,null,null,null,null,null,null,null,null,null,null,null,null,null,null,null,null,null,null,null,null,null,null,null,null,null,null,null,null,null,null,null,null,null,null,null,null,null,null,null,null,null,null,null,null,null,null,null,null,null,null,null,null,null,null,null,null,null,null,null,null,null,null,null,null,null,null,null,"B - 8920","Langemark-poelkapelle"]
[null,null,null,null,null,null,null,null,null,null,null,null,null,null,null,null,null,null,null,null,null,null,null,null,null,null,null,null,null,null,null,null,null,null,null,null,null,null,null,null,null,null,null,null,null,null,null,null,null,null,null,null,null,null,null,null,null,null,null,null,null,null,null,null,null,null,null,null,null,null,null,null,null,null,null,"B - 8930","Menen"]
[null,null,null,null,null,null,null,null,null,null,null,null,null,null,null,null,null,null,null,null,null,null,null,null,null,null,null,null,null,null,null,null,null,null,null,null,null,null,null,null,null,null,null,null,null,null,null,null,null,null,null,null,null,null,null,null,null,null,null,null,null,null,null,null,null,null,null,null,null,null,null,null,null,null,null,"B - 8940","Wervik"]
[null,null,null,null,null,null,null,null,null,null,null,null,null,null,null,null,null,null,null,null,null,null,null,null,null,null,null,null,null,null,null,null,null,null,null,null,null,null,null,null,null,null,null,null,null,null,null,null,null,null,null,null,null,null,null,null,null,null,null,null,null,null,null,null,null,null,null,null,null,null,null,null,null,null,null,"B - 8950","Heuvelland"]
[null,null,null,null,null,null,null,null,null,null,null,null,null,null,null,null,null,null,null,null,null,null,null,null,null,null,null,null,null,null,null,null,null,null,null,null,null,null,null,null,null,null,null,null,null,null,null,null,null,null,null,null,null,null,null,null,null,null,null,null,null,null,null,null,null,null,null,null,null,null,null,null,null,null,null,"B - 8957","Mesen"]
[null,null,null,null,null,null,null,null,null,null,null,null,null,null,null,null,null,null,null,null,null,null,null,null,null,null,null,null,null,null,null,null,null,null,null,null,null,null,null,null,null,null,null,null,null,null,null,null,null,null,null,null,null,null,null,null,null,null,null,null,null,null,null,null,null,null,null,null,null,null,null,null,null,null,null,"B - 8970","Poperinge"]
[null,null,null,null,null,null,null,null,null,null,null,null,null,null,null,null,null,null,null,null,null,null,null,null,null,null,null,null,null,null,null,null,null,null,null,null,null,null,null,null,null,null,null,null,null,null,null,null,null,null,null,null,null,null,null,null,null,null,null,null,null,null,null,null,null,null,null,null,null,null,null,null,null,null,null,"B - 8980","Zonnebeke"]
[null,null,null,null,null,null,null,null,null,null,null,null,null,null,null,null,null,null,null,null,null,null,null,null,null,null,null,null,null,null,null,null,null,null,null,null,null,null,null,null,null,null,null,null,null,null,null,null,null,null,null,null,null,null,null,null,null,null,null,null,null,null,null,null,null,null,null,null,null,null,null,null,null,null,null,"B - 9000","Gent"]
[null,null,null,null,null,null,null,null,null,null,null,null,null,null,null,null,null,null,null,null,null,null,null,null,null,null,null,null,null,null,null,null,null,null,null,null,null,null,null,null,null,null,null,null,null,null,null,null,null,null,null,null,null,null,null,null,null,null,null,null,null,null,null,null,null,null,null,null,null,null,null,null,null,null,null,"B - 9060","Zelzate"]
[null,null,null,null,null,null,null,null,null,null,null,null,null,null,null,null,null,null,null,null,null,null,null,null,null,null,null,null,null,null,null,null,null,null,null,null,null,null,null,null,null,null,null,null,null,null,null,null,null,null,null,null,null,null,null,null,null,null,null,null,null,null,null,null,null,null,null,null,null,null,null,null,null,null,null,"B - 9070","Destelbergen"]
[null,null,null,null,null,null,null,null,null,null,null,null,null,null,null,null,null,null,null,null,null,null,null,null,null,null,null,null,null,null,null,null,null,null,null,null,null,null,null,null,null,null,null,null,null,null,null,null,null,null,null,null,null,null,null,null,null,null,null,null,null,null,null,null,null,null,null,null,null,null,null,null,null,null,null,"B - 9080","Lochristi"]
[null,null,null,null,null,null,null,null,null,null,null,null,null,null,null,null,null,null,null,null,null,null,null,null,null,null,null,null,null,null,null,null,null,null,null,null,null,null,null,null,null,null,null,null,null,null,null,null,null,null,null,null,null,null,null,null,null,null,null,null,null,null,null,null,null,null,null,null,null,null,null,null,null,null,null,"B - 9090","Melle"]
[null,null,null,null,null,null,null,null,null,null,null,null,null,null,null,null,null,null,null,null,null,null,null,null,null,null,null,null,null,null,null,null,null,null,null,null,null,null,null,null,null,null,null,null,null,null,null,null,null,null,null,null,null,null,null,null,null,null,null,null,null,null,null,null,null,null,null,null,null,null,null,null,null,null,null,"B - 9100","Sint-niklaas"]
[null,null,null,null,null,null,null,null,null,null,null,null,null,null,null,null,null,null,null,null,null,null,null,null,null,null,null,null,null,null,null,null,null,null,null,null,null,null,null,null,null,null,null,null,null,null,null,null,null,null,null,null,null,null,null,null,null,null,null,null,null,null,null,null,null,null,null,null,null,null,null,null,null,null,null,"B - 9120","Beveren-waas"]
[null,null,null,null,null,null,null,null,null,null,null,null,null,null,null,null,null,null,null,null,null,null,null,null,null,null,null,null,null,null,null,null,null,null,null,null,null,null,null,null,null,null,null,null,null,null,null,null,null,null,null,null,null,null,null,null,null,null,null,null,null,null,null,null,null,null,null,null,null,null,null,null,null,null,null,"B - 9140","Temse"]
[null,null,null,null,null,null,null,null,null,null,null,null,null,null,null,null,null,null,null,null,null,null,null,null,null,null,null,null,null,null,null,null,null,null,null,null,null,null,null,null,null,null,null,null,null,null,null,null,null,null,null,null,null,null,null,null,null,null,null,null,null,null,null,null,null,null,null,null,null,null,null,null,null,null,null,"B - 9150","Kruibeke"]
[null,null,null,null,null,null,null,null,null,null,null,null,null,null,null,null,null,null,null,null,null,null,null,null,null,null,null,null,null,null,null,null,null,null,null,null,null,null,null,null,null,null,null,null,null,null,null,null,null,null,null,null,null,null,null,null,null,null,null,null,null,null,null,null,null,null,null,null,null,null,null,null,null,null,null,"B - 9160","Lokeren"]
[null,null,null,null,null,null,null,null,null,null,null,null,null,null,null,null,null,null,null,null,null,null,null,null,null,null,null,null,null,null,null,null,null,null,null,null,null,null,null,null,null,null,null,null,null,null,null,null,null,null,null,null,null,null,null,null,null,null,null,null,null,null,null,null,null,null,null,null,null,null,null,null,null,null,null,"B - 9170","Sint-gillis-waas"]
[null,null,null,null,null,null,null,null,null,null,null,null,null,null,null,null,null,null,null,null,null,null,null,null,null,null,null,null,null,null,null,null,null,null,null,null,null,null,null,null,null,null,null,null,null,null,null,null,null,null,null,null,null,null,null,null,null,null,null,null,null,null,null,null,null,null,null,null,null,null,null,null,null,null,null,"B - 9180","Moerbeke-waas"]
[null,null,null,null,null,null,null,null,null,null,null,null,null,null,null,null,null,null,null,null,null,null,null,null,null,null,null,null,null,null,null,null,null,null,null,null,null,null,null,null,null,null,null,null,null,null,null,null,null,null,null,null,null,null,null,null,null,null,null,null,null,null,null,null,null,null,null,null,null,null,null,null,null,null,null,"B - 9185","Wachtebeke"]
[null,null,null,null,null,null,null,null,null,null,null,null,null,null,null,null,null,null,null,null,null,null,null,null,null,null,null,null,null,null,null,null,null,null,null,null,null,null,null,null,null,null,null,null,null,null,null,null,null,null,null,null,null,null,null,null,null,null,null,null,null,null,null,null,null,null,null,null,null,null,null,null,null,null,null,"B - 9190","Stekene"]
[null,null,null,null,null,null,null,null,null,null,null,null,null,null,null,null,null,null,null,null,null,null,null,null,null,null,null,null,null,null,null,null,null,null,null,null,null,null,null,null,null,null,null,null,null,null,null,null,null,null,null,null,null,null,null,null,null,null,null,null,null,null,null,null,null,null,null,null,null,null,null,null,null,null,null,"B - 9200","Dendermonde"]
[null,null,null,null,null,null,null,null,null,null,null,null,null,null,null,null,null,null,null,null,null,null,null,null,null,null,null,null,null,null,null,null,null,null,null,null,null,null,null,null,null,null,null,null,null,null,null,null,null,null,null,null,null,null,null,null,null,null,null,null,null,null,null,null,null,null,null,null,null,null,null,null,null,null,null,"B - 9220","Hamme"]
[null,null,null,null,null,null,null,null,null,null,null,null,null,null,null,null,null,null,null,null,null,null,null,null,null,null,null,null,null,null,null,null,null,null,null,null,null,null,null,null,null,null,null,null,null,null,null,null,null,null,null,null,null,null,null,null,null,null,null,null,null,null,null,null,null,null,null,null,null,null,null,null,null,null,null,"B - 9230","Wetteren"]
[null,null,null,null,null,null,null,null,null,null,null,null,null,null,null,null,null,null,null,null,null,null,null,null,null,null,null,null,null,null,null,null,null,null,null,null,null,null,null,null,null,null,null,null,null,null,null,null,null,null,null,null,null,null,null,null,null,null,null,null,null,null,null,null,null,null,null,null,null,null,null,null,null,null,null,"B - 9240","Zele"]
[null,null,null,null,null,null,null,null,null,null,null,null,null,null,null,null,null,null,null,null,null,null,null,null,null,null,null,null,null,null,null,null,null,null,null,null,null,null,null,null,null,null,null,null,null,null,null,null,null,null,null,null,null,null,null,null,null,null,null,null,null,null,null,null,null,null,null,null,null,null,null,null,null,null,null,"B - 9250","Waasmunster"]
[null,null,null,null,null,null,null,null,null,null,null,null,null,null,null,null,null,null,null,null,null,null,null,null,null,null,null,null,null,null,null,null,null,null,null,null,null,null,null,null,null,null,null,null,null,null,null,null,null,null,null,null,null,null,null,null,null,null,null,null,null,null,null,null,null,null,null,null,null,null,null,null,null,null,null,"B - 9255","Buggenhout"]
[null,null,null,null,null,null,null,null,null,null,null,null,null,null,null,null,null,null,null,null,null,null,null,null,null,null,null,null,null,null,null,null,null,null,null,null,null,null,null,null,null,null,null,null,null,null,null,null,null,null,null,null,null,null,null,null,null,null,null,null,null,null,null,null,null,null,null,null,null,null,null,null,null,null,null,"B - 9260","Wichelen"]
[null,null,null,null,null,null,null,null,null,null,null,null,null,null,null,null,null,null,null,null,null,null,null,null,null,null,null,null,null,null,null,null,null,null,null,null,null,null,null,null,null,null,null,null,null,null,null,null,null,null,null,null,null,null,null,null,null,null,null,null,null,null,null,null,null,null,null,null,null,null,null,null,null,null,null,"B - 9270","Laarne"]
[null,null,null,null,null,null,null,null,null,null,null,null,null,null,null,null,null,null,null,null,null,null,null,null,null,null,null,null,null,null,null,null,null,null,null,null,null,null,null,null,null,null,null,null,null,null,null,null,null,null,null,null,null,null,null,null,null,null,null,null,null,null,null,null,null,null,null,null,null,null,null,null,null,null,null,"B - 9280","Lebbeke"]
[null,null,null,null,null,null,null,null,null,null,null,null,null,null,null,null,null,null,null,null,null,null,null,null,null,null,null,null,null,null,null,null,null,null,null,null,null,null,null,null,null,null,null,null,null,null,null,null,null,null,null,null,null,null,null,null,null,null,null,null,null,null,null,null,null,null,null,null,null,null,null,null,null,null,null,"B - 9290","Berlare"]
[null,null,null,null,null,null,null,null,null,null,null,null,null,null,null,null,null,null,null,null,null,null,null,null,null,null,null,null,null,null,null,null,null,null,null,null,null,null,null,null,null,null,null,null,null,null,null,null,null,null,null,null,null,null,null,null,null,null,null,null,null,null,null,null,null,null,null,null,null,null,null,null,null,null,null,"B - 9300","Aalst"]
[null,null,null,null,null,null,null,null,null,null,null,null,null,null,null,null,null,null,null,null,null,null,null,null,null,null,null,null,null,null,null,null,null,null,null,null,null,null,null,null,null,null,null,null,null,null,null,null,null,null,null,null,null,null,null,null,null,null,null,null,null,null,null,null,null,null,null,null,null,null,null,null,null,null,null,"B - 9340","Lede"]
[null,null,null,null,null,null,null,null,null,null,null,null,null,null,null,null,null,null,null,null,null,null,null,null,null,null,null,null,null,null,null,null,null,null,null,null,null,null,null,null,null,null,null,null,null,null,null,null,null,null,null,null,null,null,null,null,null,null,null,null,null,null,null,null,null,null,null,null,null,null,null,null,null,null,null,"B - 9400","Ninove"]
[null,null,null,null,null,null,null,null,null,null,null,null,null,null,null,null,null,null,null,null,null,null,null,null,null,null,null,null,null,null,null,null,null,null,null,null,null,null,null,null,null,null,null,null,null,null,null,null,null,null,null,null,null,null,null,null,null,null,null,null,null,null,null,null,null,null,null,null,null,null,null,null,null,null,null,"B - 9420","Erpe-mere"]
[null,null,null,null,null,null,null,null,null,null,null,null,null,null,null,null,null,null,null,null,null,null,null,null,null,null,null,null,null,null,null,null,null,null,null,null,null,null,null,null,null,null,null,null,null,null,null,null,null,null,null,null,null,null,null,null,null,null,null,null,null,null,null,null,null,null,null,null,null,null,null,null,null,null,null,"B - 9450","Haaltert"]
[null,null,null,null,null,null,null,null,null,null,null,null,null,null,null,null,null,null,null,null,null,null,null,null,null,null,null,null,null,null,null,null,null,null,null,null,null,null,null,null,null,null,null,null,null,null,null,null,null,null,null,null,null,null,null,null,null,null,null,null,null,null,null,null,null,null,null,null,null,null,null,null,null,null,null,"B - 9470","Denderleeuw"]
[null,null,null,null,null,null,null,null,null,null,null,null,null,null,null,null,null,null,null,null,null,null,null,null,null,null,null,null,null,null,null,null,null,null,null,null,null,null,null,null,null,null,null,null,null,null,null,null,null,null,null,null,null,null,null,null,null,null,null,null,null,null,null,null,null,null,null,null,null,null,null,null,null,null,null,"B - 9500","Geraardsbergen"]
[null,null,null,null,null,null,null,null,null,null,null,null,null,null,null,null,null,null,null,null,null,null,null,null,null,null,null,null,null,null,null,null,null,null,null,null,null,null,null,null,null,null,null,null,null,null,null,null,null,null,null,null,null,null,null,null,null,null,null,null,null,null,null,null,null,null,null,null,null,null,null,null,null,null,null,"B - 9520","Sint-lievens-houtem"]
[null,null,null,null,null,null,null,null,null,null,null,null,null,null,null,null,null,null,null,null,null,null,null,null,null,null,null,null,null,null,null,null,null,null,null,null,null,null,null,null,null,null,null,null,null,null,null,null,null,null,null,null,null,null,null,null,null,null,null,null,null,null,null,null,null,null,null,null,null,null,null,null,null,null,null,"B - 9550","Herzele"]
[null,null,null,null,null,null,null,null,null,null,null,null,null,null,null,null,null,null,null,null,null,null,null,null,null,null,null,null,null,null,null,null,null,null,null,null,null,null,null,null,null,null,null,null,null,null,null,null,null,null,null,null,null,null,null,null,null,null,null,null,null,null,null,null,null,null,null,null,null,null,null,null,null,null,null,"B - 9570","Lierde"]
[null,null,null,null,null,null,null,null,null,null,null,null,null,null,null,null,null,null,null,null,null,null,null,null,null,null,null,null,null,null,null,null,null,null,null,null,null,null,null,null,null,null,null,null,null,null,null,null,null,null,null,null,null,null,null,null,null,null,null,null,null,null,null,null,null,null,null,null,null,null,null,null,null,null,null,"B - 9600","Ronse"]
[null,null,null,null,null,null,null,null,null,null,null,null,null,null,null,null,null,null,null,null,null,null,null,null,null,null,null,null,null,null,null,null,null,null,null,null,null,null,null,null,null,null,null,null,null,null,null,null,null,null,null,null,null,null,null,null,null,null,null,null,null,null,null,null,null,null,null,null,null,null,null,null,null,null,null,"B - 9620","Zottegem"]
[null,null,null,null,null,null,null,null,null,null,null,null,null,null,null,null,null,null,null,null,null,null,null,null,null,null,null,null,null,null,null,null,null,null,null,null,null,null,null,null,null,null,null,null,null,null,null,null,null,null,null,null,null,null,null,null,null,null,null,null,null,null,null,null,null,null,null,null,null,null,null,null,null,null,null,"B - 9630","Zwalm"]
[null,null,null,null,null,null,null,null,null,null,null,null,null,null,null,null,null,null,null,null,null,null,null,null,null,null,null,null,null,null,null,null,null,null,null,null,null,null,null,null,null,null,null,null,null,null,null,null,null,null,null,null,null,null,null,null,null,null,null,null,null,null,null,null,null,null,null,null,null,null,null,null,null,null,null,"B - 9660","Brakel"]
[null,null,null,null,null,null,null,null,null,null,null,null,null,null,null,null,null,null,null,null,null,null,null,null,null,null,null,null,null,null,null,null,null,null,null,null,null,null,null,null,null,null,null,null,null,null,null,null,null,null,null,null,null,null,null,null,null,null,null,null,null,null,null,null,null,null,null,null,null,null,null,null,null,null,null,"B - 9667","Horebeke"]
[null,null,null,null,null,null,null,null,null,null,null,null,null,null,null,null,null,null,null,null,null,null,null,null,null,null,null,null,null,null,null,null,null,null,null,null,null,null,null,null,null,null,null,null,null,null,null,null,null,null,null,null,null,null,null,null,null,null,null,null,null,null,null,null,null,null,null,null,null,null,null,null,null,null,null,"B - 9680","Maarkedal"]
[null,null,null,null,null,null,null,null,null,null,null,null,null,null,null,null,null,null,null,null,null,null,null,null,null,null,null,null,null,null,null,null,null,null,null,null,null,null,null,null,null,null,null,null,null,null,null,null,null,null,null,null,null,null,null,null,null,null,null,null,null,null,null,null,null,null,null,null,null,null,null,null,null,null,null,"B - 9690","Kluisbergen"]
[null,null,null,null,null,null,null,null,null,null,null,null,null,null,null,null,null,null,null,null,null,null,null,null,null,null,null,null,null,null,null,null,null,null,null,null,null,null,null,null,null,null,null,null,null,null,null,null,null,null,null,null,null,null,null,null,null,null,null,null,null,null,null,null,null,null,null,null,null,null,null,null,null,null,null,"B - 9700","Oudenaarde"]
[null,null,null,null,null,null,null,null,null,null,null,null,null,null,null,null,null,null,null,null,null,null,null,null,null,null,null,null,null,null,null,null,null,null,null,null,null,null,null,null,null,null,null,null,null,null,null,null,null,null,null,null,null,null,null,null,null,null,null,null,null,null,null,null,null,null,null,null,null,null,null,null,null,null,null,"B - 9750","Zingem"]
[null,null,null,null,null,null,null,null,null,null,null,null,null,null,null,null,null,null,null,null,null,null,null,null,null,null,null,null,null,null,null,null,null,null,null,null,null,null,null,null,null,null,null,null,null,null,null,null,null,null,null,null,null,null,null,null,null,null,null,null,null,null,null,null,null,null,null,null,null,null,null,null,null,null,null,"B - 9770","Kruishoutem"]
[null,null,null,null,null,null,null,null,null,null,null,null,null,null,null,null,null,null,null,null,null,null,null,null,null,null,null,null,null,null,null,null,null,null,null,null,null,null,null,null,null,null,null,null,null,null,null,null,null,null,null,null,null,null,null,null,null,null,null,null,null,null,null,null,null,null,null,null,null,null,null,null,null,null,null,"B - 9790","Wortegem-petegem"]
[null,null,null,null,null,null,null,null,null,null,null,null,null,null,null,null,null,null,null,null,null,null,null,null,null,null,null,null,null,null,null,null,null,null,null,null,null,null,null,null,null,null,null,null,null,null,null,null,null,null,null,null,null,null,null,null,null,null,null,null,null,null,null,null,null,null,null,null,null,null,null,null,null,null,null,"B - 9800","Deinze"]
[null,null,null,null,null,null,null,null,null,null,null,null,null,null,null,null,null,null,null,null,null,null,null,null,null,null,null,null,null,null,null,null,null,null,null,null,null,null,null,null,null,null,null,null,null,null,null,null,null,null,null,null,null,null,null,null,null,null,null,null,null,null,null,null,null,null,null,null,null,null,null,null,null,null,null,"B - 9810","Nazareth"]
[null,null,null,null,null,null,null,null,null,null,null,null,null,null,null,null,null,null,null,null,null,null,null,null,null,null,null,null,null,null,null,null,null,null,null,null,null,null,null,null,null,null,null,null,null,null,null,null,null,null,null,null,null,null,null,null,null,null,null,null,null,null,null,null,null,null,null,null,null,null,null,null,null,null,null,"B - 9820","Merelbeke"]
[null,null,null,null,null,null,null,null,null,null,null,null,null,null,null,null,null,null,null,null,null,null,null,null,null,null,null,null,null,null,null,null,null,null,null,null,null,null,null,null,null,null,null,null,null,null,null,null,null,null,null,null,null,null,null,null,null,null,null,null,null,null,null,null,null,null,null,null,null,null,null,null,null,null,null,"B - 9830","Sint-martens-latem"]
[null,null,null,null,null,null,null,null,null,null,null,null,null,null,null,null,null,null,null,null,null,null,null,null,null,null,null,null,null,null,null,null,null,null,null,null,null,null,null,null,null,null,null,null,null,null,null,null,null,null,null,null,null,null,null,null,null,null,null,null,null,null,null,null,null,null,null,null,null,null,null,null,null,null,null,"B - 9840","De pinte"]
[null,null,null,null,null,null,null,null,null,null,null,null,null,null,null,null,null,null,null,null,null,null,null,null,null,null,null,null,null,null,null,null,null,null,null,null,null,null,null,null,null,null,null,null,null,null,null,null,null,null,null,null,null,null,null,null,null,null,null,null,null,null,null,null,null,null,null,null,null,null,null,null,null,null,null,"B - 9850","Nevele"]
[null,null,null,null,null,null,null,null,null,null,null,null,null,null,null,null,null,null,null,null,null,null,null,null,null,null,null,null,null,null,null,null,null,null,null,null,null,null,null,null,null,null,null,null,null,null,null,null,null,null,null,null,null,null,null,null,null,null,null,null,null,null,null,null,null,null,null,null,null,null,null,null,null,null,null,"B - 9860","Oosterzele"]
[null,null,null,null,null,null,null,null,null,null,null,null,null,null,null,null,null,null,null,null,null,null,null,null,null,null,null,null,null,null,null,null,null,null,null,null,null,null,null,null,null,null,null,null,null,null,null,null,null,null,null,null,null,null,null,null,null,null,null,null,null,null,null,null,null,null,null,null,null,null,null,null,null,null,null,"B - 9870","Zulte"]
[null,null,null,null,null,null,null,null,null,null,null,null,null,null,null,null,null,null,null,null,null,null,null,null,null,null,null,null,null,null,null,null,null,null,null,null,null,null,null,null,null,null,null,null,null,null,null,null,null,null,null,null,null,null,null,null,null,null,null,null,null,null,null,null,null,null,null,null,null,null,null,null,null,null,null,"B - 9880","Aalter"]
[null,null,null,null,null,null,null,null,null,null,null,null,null,null,null,null,null,null,null,null,null,null,null,null,null,null,null,null,null,null,null,null,null,null,null,null,null,null,null,null,null,null,null,null,null,null,null,null,null,null,null,null,null,null,null,null,null,null,null,null,null,null,null,null,null,null,null,null,null,null,null,null,null,null,null,"B - 9890","Gavere"]
[null,null,null,null,null,null,null,null,null,null,null,null,null,null,null,null,null,null,null,null,null,null,null,null,null,null,null,null,null,null,null,null,null,null,null,null,null,null,null,null,null,null,null,null,null,null,null,null,null,null,null,null,null,null,null,null,null,null,null,null,null,null,null,null,null,null,null,null,null,null,null,null,null,null,null,"B - 9900","Eeklo"]
[null,null,null,null,null,null,null,null,null,null,null,null,null,null,null,null,null,null,null,null,null,null,null,null,null,null,null,null,null,null,null,null,null,null,null,null,null,null,null,null,null,null,null,null,null,null,null,null,null,null,null,null,null,null,null,null,null,null,null,null,null,null,null,null,null,null,null,null,null,null,null,null,null,null,null,"B - 9910","Knesselare"]
[null,null,null,null,null,null,null,null,null,null,null,null,null,null,null,null,null,null,null,null,null,null,null,null,null,null,null,null,null,null,null,null,null,null,null,null,null,null,null,null,null,null,null,null,null,null,null,null,null,null,null,null,null,null,null,null,null,null,null,null,null,null,null,null,null,null,null,null,null,null,null,null,null,null,null,"B - 9920","Lovendegem"]
[null,null,null,null,null,null,null,null,null,null,null,null,null,null,null,null,null,null,null,null,null,null,null,null,null,null,null,null,null,null,null,null,null,null,null,null,null,null,null,null,null,null,null,null,null,null,null,null,null,null,null,null,null,null,null,null,null,null,null,null,null,null,null,null,null,null,null,null,null,null,null,null,null,null,null,"B - 9930","Zomergem"]
[null,null,null,null,null,null,null,null,null,null,null,null,null,null,null,null,null,null,null,null,null,null,null,null,null,null,null,null,null,null,null,null,null,null,null,null,null,null,null,null,null,null,null,null,null,null,null,null,null,null,null,null,null,null,null,null,null,null,null,null,null,null,null,null,null,null,null,null,null,null,null,null,null,null,null,"B - 9940","Evergem"]
[null,null,null,null,null,null,null,null,null,null,null,null,null,null,null,null,null,null,null,null,null,null,null,null,null,null,null,null,null,null,null,null,null,null,null,null,null,null,null,null,null,null,null,null,null,null,null,null,null,null,null,null,null,null,null,null,null,null,null,null,null,null,null,null,null,null,null,null,null,null,null,null,null,null,null,"B - 9950","Waarschoot"]
[null,null,null,null,null,null,null,null,null,null,null,null,null,null,null,null,null,null,null,null,null,null,null,null,null,null,null,null,null,null,null,null,null,null,null,null,null,null,null,null,null,null,null,null,null,null,null,null,null,null,null,null,null,null,null,null,null,null,null,null,null,null,null,null,null,null,null,null,null,null,null,null,null,null,null,"B - 9960","Assenede"]
[null,null,null,null,null,null,null,null,null,null,null,null,null,null,null,null,null,null,null,null,null,null,null,null,null,null,null,null,null,null,null,null,null,null,null,null,null,null,null,null,null,null,null,null,null,null,null,null,null,null,null,null,null,null,null,null,null,null,null,null,null,null,null,null,null,null,null,null,null,null,null,null,null,null,null,"B - 9970","Kaprijke"]
[null,null,null,null,null,null,null,null,null,null,null,null,null,null,null,null,null,null,null,null,null,null,null,null,null,null,null,null,null,null,null,null,null,null,null,null,null,null,null,null,null,null,null,null,null,null,null,null,null,null,null,null,null,null,null,null,null,null,null,null,null,null,null,null,null,null,null,null,null,null,null,null,null,null,null,"B - 9980","Sint-laureins"]
[null,null,null,null,null,null,null,null,null,null,null,null,null,null,null,null,null,null,null,null,null,null,null,null,null,null,null,null,null,null,null,null,null,null,null,null,null,null,null,null,null,null,null,null,null,null,null,null,null,null,null,null,null,null,null,null,null,null,null,null,null,null,null,null,null,null,null,null,null,null,null,null,null,null,null,"B - 9990","Maldegem"]

{"sheet":"L0","index":2,"n_rows":8,"n_cols":13,"rows_kept":8,"cut":false,"hidden":true,"merged":[[4,0,4,12],[0,0,0,12],[1,0,1,1],[1,5,1,6],[1,7,1,8],[1,9,1,11],[2,0,2,12],[3,1,3,3],[3,8,3,10],[3,11,3,12],[1,2,1,4],[3,5,3,6],[5,3,5,7],[5,8,5,9],[5,10,5,12],[6,0,7,0],[6,1,7,1],[6,2,7,2],[6,3,6,4],[6,5,7,5],[6,6,7,6],[6,7,7,7],[6,8,7,8],[6,9,7,9],[6,10,7,10],[6,11,7,11],[6,12,7,12],[5,0,5,2]]}
["Boorstaten tabel"]
["Dossiernummer:",null,null,null,null,null,null,"Boringnummer:"]
[]
["Gemeente:",null,null,null,"Site:",{"$f":"Database!E1","v":0},null,"Boorbaas:",null,null,null,"X: 150690,54 Y: 214650,74 Z: 4,5 m"]
[]
[null,null,null,"Aard van de monsters",null,null,null,null,"Boormethode",null,"Wateroppervlak +  opgemeten ( uur)"]
["Datum","Diepte in m","Nr Mstr","Grondsoortbenaming",null,"Consistentie","Kleur","Vocht-gehalte","Ontnamewijze monster","Dia. Voerb.mm","a. eerst        b. weg             c. terug","1. Ochtend  2. Middag     3. Avond","Opmerking"]
[null,null,null,"Hoofdbenaming","Bijmenging"]

{"sheet":"Geoearth","index":3,"n_rows":27,"n_cols":25,"rows_kept":27,"cut":false,"hidden":true,"merged":[[1,0,1,8],[4,0,4,12],[0,0,0,10]]}
[]
[]
[" ","Pin","Label","Lambert  X\nof 4.123456","Lambert  Y\nof 50.123446","H.","Schaal","Info","Link","Referentie","Range","Logo","Verw."]
[null,"•","Labelkleur",95842.4,183443.85,0,0.7,"Geolab nv - 10-07-2022","geolab.be","clampToGround",1500,0,null,null,null,null,null,null,null,null,null,null,"Werkwijze"]
[]
[null,null,null,null,null,null,null,null,null,null,null,null,null,null,null,7,"grijs","FFCFCFCF",8421504,null,"Invullen nieuw dossier"]
[null,null,null,null,null,null,null,null,null,null,null,null,null,null,null,8,"oranje","FF00AAFF",39406,null,1,"selecteer cell ",null,"•"," en klik op een kleur"]
[null,null,null,null,null,null,null,null,null,null,null,null,null,null,null,null,null,null,null,null,2,"selecteer cell",null,"Labelkl"," en klik op een kleur"]
[null,null,null,null,null,null,null,null,null,null,null,null,null,null,null,"Voorbeeld",null,null,null,null,3,"selecteer cell clampToGround en klik op "]
[null,null,null,null,null,null,null,null,null,null,null,null,null,null,5,"B1",3.6738277780000002,51.02902778,null,null,3,"Wijzig eventueel data in cell info,link,range,logo"]
[null,null,null,null,null,null,null,null,null,null,null,null,null,null,6,"B2",3.6737861110000001,51.029361110000004,null,null,4,"om een lijn toe te voegen klikt u op"]
[null,null,null,null,null,null,null,null,null,null,null,null,null,null,7,"B3",3.6738138889999998,51.029747219999997,null,null,5,"vul label in"]
[null,null,null,null,null,null,null,null,null,null,null,null,null,null,8,"B3",3.6738138999999999,51.029947219999997,null,null,6,"vul coördinaten in"]
[null,null,null,null,null,null,null,null,null,null,null,null,null,null,null,null,null,null,null,null,7,"verander eventueel andere data"]
[null,null,null,null,null,null,null,null,null,null,null,null,null,null,null,null,null,null,null,null,"Verwijderen lijnen"]
[null,null,null,null,null,null,null,null,null,null,null,null,null,null,null,null,null,null,null,null,1,"Selecteer aantal te verwijderen lijnen in om het even welke kolom"]
[null,null,null,null,null,null,null,null,null,null,null,null,null,null,null,null,null,null,null,null,2,"Druk op "]
[]
[null,null,null,null,null,null,null,null,null,null,null,null,null,null,null,null,null,null,null,null,"Bewaar en bekijk resultaat"]
[null,null,null,null,null,null,null,null,null,null,null,null,null,null,null,null,null,null,null,null,null,"Klik op Google Earth icoon"]
[]
[null,null,null,null,null,null,null,null,null,null,null,null,null,null,null,null,null,null,null,null,"Voorbeeld import",null,null,".csv file"]
[null,null,null,null,null,null,null,null,null,null,null,null,null,null,null,null,null,null,null,null,"pin","label","naam","X","Y"]
[null,null,null,null,null,null,null,null,null,null,null,null,null,null,null,null,null,null,null,null,1,5,"B1",3.6738277780000002,51.02902778]
[null,null,null,null,null,null,null,null,null,null,null,null,null,null,null,null,null,null,null,null,2,6,"B2",3.6737861110000001,51.029361110000004]
[null,null,null,null,null,null,null,null,null,null,null,null,null,null,null,null,null,null,null,null,3,7,"B3",3.6738138889999998,51.029747219999997]
[null,null,null,null,null,null,null,null,null,null,null,null,null,null,null,null,null,null,null,null,4,8,"B3",3.6738138999999999,51.029947219999997]

{"sheet":"B00","index":4,"n_rows":1003,"n_cols":82,"rows_kept":1003,"cut":false,"hidden":true,"merged":[[84,40,86,40],[84,41,86,41],[84,42,86,53],[87,40,89,40],[87,41,89,41],[87,42,89,53],[90,40,92,40],[90,41,92,41],[90,42,92,53],[93,40,95,40],[93,41,95,41],[93,42,95,53],[96,40,98,40],[96,41,98,41],[96,42,98,53],[2,30,2,31],[2,32,2,33],[2,34,2,35],[2,40,2,41],[2,43,2,53],[7,43,9,43],[7,44,9,44],[11,45,13,45],[11,46,13,46],[24,38,26,38],[21,38,23,38],[34,50,36,50],[34,51,36,51],[34,52,36,52],[34,53,36,53],[31,51,33,51],[31,52,33,52],[3,2,3,3],[3,22,3,26],[3,29,3,34],[3,40,5,40],[3,41,5,41],[2,1,2,3],[2,4,2,8],[2,9,2,12],[2,13,2,20],[2,21,2,26],[2,28,2,29],[0,0,0,5],[0,7,0,22],[0,40,1,53],[1,7,1,22],[1,0,1,6],[0,25,0,28],[1,26,1,28],[0,34,0,35],[0,29,0,33],[8,22,8,26],[8,29,8,34],[9,22,9,26],[9,29,9,34],[6,22,6,26],[6,29,6,34],[7,22,7,26],[7,29,7,34],[7,40,9,40],[7,41,9,41],[3,43,5,43],[3,44,5,44],[4,22,4,26],[4,29,4,34],[5,22,5,26],[5,29,5,34],[11,44,13,44],[11,60,13,62],[12,22,12,26],[12,27,13,27],[12,29,12,34],[13,22,13,26],[13,29,13,34],[10,22,10,26],[10,29,10,34],[10,43,13,43],[11,22,11,26],[11,29,11,34],[11,40,13,40],[11,41,13,41],[12,10,13,11],[19,29,19,34],[20,22,20,26],[20,29,20,34],[20,43,22,43],[20,44,22,44],[20,45,22,45],[17,44,19,44],[17,45,19,45],[17,46,19,46],[17,60,19,62],[18,22,18,26],[18,29,18,34],[18,38,20,38],[18,40,20,40],[18,41,20,41],[19,22,19,26],[14,45,16,45],[14,46,16,46],[15,22,15,26],[15,29,15,34],[15,38,17,38],[16,22,16,26],[16,29,16,34],[17,22,17,26],[17,29,17,34],[17,43,19,43],[14,22,14,26],[14,29,14,34],[14,40,16,40],[14,41,16,41],[14,43,16,43],[14,44,16,44],[24,60,27,62],[25,22,25,26],[25,29,25,34],[25,40,27,40],[25,41,27,41],[26,22,26,26],[26,29,26,34],[27,22,27,26],[27,29,27,34],[27,38,29,38],[23,22,23,26],[23,29,23,34],[23,43,25,43],[23,44,25,44],[23,45,25,45],[23,46,25,46],[24,22,24,26],[24,29,24,34],[22,22,22,26],[22,27,23,27],[22,29,22,34],[22,40,24,40],[22,41,24,41],[31,47,33,47],[31,48,33,48],[31,49,33,49],[30,22,30,26],[30,29,30,34],[30,38,32,38],[30,40,32,40],[30,41,32,41],[31,22,31,26],[31,29,31,34],[22,10,23,11],[27,43,29,43],[27,44,29,44],[27,45,29,45],[27,46,29,46],[28,22,28,26],[28,29,28,34],[29,22,29,26],[29,29,29,34],[20,46,22,46],[21,22,21,26],[21,29,21,34],[32,10,33,11],[35,22,35,26],[35,29,35,34],[36,22,36,26],[36,29,36,34],[34,44,36,44],[34,45,36,45],[34,46,36,46],[34,47,36,47],[34,48,36,48],[34,49,36,49],[33,38,35,38],[34,22,34,26],[34,29,34,34],[34,40,36,40],[34,41,36,41],[34,43,36,43],[31,50,33,50],[31,53,33,53],[32,22,32,26],[32,27,33,27],[32,29,32,34],[33,22,33,26],[33,29,33,34],[31,44,33,44],[31,45,33,45],[31,46,33,46],[46,29,46,34],[41,29,41,34],[41,94,42,94],[42,22,42,26],[42,27,43,27],[42,29,42,34],[42,40,44,40],[42,41,44,41],[43,22,43,26],[43,29,43,34],[37,53,39,53],[38,22,38,26],[38,29,38,34],[39,22,39,26],[39,29,39,34],[39,40,41,40],[39,41,41,41],[40,22,40,26],[40,29,40,34],[41,22,41,26],[37,47,39,47],[37,48,39,48],[37,49,39,49],[37,50,39,50],[37,51,39,51],[37,52,39,52],[37,22,37,26],[37,29,37,34],[37,43,39,43],[37,44,39,44],[37,45,39,45],[37,46,39,46],[42,10,43,11],[52,22,52,26],[52,27,53,27],[52,29,52,34],[53,22,53,26],[51,43,53,43],[51,44,53,44],[51,45,53,45],[51,46,53,46],[51,47,53,47],[51,48,53,48],[50,22,50,26],[50,29,50,34],[51,22,51,26],[51,29,51,34],[51,40,53,40],[51,41,53,41],[53,29,53,34],[52,10,53,11],[47,22,47,26],[47,29,47,34],[47,40,49,40],[47,41,49,53],[48,22,48,26],[48,29,48,34],[49,22,49,26],[49,29,49,34],[44,22,44,26],[44,29,44,34],[45,22,45,26],[45,29,45,34],[46,22,46,26],[55,22,55,26],[55,29,55,34],[56,22,56,26],[56,29,56,34],[57,22,57,26],[57,29,57,34],[54,48,56,48],[54,49,56,49],[42,43,44,43],[54,50,56,50],[54,51,56,51],[54,52,56,52],[54,53,56,53],[53,87,54,87],[54,22,54,26],[54,29,54,34],[54,40,56,40],[54,41,56,41],[54,43,56,43],[54,44,56,44],[54,45,56,45],[54,46,56,46],[54,47,56,47],[51,49,53,49],[51,50,53,50],[51,51,53,51],[51,52,53,52],[51,53,53,53],[61,83,62,83],[61,84,62,84],[61,85,62,85],[61,87,62,87],[62,22,62,26],[62,27,63,27],[62,29,62,34],[63,22,63,26],[63,29,63,34],[62,10,63,11],[60,22,60,26],[60,29,60,34],[60,40,62,40],[60,41,62,41],[61,22,61,26],[61,29,61,34],[57,40,59,40],[57,41,59,41],[58,22,58,26],[58,29,58,34],[59,22,59,26],[59,29,59,34],[69,87,70,87],[70,22,70,26],[70,29,70,34],[71,22,71,26],[71,29,71,34],[66,22,66,26],[66,29,66,34],[66,40,68,40],[66,41,68,41],[66,42,68,53],[66,83,68,83],[67,22,67,26],[67,29,67,34],[68,22,68,26],[68,29,68,34],[63,40,65,40],[63,41,65,41],[63,42,65,53],[64,22,64,26],[64,29,64,34],[65,22,65,26],[65,29,65,34],[73,83,74,83],[74,22,74,26],[74,29,74,34],[75,22,75,26],[75,29,75,34],[75,40,77,40],[76,22,76,26],[76,29,76,34],[72,22,72,26],[72,27,73,27],[72,29,72,34],[73,22,73,26],[73,29,73,34],[69,22,69,26],[69,29,69,34],[69,40,71,40],[69,41,71,41],[69,42,71,53],[72,40,74,40],[72,41,74,41],[72,42,74,53],[75,41,77,41],[75,42,77,53],[82,87,83,87],[83,22,83,26],[83,29,83,34],[80,22,80,26],[80,29,80,34],[80,83,81,83],[80,84,81,84],[80,87,81,87],[81,22,81,26],[81,29,81,34],[82,10,83,11],[76,87,77,87],[77,22,77,26],[77,29,77,34],[78,22,78,26],[78,29,78,34],[78,87,79,87],[79,22,79,26],[79,29,79,34],[78,40,80,40],[78,41,80,41],[78,42,80,53],[81,40,83,40],[81,41,83,41],[81,42,83,53],[90,22,90,26],[90,29,90,34],[90,38,92,38],[91,22,91,26],[91,29,91,34],[92,22,92,26],[92,27,93,27],[92,29,92,34],[93,22,93,26],[87,22,87,26],[87,29,87,34],[87,38,89,38],[88,22,88,26],[88,29,88,34],[89,22,89,26],[89,29,89,34],[72,10,73,11],[84,22,84,26],[84,29,84,34],[84,38,86,38],[85,22,85,26],[85,29,85,34],[86,22,86,26],[86,29,86,34],[82,22,82,26],[82,27,83,27],[82,29,82,34],[92,10,93,11],[103,29,103,34],[104,22,104,26],[104,29,104,34],[99,22,99,26],[99,29,99,34],[99,38,101,38],[100,22,100,26],[100,29,100,34],[101,22,101,26],[101,29,101,34],[96,22,96,26],[96,29,96,34],[96,38,98,38],[97,22,97,26],[97,29,97,34],[98,22,98,26],[98,29,98,34],[102,10,103,11],[93,29,93,34],[93,38,95,38],[94,22,94,26],[94,29,94,34],[95,22,95,26],[95,29,95,34],[111,22,111,26],[111,29,111,34],[112,22,112,26],[112,27,113,27],[112,29,112,34],[113,22,113,26],[113,29,113,34],[108,22,108,26],[108,29,108,34],[109,22,109,26],[109,29,109,34],[110,22,110,26],[110,29,110,34],[105,22,105,26],[105,29,105,34],[106,22,106,26],[106,29,106,34],[107,22,107,26],[107,29,107,34],[112,10,113,11],[102,22,102,26],[102,27,103,27],[102,29,102,34],[102,38,104,38],[103,22,103,26],[120,22,120,26],[120,29,120,34],[121,22,121,26],[121,29,121,34],[122,22,122,26],[122,27,123,27],[122,29,122,34],[123,22,123,26],[123,29,123,34],[117,22,117,26],[117,29,117,34],[118,22,118,26],[118,29,118,34],[119,22,119,26],[119,29,119,34],[114,22,114,26],[114,29,114,34],[115,22,115,26],[115,29,115,34],[116,22,116,26],[116,29,116,34],[122,10,123,11],[130,22,130,26],[130,29,130,34],[131,22,131,26],[131,29,131,34],[132,22,132,26],[132,27,133,27],[132,29,132,34],[133,22,133,26],[133,29,133,34],[127,22,127,26],[127,29,127,34],[128,22,128,26],[128,29,128,34],[129,22,129,26],[129,29,129,34],[124,22,124,26],[124,29,124,34],[125,22,125,26],[125,29,125,34],[126,22,126,26],[126,29,126,34],[132,10,133,11],[140,22,140,26],[140,29,140,34],[141,22,141,26],[141,29,141,34],[142,22,142,26],[142,27,143,27],[142,29,142,34],[143,22,143,26],[143,29,143,34],[137,22,137,26],[137,29,137,34],[138,22,138,26],[138,29,138,34],[139,22,139,26],[139,29,139,34],[134,22,134,26],[134,29,134,34],[135,22,135,26],[135,29,135,34],[136,22,136,26],[136,29,136,34],[142,10,143,11],[150,22,150,26],[150,29,150,34],[151,22,151,26],[151,29,151,34],[152,22,152,26],[152,27,153,27],[152,29,152,34],[153,22,153,26],[153,29,153,34],[147,22,147,26],[147,29,147,34],[148,22,148,26],[148,29,148,34],[149,22,149,26],[149,29,149,34],[144,22,144,26],[144,29,144,34],[145,22,145,26],[145,29,145,34],[146,22,146,26],[146,29,146,34],[152,10,153,11],[160,22,160,26],[160,29,160,34],[161,22,161,26],[161,29,161,34],[162,22,162,26],[162,27,163,27],[162,29,162,34],[163,22,163,26],[163,29,163,34],[157,22,157,26],[157,29,157,34],[158,22,158,26],[158,29,158,34],[159,22,159,26],[159,29,159,34],[154,22,154,26],[154,29,154,34],[155,22,155,26],[155,29,155,34],[156,22,156,26],[156,29,156,34],[162,10,163,11],[170,22,170,26],[170,29,170,34],[171,22,171,26],[171,29,171,34],[172,22,172,26],[172,27,173,27],[172,29,172,34],[173,22,173,26],[173,29,173,34],[167,22,167,26],[167,29,167,34],[168,22,168,26],[168,29,168,34],[169,22,169,26],[169,29,169,34],[164,22,164,26],[164,29,164,34],[165,22,165,26],[165,29,165,34],[166,22,166,26],[166,29,166,34],[172,10,173,11],[180,22,180,26],[180,29,180,34],[181,22,181,26],[181,29,181,34],[182,22,182,26],[182,27,183,27],[182,29,182,34],[183,22,183,26],[183,29,183,34],[177,22,177,26],[177,29,177,34],[178,22,178,26],[178,29,178,34],[179,22,179,26],[179,29,179,34],[174,22,174,26],[174,29,174,34],[175,22,175,26],[175,29,175,34],[176,22,176,26],[176,29,176,34],[182,10,183,11],[190,22,190,26],[190,29,190,34],[191,22,191,26],[191,29,191,34],[192,22,192,26],[192,27,193,27],[192,29,192,34],[193,22,193,26],[193,29,193,34],[187,22,187,26],[187,29,187,34],[188,22,188,26],[188,29,188,34],[189,22,189,26],[189,29,189,34],[184,22,184,26],[184,29,184,34],[185,22,185,26],[185,29,185,34],[186,22,186,26],[186,29,186,34],[192,10,193,11],[200,22,200,26],[200,29,200,34],[201,22,201,26],[201,29,201,34],[202,22,202,26],[202,27,203,27],[202,29,202,34],[203,22,203,26],[203,29,203,34],[197,22,197,26],[197,29,197,34],[198,22,198,26],[198,29,198,34],[199,22,199,26],[199,29,199,34],[194,22,194,26],[194,29,194,34],[195,22,195,26],[195,29,195,34],[196,22,196,26],[196,29,196,34],[202,10,203,11],[210,22,210,26],[210,29,210,34],[211,22,211,26],[211,29,211,34],[212,22,212,26],[212,27,213,27],[212,29,212,34],[213,22,213,26],[213,29,213,34],[207,22,207,26],[207,29,207,34],[208,22,208,26],[208,29,208,34],[209,22,209,26],[209,29,209,34],[204,22,204,26],[204,29,204,34],[205,22,205,26],[205,29,205,34],[206,22,206,26],[206,29,206,34],[212,10,213,11],[220,22,220,26],[220,29,220,34],[221,22,221,26],[221,29,221,34],[222,22,222,26],[222,27,223,27],[222,29,222,34],[223,22,223,26],[223,29,223,34],[217,22,217,26],[217,29,217,34],[218,22,218,26],[218,29,218,34],[219,22,219,26],[219,29,219,34],[214,22,214,26],[214,29,214,34],[215,22,215,26],[215,29,215,34],[216,22,216,26],[216,29,216,34],[222,10,223,11],[230,22,230,26],[230,29,230,34],[231,22,231,26],[231,29,231,34],[232,22,232,26],[232,27,233,27],[232,29,232,34],[233,22,233,26],[233,29,233,34],[227,22,227,26],[227,29,227,34],[228,22,228,26],[228,29,228,34],[229,22,229,26],[229,29,229,34],[224,22,224,26],[224,29,224,34],[225,22,225,26],[225,29,225,34],[226,22,226,26],[226,29,226,34],[232,10,233,11],[240,22,240,26],[240,29,240,34],[241,22,241,26],[241,29,241,34],[242,22,242,26],[242,27,243,27],[242,29,242,34],[243,22,243,26],[243,29,243,34],[237,22,237,26],[237,29,237,34],[238,22,238,26],[238,29,238,34],[239,22,239,26],[239,29,239,34],[234,22,234,26],[234,29,234,34],[235,22,235,26],[235,29,235,34],[236,22,236,26],[236,29,236,34],[242,10,243,11],[250,22,250,26],[250,29,250,34],[251,22,251,26],[251,29,251,34],[252,22,252,26],[252,27,253,27],[252,29,252,34],[253,22,253,26],[253,29,253,34],[247,22,247,26],[247,29,247,34],[248,22,248,26],[248,29,248,34],[249,22,249,26],[249,29,249,34],[244,22,244,26],[244,29,244,34],[245,22,245,26],[245,29,245,34],[246,22,246,26],[246,29,246,34],[252,10,253,11],[260,22,260,26],[260,29,260,34],[261,22,261,26],[261,29,261,34],[262,22,262,26],[262,27,263,27],[262,29,262,34],[263,22,263,26],[263,29,263,34],[257,22,257,26],[257,29,257,34],[258,22,258,26],[258,29,258,34],[259,22,259,26],[259,29,259,34],[254,22,254,26],[254,29,254,34],[255,22,255,26],[255,29,255,34],[256,22,256,26],[256,29,256,34],[262,10,263,11],[270,22,270,26],[270,29,270,34],[271,22,271,26],[271,29,271,34],[272,22,272,26],[272,27,273,27],[272,29,272,34],[273,22,273,26],[273,29,273,34],[267,22,267,26],[267,29,267,34],[268,22,268,26],[268,29,268,34],[269,22,269,26],[269,29,269,34],[264,22,264,26],[264,29,264,34],[265,22,265,26],[265,29,265,34],[266,22,266,26],[266,29,266,34],[272,10,273,11],[280,22,280,26],[280,29,280,34],[281,22,281,26],[281,29,281,34],[282,22,282,26],[282,27,283,27],[282,29,282,34],[283,22,283,26],[283,29,283,34],[277,22,277,26],[277,29,277,34],[278,22,278,26],[278,29,278,34],[279,22,279,26],[279,29,279,34],[274,22,274,26],[274,29,274,34],[275,22,275,26],[275,29,275,34],[276,22,276,26],[276,29,276,34],[282,10,283,11],[290,22,290,26],[290,29,290,34],[291,22,291,26],[291,29,291,34],[292,22,292,26],[292,27,293,27],[292,29,292,34],[293,22,293,26],[293,29,293,34],[287,22,287,26],[287,29,287,34],[288,22,288,26],[288,29,288,34],[289,22,289,26],[289,29,289,34],[284,22,284,26],[284,29,284,34],[285,22,285,26],[285,29,285,34],[286,22,286,26],[286,29,286,34],[292,10,293,11],[300,22,300,26],[300,29,300,34],[301,22,301,26],[301,29,301,34],[302,22,302,26],[302,27,303,27],[302,29,302,34],[303,22,303,26],[303,29,303,34],[297,22,297,26],[297,29,297,34],[298,22,298,26],[298,29,298,34],[299,22,299,26],[299,29,299,34],[294,22,294,26],[294,29,294,34],[295,22,295,26],[295,29,295,34],[296,22,296,26],[296,29,296,34],[302,10,303,11],[310,22,310,26],[310,29,310,34],[311,22,311,26],[311,29,311,34],[312,22,312,26],[312,27,313,27],[312,29,312,34],[313,22,313,26],[313,29,313,34],[307,22,307,26],[307,29,307,34],[308,22,308,26],[308,29,308,34],[309,22,309,26],[309,29,309,34],[304,22,304,26],[304,29,304,34],[305,22,305,26],[305,29,305,34],[306,22,306,26],[306,29,306,34],[312,10,313,11],[320,22,320,26],[320,29,320,34],[321,22,321,26],[321,29,321,34],[322,22,322,26],[322,27,323,27],[322,29,322,34],[323,22,323,26],[323,29,323,34],[317,22,317,26],[317,29,317,34],[318,22,318,26],[318,29,318,34],[319,22,319,26],[319,29,319,34],[314,22,314,26],[314,29,314,34],[315,22,315,26],[315,29,315,34],[316,22,316,26],[316,29,316,34],[322,10,323,11],[330,22,330,26],[330,29,330,34],[331,22,331,26],[331,29,331,34],[332,22,332,26],[332,27,333,27],[332,29,332,34],[333,22,333,26],[333,29,333,34],[327,22,327,26],[327,29,327,34],[328,22,328,26],[328,29,328,34],[329,22,329,26],[329,29,329,34],[324,22,324,26],[324,29,324,34],[325,22,325,26],[325,29,325,34],[326,22,326,26],[326,29,326,34],[332,10,333,11],[340,22,340,26],[340,29,340,34],[341,22,341,26],[341,29,341,34],[342,22,342,26],[342,27,343,27],[342,29,342,34],[343,22,343,26],[343,29,343,34],[337,22,337,26],[337,29,337,34],[338,22,338,26],[338,29,338,34],[339,22,339,26],[339,29,339,34],[334,22,334,26],[334,29,334,34],[335,22,335,26],[335,29,335,34],[336,22,336,26],[336,29,336,34],[342,10,343,11],[350,22,350,26],[350,29,350,34],[351,22,351,26],[351,29,351,34],[352,22,352,26],[352,27,353,27],[352,29,352,34],[353,22,353,26],[353,29,353,34],[347,22,347,26],[347,29,347,34],[348,22,348,26],[348,29,348,34],[349,22,349,26],[349,29,349,34],[344,22,344,26],[344,29,344,34],[345,22,345,26],[345,29,345,34],[346,22,346,26],[346,29,346,34],[352,10,353,11],[360,22,360,26],[360,29,360,34],[361,22,361,26],[361,29,361,34],[362,22,362,26],[362,27,363,27],[362,29,362,34],[363,22,363,26],[363,29,363,34],[357,22,357,26],[357,29,357,34],[358,22,358,26],[358,29,358,34],[359,22,359,26],[359,29,359,34],[354,22,354,26],[354,29,354,34],[355,22,355,26],[355,29,355,34],[356,22,356,26],[356,29,356,34],[362,10,363,11],[370,22,370,26],[370,29,370,34]],"merged_total":2406,"flags":["merged_cut"]}
["Project:",null,null,null,null,null,null,{"$f":"Database!E1","v":0},null,null,null,null,null,null,null,null,null,null,null,null,null,null,null,"Project Nr:",{"$f":"ProjectNr","v":0},{"$f":"IF(taw=\"\",\"\",IF(LEFT(taw,1)=\"*\",Z1vertaling(\"B\"),Z1vertaling(\"A\")))","v":""},null,null,null,{"$f":"IF(taw=\"\",\"\",IF(LEFT(taw,1)=\"*\",VALUE(MID(taw,2,LEN(taw))),VALUE(taw)))","v":""},null,null,null,null,{"$f":"IF(taw <> \"\",\"m\",\"\")","v":""},null,null,null,null,null,null,null,null,null,null,null,null,null,null,null,null,null,null,null,null,null,null,null,null,null,null,null,null,null,{"$f":"25*3","v":75},null,null,null,null,null,null,null,null,null,null,null,null,"10",5]
["Boorplaats:",null,null,null,null,null,null,{"$f":"Boorplaats","v":" "},null,null,null,null,null,null,null,null,null,null,null,null,null,null,null,"Boring nr:",{"$f":"BoringNr","v":0},"Datum:",{"$f":"deDatum","v":"00:00:00"},null,null,null,null,null,null,null,null,null,null,null,null,null,null,null,null,null,null,null,null,null,null,null,null,null,null,null,null,null,null,null,null,null,null,null,null,null,1,11,21,31,41,51,119,200,null,1,null,null,null,null,6]
[null,"Grondwater (m-Mv)",null,null,"Peilbuisconstructie",null,null,null,null,"Diepte (m-Mv)",null,null,null,"Profiel",null,null,null,null,null,null,null,"Beschrijving grondsoort",null,null,null,null,null,"Grens (m-Mv)","Geologische",null,"en/of",null,"organoleptische",null,"waarnemingen",null,null,null,null,null,"Project info\nDecimale teken is een punt !",null,null,"Peilbuisconstructie",null,null,null,null,null,null,null,null,null,null,null,null,null,null,null,null,null,null,null,null,null,null,null,null,null,null,null,null,null,null,null,null,null,null,7]
[null,null,null,null,null,null,null,null,null,null,null,null,null,null,null,null,null,null,null,null,null,null,null,null,null,null,null,null,null,null,null,null,null,null,null,null,null,null,null,null,"Project:",null,null,"Peilbuis On/Off:",1,null,null,null,null,null,null,null,null,null,null,null,null,null,null,null,null,null,null,null,null,null,null,null,null,null,null,null,null,null,null,null,null,null,8]
[null,null,null,null,null,null,null,null,null,null,null,null,null,null,null,null,null,null,null,null,null,null,null,null,null,null,null,null,null,null,null,null,null,null,null,null,null,null,null,null,null,null,null,null,null,null,null,null,null,null,null,null,null,null,null,null,null,null,null,null,null,null,null,null,null,null,null,null,null,null,null,null,null,null,null,null,null,null,9]
[null,null,null,null,null,null,null,null,null,null,null,null,null,null,null,null,null,null,null,null,null,null,null,null,null,null,null,null,null,null,null,null,null,null,null,null,null,null,null,null,null,null,null,null,null,null,null,null,null,null,null,null,null,null,null,null,null,null,null,null,null,null,null,null,null,null,null,null,null,null,null,null,null,null,null,null,null,null,10]
[null,null,null,null,null,null,null,null,null,null,null,null,null,null,null,null,null,null,null,null,null,null,null,null,null,null,null,null,null,null,null,null,null,null,null,null,null,null,null,null,null,null,null,null,null,null,null,null,null,null,null,null,null,null,null,null,null,null,null,null,null,null,null,null,null,null,null,null,null,null,null,null,null,null,null,null,null,null,11]
[null,null,null,null,null,null,null,null,null,null,null,null,null,null,null,null,null,null,null,null,null,null,null,null,null,null,null,null,null,null,null,null,null,null,null,null,null,null,null,null,"Boorplaats:"," ",null,"Omstorting:",0.5,null,null,null,null,null,null,null,null,null,null,null,null,null,null,null,null,null,null,null,null,null,null,null,null,null,null,null,null,null,null,null,null,null,12]
[null,null,null,null,null,null,null,null,null,null,null,null,null,null,null,null,null,null,null,null,null,null,null,null,null,null,null,null,null,null,null,null,null,null,null,null,null,null,null,null,null,null,null,null,null,null,null,null,null,null,null,null,null,null,null,null,null,null,null,null,null,null,null,null,null,null,null,null,null,null,null,null,null,null,null,null,null,null,20]
[null,null,null,null,null,null,null,null,null,null,null,null,null,null,null,null,null,null,null,null,null,null,null,null,null,null,null,null,null,null,null,null,null,null,null,null,null,null,null,null,null,null,null,null,null,null,null,null,null,null,null,null,null,null,null,null,null,null,null,null,null,null,null,null,null,null,null,null,null,null,null,null,null,null,null,null,null,null,30]
[null,null,null,null,null,null,null,null,null,null,null,null,null,null,null,null,null,null,null,null,null,null,null,null,null,null,null,null,null,null,null,null,null,null,null,null,null,null,null,null,null,null,null,null,null,null,null,null,null,null,null,null,null,null,null,null,null,null,null,null,null,null,null,null,null,null,null,null,null,null,null,null,null,null,null,null,null,null,40]
[null,null,null,null,null,null,null,null,null,null,null,null,null,null,null,null,null,null,null,null,null,null,null,null,null,null,null,null,null,null,null,null,null,null,null,null,null,null,null,null,"Project nr:",null,null,null,1,2,3,null,null,null,null,null,null,null,null,null,null,null,null,null,"Rechthoek tekst",null,null,null,null,null,null,null,null,null,null,null,null,null,null,null,null,null,50]
[null,null,null,null,null,null,null,null,null,1]
[]
[null,null,null,null,null,null,null,null,null,null,null,null,null,null,null,null,null,null,null,null,null,null,null,null,null,null,null,null,null,null,null,null,null,null,null,null,null,null,null,null,"Boring nr:",null,null,"Begin Klei:"]
[]
[]
[null,null,null,null,null,null,null,null,null,null,null,null,null,null,null,null,null,null,null,null,null,null,null,null,null,null,null,null,null,null,null,null,null,null,null,null,null,null,null,null,null,null,null,"Einde Klei:",null,null,null,null,null,null,null,null,null,null,null,null,null,null,null,null,"Vrije vorm: beschrijving"]
[null,null,null,null,null,null,null,null,null,null,null,null,null,null,null,null,null,null,null,null,null,null,null,null,null,null,null,null,null,null,null,null,null,null,null,null,null,null,null,null,"Datum:"]
[]
[null,null,null,null,null,null,null,null,null,null,null,null,null,null,null,null,null,null,null,null,null,null,null,null,null,null,null,null,null,null,null,null,null,null,null,null,null,null,null,null,null,null,null,"Begin Filter:"]
[]
[null,null,null,null,null,null,null,null,null,2,null,null,null,null,null,null,null,null,null,null,null,null,null,null,null,null,null,null,null,null,null,null,null,null,null,null,null,null,null,null,"Lambert coördinaten X:"]
[null,null,null,null,null,null,null,null,null,null,null,null,null,null,null,null,null,null,null,null,null,null,null,null,null,null,null,null,null,null,null,null,null,null,null,null,null,null,null,null,null,null,null,"Einde Filter:"]
[null,null,null,null,null,null,null,null,null,null,null,null,null,null,null,null,null,null,null,null,null,null,null,null,null,null,null,null,null,null,null,null,null,null,null,null,null,null,null,null,null,null,null,null,null,null,null,null,null,null,null,null,null,null,null,null,null,null,null,null,"Rechte verbindingslijn 1"]
[null,null,null,null,null,null,null,null,null,null,null,null,null,null,null,null,null,null,null,null,null,null,null,null,null,null,null,null,null,null,null,null,null,null,null,null,null,null,null,null,"Lambert coördinaten Y:"]
[]
[null,null,null,null,null,null,null,null,null,null,null,null,null,null,null,null,null,null,null,null,null,null,null,null,null,null,null,null,null,null,null,null,null,null,null,null,null,null,null,null,null,null,null,"Zandvang:"]
[]
[]
[null,null,null,null,null,null,null,null,null,null,null,null,null,null,null,null,null,null,null,null,null,null,null,null,null,null,null,null,null,null,null,null,null,null,null,null,null,null,null,null,"T.A.W. of RP (prefix = *)"]
[null,null,null,null,null,null,null,null,null,null,null,null,null,null,null,null,null,null,null,null,null,null,null,null,null,null,null,null,null,null,null,null,null,null,null,null,null,null,null,null,null,null,null,null,1,2,3,4,5,6,7,8,9,10]
[null,null,null,null,null,null,null,null,null,3]
[]
[null,null,null,null,null,null,null,null,null,null,null,null,null,null,null,null,null,null,null,null,null,null,null,null,null,null,null,null,null,null,null,null,null,null,null,null,null,null,null,null,"Grondwaterpeil:",null,null,"Extra klei-stops -> van:"]
[]
[]
[null,null,null,null,null,null,null,null,null,null,null,null,null,null,null,null,null,null,null,null,null,null,null,null,null,null,null,null,null,null,null,null,null,null,null,null,null,null,null,null,null,null,null,"Extra klei-stops -> tot:"]
[]
[null,null,null,null,null,null,null,null,null,null,null,null,null,null,null,null,null,null,null,null,null,null,null,null,null,null,null,null,null,null,null,null,null,null,null,null,null,null,null,null,"Geboorde diepte:",10]
[]
[]
[null,null,null,null,null,null,null,null,null,4,null,null,null,null,null,null,null,null,null,null,null,null,null,null,null,null,null,null,null,null,null,null,null,null,null,null,null,null,null,null,"Diepte per blad:"]
[]
[]
[]
[]
[null,null,null,null,null,null,null,null,null,null,null,null,null,null,null,null,null,null,null,null,null,null,null,null,null,null,null,null,null,null,null,null,null,null,null,null,null,null,null,null,"Footer info:"]
[]
[]
[]
[null,null,null,null,null,null,null,null,null,null,null,null,null,null,null,null,null,null,null,null,null,null,null,null,null,null,null,null,null,null,null,null,null,null,null,null,null,null,null,null,"A/V",null,null,"Lijn"]
[null,null,null,null,null,null,null,null,null,5]
[]
[null,null,null,null,null,null,null,null,null,null,null,null,null,null,null,null,null,null,null,null,null,null,null,null,null,null,null,null,null,null,null,null,null,null,null,null,null,null,null,null,"Quartair",null,null,"Poly-lijn"]
[]
[]
[null,null,null,null,null,null,null,null,null,null,null,null,null,null,null,null,null,null,null,null,null,null,null,null,null,null,null,null,null,null,null,null,null,null,null,null,null,null,null,null,"Tertiair"]
[]
[]
[null,null,null,null,null,null,null,null,null,null,null,null,null,null,null,null,null,null,null,null,null,null,null,null,null,null,null,null,null,null,null,null,null,null,null,null,null,null,null,null,"Secundair"]
[]
[null,null,null,null,null,null,null,null,null,6]
[null,null,null,null,null,null,null,null,null,null,null,null,null,null,null,null,null,null,null,null,null,null,null,null,null,null,null,null,null,null,null,null,null,null,null,null,null,null,null,null,"Vrije tekst 1"]
[]
[]
[null,null,null,null,null,null,null,null,null,null,null,null,null,null,null,null,null,null,null,null,null,null,null,null,null,null,null,null,null,null,null,null,null,null,null,null,null,null,null,null,"Vrije tekst 2"]
[]
[]
[null,null,null,null,null,null,null,null,null,null,null,null,null,null,null,null,null,null,null,null,null,null,null,null,null,null,null,null,null,null,null,null,null,null,null,null,null,null,null,null,"Vrije tekst 3"]
[]
[]
[null,null,null,null,null,null,null,null,null,7,null,null,null,null,null,null,null,null,null,null,null,null,null,null,null,null,null,null,null,null,null,null,null,null,null,null,null,null,null,null,"Vrije tekst 4"]
[]
[]
[null,null,null,null,null,null,null,null,null,null,null,null,null,null,null,null,null,null,null,null,null,null,null,null,null,null,null,null,null,null,null,null,null,null,null,null,null,null,null,null,"Vrije tekst 5"]
[]
[]
[null,null,null,null,null,null,null,null,null,null,null,null,null,null,null,null,null,null,null,null,null,null,null,null,null,null,null,null,null,null,null,null,null,null,null,null,null,null,null,null,"Vrije tekst 6",null,null,null,null,null,null,null,null,null,null,null,null,null,null,null,null,null,null,null,null,null,null,null,null,null,null,null,null,null,null,null,null,null,null,null,null,null,null,null,null,"="]
[]
[]
[null,null,null,null,null,null,null,null,null,null,null,null,null,null,null,null,null,null,null,null,null,null,null,null,null,null,null,null,null,null,null,null,null,null,null,null,null,null,null,null,"Vrije tekst 7"]
[null,null,null,null,null,null,null,null,null,8]
[]
[null,null,null,null,null,null,null,null,null,null,null,null,null,null,null,null,null,null,null,null,null,null,null,null,null,null,null,null,null,null,null,null,null,null,null,null,null,null,null,null,"Vrije tekst 8"]
[]
[]
[null,null,null,null,null,null,null,null,null,null,null,null,null,null,null,null,null,null,null,null,null,null,null,null,null,null,null,null,null,null,null,null,null,null,null,null,null,null,null,null,"Vrije tekst 9"]
[]
[]
[null,null,null,null,null,null,null,null,null,null,null,null,null,null,null,null,null,null,null,null,null,null,null,null,null,null,null,null,null,null,null,null,null,null,null,null,null,null,null,null,"Vrije tekst 10"]
[]
[null,null,null,null,null,null,null,null,null,9]
[]
[]
[]
[]
[]
[]
[]
[]
[]
[null,null,null,null,null,null,null,null,null,10]
[]
[]
[]
[]
[]
[]
[]
[]
[]
[null,null,null,null,null,null,null,null,null,1]
[]
[]
[]
[]
[]
[]
[]
[]
[]
[null,null,null,null,null,null,null,null,null,2]
[]
[]
[]
[]
[]
[]
[]
[]
[]
[null,null,null,null,null,null,null,null,null,3]
[]
[]
[]
[]
[]
[]
[]
[]
[]
[null,null,null,null,null,null,null,null,null,4]
[]
[]
[]
[]
[]
[]
[]
[]
[]
[null,null,null,null,null,null,null,null,null,5]
[]
[]
[]
[]
[]
[]
[]
[]
[]
[null,null,null,null,null,null,null,null,null,6]
[]
[]
[]
[]
[]
[]
[]
[]
[]
[null,null,null,null,null,null,null,null,null,7]
[]
[]
[]
[]
[]
[]
[]
[]
[]
[null,null,null,null,null,null,null,null,null,8]
[]
[]
[]
[]
[]
[]
[]
[]
[]
[null,null,null,null,null,null,null,null,null,9]
[]
[]
[]
[]
[]
[]
[]
[]
[]
[null,null,null,null,null,null,null,null,null,10]
[]
[]
[]
[]
[]
[]
[]
[]
[]
[null,null,null,null,null,null,null,null,null,1]
[]
[]
[]
[]
[]
[]
[]
[]
[]
[null,null,null,null,null,null,null,null,null,2]
[]
[]
[]
[]
[]
[]
[]
[]
[]
[null,null,null,null,null,null,null,null,null,3]
[]
[]
[]
[]
[]
[]
[]
[]
[]
[null,null,null,null,null,null,null,null,null,4]
[]
[]
[]
[]
[]
[]
[]
[]
[]
[null,null,null,null,null,null,null,null,null,5]
[]
[]
[]
[]
[]
[]
[]
[]
[]
[null,null,null,null,null,null,null,null,null,6]
[]
[]
[]
[]
[]
[]
[]
[]
[]
[null,null,null,null,null,null,null,null,null,7]
[]
[]
[]
[]
[]
[]
[]
[]
[]
[null,null,null,null,null,null,null,null,null,8]
[]
[]
[]
[]
[]
[]
[]
[]
[]
[null,null,null,null,null,null,null,null,null,9]
[]
[]
[]
[]
[]
[]
[]
[]
[]
[null,null,null,null,null,null,null,null,null,10]
[]
[]
[]
[]
[]
[]
[]
[]
[]
[null,null,null,null,null,null,null,null,null,1]
[]
[]
[]
[]
[]
[]
[]
[]
[]
[null,null,null,null,null,null,null,null,null,2]
[]
[]
[]
[]
[]
[]
[]
[]
[]
[null,null,null,null,null,null,null,null,null,3]
[]
[]
[]
[]
[]
[]
[]
[]
[]
[null,null,null,null,null,null,null,null,null,4]
[]
[]
[]
[]
[]
[]
[]
[]
[]
[null,null,null,null,null,null,null,null,null,5]
[]
[]
[]
[]
[]
[]
[]
[]
[]
[null,null,null,null,null,null,null,null,null,6]
[]
[]
[]
[]
[]
[]
[]
[]
[]
[null,null,null,null,null,null,null,null,null,7]
[]
[]
[]
[]
[]
[]
[]
[]
[]
[null,null,null,null,null,null,null,null,null,8]
[]
[]
[]
[]
[]
[]
[]
[]
[]
[null,null,null,null,null,null,null,null,null,9]
[]
[]
[]
[]
[]
[]
[]
[]
[]
[null,null,null,null,null,null,null,null,null,10]
[]
[]
[]
[]
[]
[]
[]
[]
[]
[null,null,null,null,null,null,null,null,null,1]
[]
[]
[]
[]
[]
[]
[]
[]
[]
[null,null,null,null,null,null,null,null,null,2]
[]
[]
[]
[]
[]
[]
[]
[]
[]
[null,null,null,null,null,null,null,null,null,3]
[]
[]
[]
[]
[]
[]
[]
[]
[]
[null,null,null,null,null,null,null,null,null,4]
[]
[]
[]
[]
[]
[]
[]
[]
[]
[null,null,null,null,null,null,null,null,null,5]
[]
[]
[]
[]
[]
[]
[]
[]
[]
[null,null,null,null,null,null,null,null,null,6]
[]
[]
[]
[]
[]
[]
[]
[]
[]
[null,null,null,null,null,null,null,null,null,7]
[]
[]
[]
[]
[]
[]
[]
[]
[]
[null,null,null,null,null,null,null,null,null,8]
[]
[]
[]
[]
[]
[]
[]
[]
[]
[null,null,null,null,null,null,null,null,null,9]
[]
[]
[]
[]
[]
[]
[]
[]
[]
[null,null,null,null,null,null,null,null,null,10]
[]
[]
[]
[]
[]
[]
[]
[]
[]
[null,null,null,null,null,null,null,null,null,1]
[]
[]
[]
[]
[]
[]
[]
[]
[]
[null,null,null,null,null,null,null,null,null,2]
[]
[]
[]
[]
[]
[]
[]
[]
[]
[null,null,null,null,null,null,null,null,null,3]
[]
[]
[]
[]
[]
[]
[]
[]
[]
[null,null,null,null,null,null,null,null,null,4]
[]
[]
[]
[]
[]
[]
[]
[]
[]
[null,null,null,null,null,null,null,null,null,5]
[]
[]
[]
[]
[]
[]
[]
[]
[]
[null,null,null,null,null,null,null,null,null,6]
[]
[]
[]
[]
[]
[]
[]
[]
[]
[null,null,null,null,null,null,null,null,null,7]
[]
[]
[]
[]
[]
[]
[]
[]
[]
[null,null,null,null,null,null,null,null,null,8]
[]
[]
[]
[]
[]
[]
[]
[]
[]
[null,null,null,null,null,null,null,null,null,9]
[]
[]
[]
[]
[]
[]
[]
[]
[]
[null,null,null,null,null,null,null,null,null,10]
[]
[]
[]
[]
[]
[]
[]
[]
[]
[null,null,null,null,null,null,null,null,null,1]
[]
[]
[]
[]
[]
[]
[]
[]
[]
[null,null,null,null,null,null,null,null,null,2]
[]
[]
[]
[]
[]
[]
[]
[]
[]
[null,null,null,null,null,null,null,null,null,3]
[]
[]
[]
[]
[]
[]
[]
[]
[]
[null,null,null,null,null,null,null,null,null,4]
[]
[]
[]
[]
[]
[]
[]
[]
[]
[null,null,null,null,null,null,null,null,null,5]
[]
[]
[]
[]
[]
[]
[]
[]
[]
[null,null,null,null,null,null,null,null,null,6]
[]
[]
[]
[]
[]
[]
[]
[]
[]
[null,null,null,null,null,null,null,null,null,7]
[]
[]
[]
[]
[]
[]
[]
[]
[]
[null,null,null,null,null,null,null,null,null,8]
[]
[]
[]
[]
[]
[]
[]
[]
[]
[null,null,null,null,null,null,null,null,null,9]
[]
[]
[]
[]
[]
[]
[]
[]
[]
[null,null,null,null,null,null,null,null,null,10]
[]
[]
[]
[]
[]
[]
[]
[]
[]
[null,null,null,null,null,null,null,null,null,1]
[]
[]
[]
[]
[]
[]
[]
[]
[]
[null,null,null,null,null,null,null,null,null,2]
[]
[]
[]
[]
[]
[]
[]
[]
[]
[null,null,null,null,null,null,null,null,null,3]
[]
[]
[]
[]
[]
[]
[]
[]
[]
[null,null,null,null,null,null,null,null,null,4]
[]
[]
[]
[]
[]
[]
[]
[]
[]
[null,null,null,null,null,null,null,null,null,5]
[]
[]
[]
[]
[]
[]
[]
[]
[]
[null,null,null,null,null,null,null,null,null,6]
[]
[]
[]
[]
[]
[]
[]
[]
[]
[null,null,null,null,null,null,null,null,null,7]
[]
[]
[]
[]
[]
[]
[]
[]
[]
[null,null,null,null,null,null,null,null,null,8]
[]
[]
[]
[]
[]
[]
[]
[]
[]
[null,null,null,null,null,null,null,null,null,9]
[]
[]
[]
[]
[]
[]
[]
[]
[]
[null,null,null,null,null,null,null,null,null,10]
[]
[]
[]
[]
[]
[]
[]
[]
[]
[null,null,null,null,null,null,null,null,null,1]
[]
[]
[]
[]
[]
[]
[]
[]
[]
[null,null,null,null,null,null,null,null,null,2]
[]
[]
[]
[]
[]
[]
[]
[]
[]
[null,null,null,null,null,null,null,null,null,3]
[]
[]
[]
[]
[]
[]
[]
[]
[]
[null,null,null,null,null,null,null,null,null,4]
[]
[]
[]
[]
[]
[]
[]
[]
[]
[null,null,null,null,null,null,null,null,null,5]
[]
[]
[]
[]
[]
[]
[]
[]
[]
[null,null,null,null,null,null,null,null,null,6]
[]
[]
[]
[]
[]
[]
[]
[]
[]
[null,null,null,null,null,null,null,null,null,7]
[]
[]
[]
[]
[]
[]
[]
[]
[]
[null,null,null,null,null,null,null,null,null,8]
[]
[]
[]
[]
[]
[]
[]
[]
[]
[null,null,null,null,null,null,null,null,null,9]
[]
[]
[]
[]
[]
[]
[]
[]
[]
[null,null,null,null,null,null,null,null,null,10]
[]
[]
[]
[]
[]
[]
[]
[]
[]
[null,null,null,null,null,null,null,null,null,1]
[]
[]
[]
[]
[]
[]
[]
[]
[]
[null,null,null,null,null,null,null,null,null,2]
[]
[]
[]
[]
[]
[]
[]
[]
[]
[null,null,null,null,null,null,null,null,null,3]
[]
[]
[]
[]
[]
[]
[]
[]
[]
[null,null,null,null,null,null,null,null,null,4]
[]
[]
[]
[]
[]
[]
[]
[]
[]
[null,null,null,null,null,null,null,null,null,5]
[]
[]
[]
[]
[]
[]
[]
[]
[]
[null,null,null,null,null,null,null,null,null,6]
[]
[]
[]
[]
[]
[]
[]
[]
[]
[null,null,null,null,null,null,null,null,null,7]
[]
[]
[]
[]
[]
[]
[]
[]
[]
[null,null,null,null,null,null,null,null,null,8]
[]
[]
[]
[]
[]
[]
[]
[]
[]
[null,null,null,null,null,null,null,null,null,9]
[]
[]
[]
[]
[]
[]
[]
[]
[]
[null,null,null,null,null,null,null,null,null,10]

{"sheet":">B00","index":5,"n_rows":1006,"n_cols":963,"rows_kept":1006,"cut":false,"hidden":true,"merged":[[6,4,6,5]]}
["zeer fijn zand"," + zeer fijn zand matrix","klei","zeer fijn grind","humeus","stenen","schelp","kalk","leisteen","as","dolomiet","klinkers",null,"dossierNr",{"$f":"B00!Project","v":0}]
["zeer fijn tot fijn zand",null,"kleilenzen","fijn grind","humus","steenslag","schelpen","kalksteenmassief","lei-fragmenten","assen","glas","metaal",null,"datum",{"$f":"B00!deDatum","v":"00:00:00"}]
["fijn zand"," + fijn zand matrix","kleilensjes","fijn grind tot 10mm","veen","steengruis","schelpgruis",null,".","afval","holte","organisch materiaal",null,"boring nummer",{"$f":"'>B00'!ProjectNr","v":{"$error":"#NAME?"}}]
["middelmatig zand"," + middelmatig zand matrix",null,"middelmatig grind","silt","steenbrokken",null,"kalksteen","krijt","asfalt","houtresten","plantenresten"]
["middelmatig tot fijn zand",null,"leem","grind","slib","steenbrokken (tot 30mm)","schiste",null,null,"baksteen","houtskool","silex"]
["zand"," + zand matrix","lemig","grind tot 20mm","gips","steenfragmenten (tot 20mm)","graniet","kalkzandsteen","metaal","ballast","hoogovenzand","steenkool"]
["grof zand"," glauconiet","leemlenzen","grof grind","geroerd/gestoord monster",null,null,"moeraskalk","pyriet","beton","kasseien","slakken"]
["zeer grof zand"," glauconiethoudend","leemlensjes","zeer grof grind","ongeroerd monster",null,"zandsteen",null,"roest","cokes","keien","stortmaterialen"]
[" (tot 5mm)"," (tot 10mm)","(tot 15mm)"," (tot 20mm)","lensjes","brokjes","gruis","brokken","matrix","houdend","gruis","fragmenten"]
[null,"zeer licht","zeer weinig",null,"licht","weinig",null,"veel","sterk",null,"zeer sterk","zeer veel"]
[0.1,0.2,0.30000000000000004,0.4,0.5,0.6,0.7,0.79999999999999993,0.89999999999999991,0.99999999999999989,1.0999999999999999,1.2,1.3,1.4000000000000001,1.5000000000000002,4.4999999999999991,null,null,null,null,null,null,"hoofdmenging  = 1/2 steeds "]
["Diepte","Hoofdbestandsdeel","Hoevhd 1","Bijmenging 1","Hoevhd 2","Bijmenging 2","Hoevhd 3","Bijmenging 3","Consistentie","Vochtigheid ","Kleur 1 ","Kleur 2",null,0,"Tot","code","Hoev2","Code2","Hoev3","Code3","Hoev4","Code4",null,"Secundair kenmerk"]
[0]
[null,null,null,null,null,null,null,null,null,null,null,null,0,{"$f":"A14","v":0},{"$f":"IF($A14 <> \"\",8 - $Q14-$S14-$U14,\"\")","v":""},null,null,null,null,null,null,null,{"$f":"100*Q14+10*S14+U14","v":0}]
[null,null,null,null,null,null,null,null,null,null,null,null,{"$f":"N14","v":0},0,{"$f":"IF($A15 <> \"\",8 - $Q15-$S15-$U15,\"\")","v":""},null,null,null,null,null,null,null,{"$f":"100*Q15+10*S15+U15","v":0}]
[null,null,null,null,null,null,null,null,null,null,null,null,0,0,"",null,null,null,null,null,null,null,0]
[null,null,null,null,null,null,null,null,null,null,null,null,0,0,"",null,null,null,null,null,null,null,0]
[null,null,null,null,null,null,null,null,null,null,null,null,0,0,"",null,null,null,null,null,null,null,0]
[null,null,null,null,null,null,null,null,null,null,null,null,0,0,"",null,null,null,null,null,null,null,0]
[null,null,null,null,null,null,null,null,null,null,null,null,0,0,"",null,null,null,null,null,null,null,0]
[null,null,null,null,null,null,null,null,null,null,null,null,0,0,"",null,null,null,null,null,null,null,0]
[null,null,null,null,null,null,null,null,null,null,null,null,0,0,"",null,null,null,null,null,null,null,0]
[null,null,null,null,null,null,null,null,null,null,null,null,0,0,"",null,null,null,null,null,null,null,0]
[null,null,null,null,null,null,null,null,null,null,null,null,0,0,"",null,null,null,null,null,null,null,0]
[null,null,null,null,null,null,null,null,null,null,null,null,0,0,"",null,null,null,null,null,null,null,0]
[null,null,null,null,null,null,null,null,null,null,null,null,0,0,"",null,null,null,null,null,null,null,0]
[null,null,null,null,null,null,null,null,null,null,null,null,0,0,"",null,null,null,null,null,null,null,0]
[null,null,null,null,null,null,null,null,null,null,null,null,0,0,"",null,null,null,null,null,null,null,0]
[null,null,null,null,null,null,null,null,null,null,null,null,0,0,"",null,null,null,null,null,null,null,0]
[null,null,null,null,null,null,null,null,null,null,null,null,0,0,"",null,null,null,null,null,null,null,0]
[null,null,null,null,null,null,null,null,null,null,null,null,0,0,"",null,null,null,null,null,null,null,0]
[null,null,null,null,null,null,null,null,null,null,null,null,0,0,"",null,null,null,null,null,null,null,0]
[null,null,null,null,null,null,null,null,null,null,null,null,0,0,"",null,null,null,null,null,null,null,0]
[null,null,null,null,null,null,null,null,null,null,null,null,0,0,"",null,null,null,null,null,null,null,0]
[null,null,null,null,null,null,null,null,null,null,null,null,0,0,"",null,null,null,null,null,null,null,0]
[null,null,null,null,null,null,null,null,null,null,null,null,0,0,"",null,null,null,null,null,null,null,0]
[null,null,null,null,null,null,null,null,null,null,null,null,0,0,"",null,null,null,null,null,null,null,0]
[null,null,null,null,null,null,null,null,null,null,null,null,0,0,"",null,null,null,null,null,null,null,0]
[null,null,null,null,null,null,null,null,null,null,null,null,0,0,"",null,null,null,null,null,null,null,0]
[null,null,null,null,null,null,null,null,null,null,null,null,0,0,"",null,null,null,null,null,null,null,0]
[null,null,null,null,null,null,null,null,null,null,null,null,0,0,"",null,null,null,null,null,null,null,0]
[null,null,null,null,null,null,null,null,null,null,null,null,0,0,"",null,null,null,null,null,null,null,0]
[null,null,null,null,null,null,null,null,null,null,null,null,0,0,"",null,null,null,null,null,null,null,0]
[null,null,null,null,null,null,null,null,null,null,null,null,0,0,"",null,null,null,null,null,null,null,0]
[null,null,null,null,null,null,null,null,null,null,null,null,0,0,"",null,null,null,null,null,null,null,0]
[null,null,null,null,null,null,null,null,null,null,null,null,0,{"$f":"A46","v":0},"",null,null,null,null,null,null,null,0]
[null,null,null,null,null,null,null,null,null,null,null,null,0,0,"",null,null,null,null,null,null,null,0]
[null,null,null,null,null,null,null,null,null,null,null,null,0,0,"",null,null,null,null,null,null,null,0]
[null,null,null,null,null,null,null,null,null,null,null,null,0,0,"",null,null,null,null,null,null,null,0]
[null,null,null,null,null,null,null,null,null,null,null,null,0,0,"",null,null,null,null,null,null,null,0]
[null,null,null,null,null,null,null,null,null,null,null,null,0,0,"",null,null,null,null,null,null,null,0]
[null,null,null,null,null,null,null,null,null,null,null,null,0,0,"",null,null,null,null,null,null,null,0]
[null,null,null,null,null,null,null,null,null,null,null,null,0,0,"",null,null,null,null,null,null,null,0]
[null,null,null,null,null,null,null,null,null,null,null,null,0,0,"",null,null,null,null,null,null,null,0]
[null,null,null,null,null,null,null,null,null,null,null,null,0,0,"",null,null,null,null,null,null,null,0]
[null,null,null,null,null,null,null,null,null,null,null,null,0,0,"",null,null,null,null,null,null,null,0]
[null,null,null,null,null,null,null,null,null,null,null,null,0,0,"",null,null,null,null,null,null,null,0]
[null,null,null,null,null,null,null,null,null,null,null,null,0,0,"",null,null,null,null,null,null,null,0]
[null,null,null,null,null,null,null,null,null,null,null,null,0,0,"",null,null,null,null,null,null,null,0]
[null,null,null,null,null,null,null,null,null,null,null,null,0,0,"",null,null,null,null,null,null,null,0]
[null,null,null,null,null,null,null,null,null,null,null,null,0,0,"",null,null,null,null,null,null,null,0]
[null,null,null,null,null,null,null,null,null,null,null,null,0,0,"",null,null,null,null,null,null,null,0]
[null,null,null,null,null,null,null,null,null,null,null,null,0,0,"",null,null,null,null,null,null,null,0]
[null,null,null,null,null,null,null,null,null,null,null,null,0,0,"",null,null,null,null,null,null,null,0]
[null,null,null,null,null,null,null,null,null,null,null,null,0,0,"",null,null,null,null,null,null,null,0]
[null,null,null,null,null,null,null,null,null,null,null,null,0,0,"",null,null,null,null,null,null,null,0]
[null,null,null,null,null,null,null,null,null,null,null,null,0,0,"",null,null,null,null,null,null,null,0]
[null,null,null,null,null,null,null,null,null,null,null,null,0,0,"",null,null,null,null,null,null,null,0]
[null,null,null,null,null,null,null,null,null,null,null,null,0,0,"",null,null,null,null,null,null,null,0]
[null,null,null,null,null,null,null,null,null,null,null,null,0,0,"",null,null,null,null,null,null,null,0]
[null,null,null,null,null,null,null,null,null,null,null,null,0,0,"",null,null,null,null,null,null,null,0]
[null,null,null,null,null,null,null,null,null,null,null,null,0,0,"",null,null,null,null,null,null,null,0]
[null,null,null,null,null,null,null,null,null,null,null,null,0,0,"",null,null,null,null,null,null,null,0]
[null,null,null,null,null,null,null,null,null,null,null,null,0,0,"",null,null,null,null,null,null,null,0]
[null,null,null,null,null,null,null,null,null,null,null,null,0,0,"",null,null,null,null,null,null,null,0]
[null,null,null,null,null,null,null,null,null,null,null,null,0,0,"",null,null,null,null,null,null,null,0]
[null,null,null,null,null,null,null,null,null,null,null,null,0,0,"",null,null,null,null,null,null,null,0]
[null,null,null,null,null,null,null,null,null,null,null,null,{"$f":"N77","v":0},{"$f":"A78","v":0},"",null,null,null,null,null,null,null,0]
[null,null,null,null,null,null,null,null,null,null,null,null,0,0,{"$f":"IF($A79 <> \"\",8 - $Q79-$S79-$U79,\"\")","v":""},null,null,null,null,null,null,null,{"$f":"100*Q79+10*S79+U79","v":0}]
[null,null,null,null,null,null,null,null,null,null,null,null,0,0,"",null,null,null,null,null,null,null,0]
[null,null,null,null,null,null,null,null,null,null,null,null,0,0,"",null,null,null,null,null,null,null,0]
[null,null,null,null,null,null,null,null,null,null,null,null,0,0,"",null,null,null,null,null,null,null,0]
[null,null,null,null,null,null,null,null,null,null,null,null,0,0,"",null,null,null,null,null,null,null,0]
[null,null,null,null,null,null,null,null,null,null,null,null,0,0,"",null,null,null,null,null,null,null,0]
[null,null,null,null,null,null,null,null,null,null,null,null,0,{"$f":"A85","v":0},"",null,null,null,null,null,null,null,0]
[null,null,null,null,null,null,null,null,null,null,null,null,0,0,"",null,null,null,null,null,null,null,0]
[null,null,null,null,null,null,null,null,null,null,null,null,0,0,"",null,null,null,null,null,null,null,0]
[null,null,null,null,null,null,null,null,null,null,null,null,0,0,"",null,null,null,null,null,null,null,0]
[null,null,null,null,null,null,null,null,null,null,null,null,0,0,"",null,null,null,null,null,null,null,0]
[null,null,null,null,null,null,null,null,null,null,null,null,0,0,"",null,null,null,null,null,null,null,0]
[null,null,null,null,null,null,null,null,null,null,null,null,0,0,"",null,null,null,null,null,null,null,0]
[null,null,null,null,null,null,null,null,null,null,null,null,0,0,"",null,null,null,null,null,null,null,0]
[null,null,null,null,null,null,null,null,null,null,null,null,0,0,"",null,null,null,null,null,null,null,0]
[null,null,null,null,null,null,null,null,null,null,null,null,0,0,"",null,null,null,null,null,null,null,0]
[null,null,null,null,null,null,null,null,null,null,null,null,0,0,"",null,null,null,null,null,null,null,0]
[null,null,null,null,null,null,null,null,null,null,null,null,0,0,"",null,null,null,null,null,null,null,0]
[null,null,null,null,null,null,null,null,null,null,null,null,0,0,"",null,null,null,null,null,null,null,0]
[null,null,null,null,null,null,null,null,null,null,null,null,0,0,"",null,null,null,null,null,null,null,0]
[null,null,null,null,null,null,null,null,null,null,null,null,0,0,"",null,null,null,null,null,null,null,0]
[null,null,null,null,null,null,null,null,null,null,null,null,0,0,"",null,null,null,null,null,null,null,0]
[null,null,null,null,null,null,null,null,null,null,null,null,0,0,"",null,null,null,null,null,null,null,0]
[null,null,null,null,null,null,null,null,null,null,null,null,0,0,"",null,null,null,null,null,null,null,0]
[null,null,null,null,null,null,null,null,null,null,null,null,0,0,"",null,null,null,null,null,null,null,0]
[null,null,null,null,null,null,null,null,null,null,null,null,{"$f":"N103","v":0},{"$f":"A104","v":0},"",null,null,null,null,null,null,null,0]
[null,null,null,null,null,null,null,null,null,null,null,null,0,0,"",null,null,null,null,null,null,null,0]
[null,null,null,null,null,null,null,null,null,null,null,null,0,0,"",null,null,null,null,null,null,null,0]
[null,null,null,null,null,null,null,null,null,null,null,null,0,0,"",null,null,null,null,null,null,null,0]
[null,null,null,null,null,null,null,null,null,null,null,null,0,0,"",null,null,null,null,null,null,null,0]
[null,null,null,null,null,null,null,null,null,null,null,null,0,0,"",null,null,null,null,null,null,null,0]
[null,null,null,null,null,null,null,null,null,null,null,null,0,0,"",null,null,null,null,null,null,null,0]
[null,null,null,null,null,null,null,null,null,null,null,null,0,0,"",null,null,null,null,null,null,null,0]
[null,null,null,null,null,null,null,null,null,null,null,null,0,0,"",null,null,null,null,null,null,null,0]
[null,null,null,null,null,null,null,null,null,null,null,null,0,0,"",null,null,null,null,null,null,null,0]
[null,null,null,null,null,null,null,null,null,null,null,null,0,0,"",null,null,null,null,null,null,null,0]
[null,null,null,null,null,null,null,null,null,null,null,null,0,0,"",null,null,null,null,null,null,null,0]
[null,null,null,null,null,null,null,null,null,null,null,null,0,0,"",null,null,null,null,null,null,null,0]
[null,null,null,null,null,null,null,null,null,null,null,null,0,0,"",null,null,null,null,null,null,null,0]
[null,null,null,null,null,null,null,null,null,null,null,null,0,0,"",null,null,null,null,null,null,null,0]
[null,null,null,null,null,null,null,null,null,null,null,null,0,0,"",null,null,null,null,null,null,null,0]
[null,null,null,null,null,null,null,null,null,null,null,null,0,0,"",null,null,null,null,null,null,null,0]
[null,null,null,null,null,null,null,null,null,null,null,null,0,0,"",null,null,null,null,null,null,null,0]
[null,null,null,null,null,null,null,null,null,null,null,null,0,0,"",null,null,null,null,null,null,null,0]
[null,null,null,null,null,null,null,null,null,null,null,null,0,0,"",null,null,null,null,null,null,null,0]
[null,null,null,null,null,null,null,null,null,null,null,null,0,0,"",null,null,null,null,null,null,null,0]
[null,null,null,null,null,null,null,null,null,null,null,null,0,0,"",null,null,null,null,null,null,null,0]
[null,null,null,null,null,null,null,null,null,null,null,null,0,0,"",null,null,null,null,null,null,null,0]
[null,null,null,null,null,null,null,null,null,null,null,null,0,0,"",null,null,null,null,null,null,null,0]
[null,null,null,null,null,null,null,null,null,null,null,null,0,0,"",null,null,null,null,null,null,null,0]
[null,null,null,null,null,null,null,null,null,null,null,null,0,0,"",null,null,null,null,null,null,null,0]
[null,null,null,null,null,null,null,null,null,null,null,null,0,0,"",null,null,null,null,null,null,null,0]
[null,null,null,null,null,null,null,null,null,null,null,null,0,0,"",null,null,null,null,null,null,null,0]
[null,null,null,null,null,null,null,null,null,null,null,null,0,0,"",null,null,null,null,null,null,null,0]
[null,null,null,null,null,null,null,null,null,null,null,null,0,0,"",null,null,null,null,null,null,null,0]
[null,null,null,null,null,null,null,null,null,null,null,null,0,0,"",null,null,null,null,null,null,null,0]
[null,null,null,null,null,null,null,null,null,null,null,null,0,0,"",null,null,null,null,null,null,null,0]
[null,null,null,null,null,null,null,null,null,null,null,null,0,0,"",null,null,null,null,null,null,null,0]
[null,null,null,null,null,null,null,null,null,null,null,null,0,0,"",null,null,null,null,null,null,null,0]
[null,null,null,null,null,null,null,null,null,null,null,null,0,0,"",null,null,null,null,null,null,null,0]
[null,null,null,null,null,null,null,null,null,null,null,null,0,0,"",null,null,null,null,null,null,null,0]
[null,null,null,null,null,null,null,null,null,null,null,null,0,0,"",null,null,null,null,null,null,null,0]
[null,null,null,null,null,null,null,null,null,null,null,null,0,0,"",null,null,null,null,null,null,null,0]
[null,null,null,null,null,null,null,null,null,null,null,null,0,0,"",null,null,null,null,null,null,null,0]
[null,null,null,null,null,null,null,null,null,null,null,null,0,0,{"$f":"IF($A143 <> \"\",8 - $Q143-$S143-$U143,\"\")","v":""},null,null,null,null,null,null,null,{"$f":"100*Q143+10*S143+U143","v":0}]
[null,null,null,null,null,null,null,null,null,null,null,null,0,0,"",null,null,null,null,null,null,null,0]
[null,null,null,null,null,null,null,null,null,null,null,null,0,0,"",null,null,null,null,null,null,null,0]
[null,null,null,null,null,null,null,null,null,null,null,null,0,0,"",null,null,null,null,null,null,null,0]
[null,null,null,null,null,null,null,null,null,null,null,null,0,0,"",null,null,null,null,null,null,null,0]
[null,null,null,null,null,null,null,null,null,null,null,null,0,0,"",null,null,null,null,null,null,null,0]
[null,null,null,null,null,null,null,null,null,null,null,null,0,0,"",null,null,null,null,null,null,null,0]
[null,null,null,null,null,null,null,null,null,null,null,null,0,0,"",null,null,null,null,null,null,null,0]
[]
[]
[]
[]
[]
[]
[]
[]
[]
[]
[]
[]
[]
[]
[]
[]
[]
[]
[]
[]
[]
[]
[]
[]
[]
[]
[]
[]
[]
[]
[]
[]
[]
[]
[]
[]
[]
[]
[]
[]
[]
[]
[]
[]
[]
[]
[]
[]
[]
[]
[]
[]
[]
[]
[]
[]
[]
[]
[]
[]
[]
[]
[]
[]
[]
[]
[]
[]
[]
[]
[]
[]
[]
[]
[]
[]
[]
[]
[]
[]
[]
[]
[]
[]
[]
[]
[]
[]
[]
[]
[]
[]
[]
[]
[]
[]
[]
[]
[]
[]
[]
[]
[]
[]
[]
[]
[]
[]
[]
[]
[]
[]
[]
[]
[]
[]
[]
[]
[]
[]
[]
[]
[]
[]
[]
[]
[]
[]
[]
[]
[]
[]
[]
[]
[]
[]
[]
[]
[]
[]
[]
[]
[]
[]
[]
[]
[]
[]
[]
[]
[]
[]
[]
[]
[]
[]
[]
[]
[]
[]
[]
[]
[]
[]
[]
[]
[]
[]
[]
[]
[]
[]
[]
[]
[]
[]
[]
[]
[]
[]
[]
[]
[]
[]
[]
[]
[]
[]
[]
[]
[]
[]
[]
[]
[]
[]
[]
[]
[]
[]
[]
[]
[]
[]
[]
[]
[]
[]
[]
[]
[]
[]
[]
[]
[]
[]
[]
[]
[]
[]
[]
[]
[]
[]
[]
[]
[]
[]
[]
[]
[]
[]
[]
[]
[]
[]
[]
[]
[]
[]
[]
[]
[]
[]
[]
[]
[]
[]
[]
[]
[]
[]
[]
[]
[]
[]
[]
[]
[]
[]
[]
[]
[]
[]
[]
[]
[]
[]
[]
[]
[]
[]
[]
[]
[]
[]
[]
[]
[]
[]
[]
[]
[]
[]
[]
[]
[]
[]
[]
[]
[]
[]
[]
[]
[]
[]
[]
[]
[]
[]
[]
[]
[]
[]
[]
[]
[]
[]
[]
[]
[]
[]
[]
[]
[]
[]
[]
[]
[]
[]
[]
[]
[]
[]
[]
[]
[]
[]
[]
[]
[]
[]
[]
[]
[]
[]
[]
[]
[]
[]
[]
[]
[]
[]
[]
[]
[]
[]
[]
[]
[]
[]
[]
[]
[]
[]
[]
[]
[]
[]
[]
[]
[]
[]
[]
[]
[]
[]
[]
[]
[]
[]
[]
[]
[]
[]
[]
[]
[]
[]
[]
[]
[]
[]
[]
[]
[]
[]
[]
[]
[]
[]
[]
[]
[]
[]
[]
[]
[]
[]
[]
[]
[]
[]
[]
[]
[]
[]
[]
[]
[]
[]
[]
[]
[]
[]
[]
[]
[]
[]
[]
[]
[]
[]
[]
[]
[]
[]
[]
[]
[]
[]
[]
[]
[]
[]
[]
[]
[]
[]
[]
[]
[]
[]
[]
[]
[]
[]
[]
[]
[]
[]
[]
[]
[]
[]
[]
[]
[]
[]
[]
[]
[]
[]
[]
[]
[]
[]
[]
[]
[]
[]
[]
[]
[]
[]
[]
[]
[]
[]
[]
[]
[]
[]
[]
[]
[]
[]
[]
[]
[]
[]
[]
[]
[]
[]
[]
[]
[]
[]
[]
[]
[]
[]
[]
[]
[]
[]
[]
[]
[]
[]
[]
[]
[]
[]
[]
[]
[]
[]
[]
[]
[]
[]
[]
[]
[]
[]
[]
[]
[]
[]
[]
[]
[]
[]
[]
[]
[]
[]
[]
[]
[]
[]
[]
[]
[]
[]
[]
[]
[]
[]
[]
[]
[]
[]
[]
[]
[]
[]
[]
[]
[]
[]
[]
[]
[]
[]
[]
[]
[]
[]
[]
[]
[]
[]
[]
[]
[]
[]
[]
[]
[]
[]
[]
[]
[]
[]
[]
[]
[]
[]
[]
[]
[]
[]
[]
[]
[]
[]
[]
[]
[]
[]
[]
[]
[]
[]
[]
[]
[]
[]
[]
[]
[]
[]
[]
[]
[]
[]
[]
[]
[]
[]
[]
[]
[]
[]
[]
[]
[]
[]
[]
[]
[]
[]
[]
[]
[]
[]
[]
[]
[]
[]
[]
[]
[]
[]
[]
[]
[]
[]
[]
[]
[]
[]
[]
[]
[]
[]
[]
[]
[]
[]
[]
[]
[]
[]
[]
[]
[]
[]
[]
[]
[]
[]
[]
[]
[]
[]
[]
[]
[]
[]
[]
[]
[]
[]
[]
[]
[]
[]
[]
[]
[]
[]
[]
[]
[]
[]
[]
[]
[]
[]
[]
[]
[]
[]
[]
[]
[]
[]
[]
[]
[]
[]
[]
[]
[]
[]
[]
[]
[]
[]
[]
[]
[]
[]
[]
[]
[]
[]
[]
[]
[]
[]
[]
[]
[]
[]
[]
[]
[]
[]
[]
[]
[]
[]
[]
[]
[]
[]
[]
[]
[]
[]
[]
[]
[]
[]
[]
[]
[]
[]
[]
[]
[]
[]
[]
[]
[]
[]
[]
[]
[]
[]
[]
[]
[]
[]
[]
[]
[]
[]
[]
[]
[]
[]
[]
[]
[]
[]
[]
[]
[]
[]
[]
[]
[]
[]
[]
[]
[]
[]
[]
[]
[]
[]
[]
[]
[]
[]
[]
[]
[]
[]
[]
[]
[]
[]
[]
[]
[]
[]
[]
[]
[]
[]
[]
[]
[]
[]
[]
[]
[]
[]
[]
[]
[]
[]
[]
[]
[]
[]
[]
[]
[]
[]
[]
[null,null,null,null,null,null,null,null,null,null,null,null,null,null,null,null,null,null,null,null,null,null,null,null,null,null,null,null,null,null,null,null,null,null,null,null,null,null,null,null,null,null,null,null,null,null,null,null,null,null,null,null,null,null,null,null,null,null,null,null,null,null,null,null,null,null,null,null,null,null,null,null,null,null,null,null,null,null,null,null,null,null,null,null,null,null,null,null,null,null,null,null,null,null,null,null,null,null,null,null,null,null,null,null,null,null,null,null,null,null,null,null,null,null,null,null,null,null,null,null,null,null,null,null,null,null,null,null,null,null,null,null,null,null,null,null,null,null,null,null,null,null,null,null,null,null,null,null,null,null,null,null,null,null,null,null,null,null,null,null,null,null,null,null,null,null,null,null,null,null,null,null,null,null,null,null,null,null,null,null,null,null,null,null,null,null,null,null,null,null,null,null,null,null,null,null,null,null,null,null,null,null,null,null,null,null,null,null,null,null,null,null,null,null,null,null,null,null,null,null,null,null,null,null,null,null,null,null,null,null,null,null,null,null,null,null,null,null,null,null,null,null,null,null,null,null,null,null,null,null,null,null,null,null,null,null,null,null,null,null,null,null,null,null,null,null,null,null,null,null,null,null,null,null,null,null,null,null,null,null,null,null,null,null,null,null,null,null,null,null,null,null,null,null,null,null,null,null,null,null,null,null,null,null,null,null,null,null,null,null,null,null,null,null,null,null,null,null,null,null,null,null,null,null,null,null,null,null,null,null,null,null,null,null,null,null,null,null,null,null,null,null,null,null,null,null,null,null,null,null,null,null,null,null,null,null,null,null,null,null,null,null,null,null,null,null,null,null,null,null,null,null,null,null,null,null,null,null,null,null,null,null,null,null,null,null,null,null,null,null,null,null,null,null,null,null,null,null,null,null,null,null,null,null,null,null,null,null,null,null,null,null,null,null,null,null,null,null,null,null,null,null,null,null,null,null,null,null,null,null,null,null,null,null,null,null,null,null,null,null,null,null,null,null,null,null,null,null,null,null,null,null,null,null,null,null,null,null,null,null,null,null,null,null,null,null,null,null,null,null,null,null,null,null,null,null,null,null,null,null,null,null,null,null,null,null,null,null,null,null,null,null,null,null,null,null,null,null,null,null,null,null,null,null,null,null,null,null,null,null,null,null,null,null,null,null,null,null,null,null,null,null,null,null,null,null,null,null,null,null,null,null,null,null,null,null,null,null,null,null,null,null,null,null,null,null,null,null,null,null,null,null,null,null,null,null,null,null,null,null,null,null,null,null,null,null,null,null,null,null,null,null,null,null,null,null,null,null,null,null,null,null,null,null,null,null,null,null,null,null,null,null,null,null,null,null,null,null,null,null,null,null,null,null,null,null,null,null,null,null,null,null,null,null,null,null,null,null,null,null,null,null,null,null,null,null,null,null,null,null,null,null,null,null,null,null,null,null,null,null,null,null,null,null,null,null,null,null,null,null,null,null,null,null,null,null,null,null,null,null,null,null,null,null,null,null,null,null,null,null,null,null,null,null,null,null,null,null,null,null,null,null,null,null,null,null,null,null,null,null,null,null,null,null,null,null,null,null,null,null,null,null,null,null,null,null,null,null,null,null,null,null,null,null,null,null,null,null,null,null,null,null,null,null,null,null,null,null,null,null,null,null,null,null,null,null,null,null,null,null,null,null,null,null,null,null,null,null,null,null,null,null,null,null,null,null,null,null,null,null,null,null,null,null,null,null,null,null,null,null,null,null,null,null,null,null,null,null,null,null,null,null,null,null,null,null,null,null,null,null,null,null,null,null,null,null,null,null,null,null,null,null,null,null,null,null,null,null,null,null,null,null,null,null,null,null,null,null,null,null,null,null,null,null,null,null,null,null,null,null,null,null,null,null,null,null,null,null,null,null,null,null,null,null,null,null,null,null,null,null,null,null,null,null,null,null,null,null,null,null,null,null,null,null,null,null,null,null,null,null,null,null,null,null,null,null,null,null,null,null,null,null,null,null,null,null,null,null,null,null,null,null,null,null,null,null,null,null,null,null,null,null,null,null,null,null,null,null,null,null,null,null,null,null,null,null,null,null,null,null,null,null,null,null,null,null,null,null,null,null,null,null,null,null,null,null,null,null,null,null,null,null,null,null,null,null,null,null,null,null,null,null,null,null,null,null,null,null,null,null,"zeer fijn zand,34","kleihoudend,59","leemhoudend,66"]
[null,null,null,null,null,null,null,null,null,null,null,null,null,null,null,null,null,null,null,null,null,null,null,null,null,null,null,null,null,null,null,null,null,null,null,null,null,null,null,null,null,null,null,null,null,null,null,null,null,null,null,null,null,null,null,null,null,null,null,null,null,null,null,null,null,null,null,null,null,null,null,null,null,null,null,null,null,null,null,null,null,null,null,null,null,null,null,null,null,null,null,null,null,null,null,null,null,null,null,null,null,null,null,null,null,null,null,null,null,null,null,null,null,null,null,null,null,null,null,null,null,null,null,null,null,null,null,null,null,null,null,null,null,null,null,null,null,null,null,null,null,null,null,null,null,null,null,null,null,null,null,null,null,null,null,null,null,null,null,null,null,null,null,null,null,null,null,null,null,null,null,null,null,null,null,null,null,null,null,null,null,null,null,null,null,null,null,null,null,null,null,null,null,null,null,null,null,null,null,null,null,null,null,null,null,null,null,null,null,null,null,null,null,null,null,null,null,null,null,null,null,null,null,null,null,null,null,null,null,null,null,null,null,null,null,null,null,null,null,null,null,null,null,null,null,null,null,null,null,null,null,null,null,null,null,null,null,null,null,null,null,null,null,null,null,null,null,null,null,null,null,null,null,null,null,null,null,null,null,null,null,null,null,null,null,null,null,null,null,null,null,null,null,null,null,null,null,null,null,null,null,null,null,null,null,null,null,null,null,null,null,null,null,null,null,null,null,null,null,null,null,null,null,null,null,null,null,null,null,null,null,null,null,null,null,null,null,null,null,null,null,null,null,null,null,null,null,null,null,null,null,null,null,null,null,null,null,null,null,null,null,null,null,null,null,null,null,null,null,null,null,null,null,null,null,null,null,null,null,null,null,null,null,null,null,null,null,null,null,null,null,null,null,null,null,null,null,null,null,null,null,null,null,null,null,null,null,null,null,null,null,null,null,null,null,null,null,null,null,null,null,null,null,null,null,null,null,null,null,null,null,null,null,null,null,null,null,null,null,null,null,null,null,null,null,null,null,null,null,null,null,null,null,null,null,null,null,null,null,null,null,null,null,null,null,null,null,null,null,null,null,null,null,null,null,null,null,null,null,null,null,null,null,null,null,null,null,null,null,null,null,null,null,null,null,null,null,null,null,null,null,null,null,null,null,null,null,null,null,null,null,null,null,null,null,null,null,null,null,null,null,null,null,null,null,null,null,null,null,null,null,null,null,null,null,null,null,null,null,null,null,null,null,null,null,null,null,null,null,null,null,null,null,null,null,null,null,null,null,null,null,null,null,null,null,null,null,null,null,null,null,null,null,null,null,null,null,null,null,null,null,null,null,null,null,null,null,null,null,null,null,null,null,null,null,null,null,null,null,null,null,null,null,null,null,null,null,null,null,null,null,null,null,null,null,null,null,null,null,null,null,null,null,null,null,null,null,null,null,null,null,null,null,null,null,null,null,null,null,null,null,null,null,null,null,null,null,null,null,null,null,null,null,null,null,null,null,null,null,null,null,null,null,null,null,null,null,null,null,null,null,null,null,null,null,null,null,null,null,null,null,null,null,null,null,null,null,null,null,null,null,null,null,null,null,null,null,null,null,null,null,null,null,null,null,null,null,null,null,null,null,null,null,null,null,null,null,null,null,null,null,null,null,null,null,null,null,null,null,null,null,null,null,null,null,null,null,null,null,null,null,null,null,null,null,null,null,null,null,null,null,null,null,null,null,null,null,null,null,null,null,null,null,null,null,null,null,null,null,null,null,null,null,null,null,null,null,null,null,null,null,null,null,null,null,null,null,null,null,null,null,null,null,null,null,null,null,null,null,null,null,null,null,null,null,null,null,null,null,null,null,null,null,null,null,null,null,null,null,null,null,null,null,null,null,null,null,null,null,null,null,null,null,null,null,null,null,null,null,null,null,null,null,null,null,null,null,null,null,null,null,null,null,null,null,null,null,null,null,null,null,null,null,null,null,null,null,null,null,null,null,null,null,null,null,null,null,null,null,null,null,null,null,null,null,null,null,null,null,null,null,null,null,null,null,null,null,null,null,null,null,null,null,null,null,null,null,null,null,null,null,null,null,null,null,null,null,null,null,null,null,null,null,null,null,null,null,null,null,null,null,null,null,null,null,null,null,null,null,null,null,null,null,null,null,null,null,null,null,null,null,null,null,null,null,null,null,null,null,null,"fijn zand,34","kleiïg,59"]
[null,null,null,null,null,null,null,null,null,null,null,null,null,null,null,null,null,null,null,null,null,null,null,null,null,null,null,null,null,null,null,null,null,null,null,null,null,null,null,null,null,null,null,null,null,null,null,null,null,null,null,null,null,null,null,null,null,null,null,null,null,null,null,null,null,null,null,null,null,null,null,null,null,null,null,null,null,null,null,null,null,null,null,null,null,null,null,null,null,null,null,null,null,null,null,null,null,null,null,null,null,null,null,null,null,null,null,null,null,null,null,null,null,null,null,null,null,null,null,null,null,null,null,null,null,null,null,null,null,null,null,null,null,null,null,null,null,null,null,null,null,null,null,null,null,null,null,null,null,null,null,null,null,null,null,null,null,null,null,null,null,null,null,null,null,null,null,null,null,null,null,null,null,null,null,null,null,null,null,null,null,null,null,null,null,null,null,null,null,null,null,null,null,null,null,null,null,null,null,null,null,null,null,null,null,null,null,null,null,null,null,null,null,null,null,null,null,null,null,null,null,null,null,null,null,null,null,null,null,null,null,null,null,null,null,null,null,null,null,null,null,null,null,null,null,null,null,null,null,null,null,null,null,null,null,null,null,null,null,null,null,null,null,null,null,null,null,null,null,null,null,null,null,null,null,null,null,null,null,null,null,null,null,null,null,null,null,null,null,null,null,null,null,null,null,null,null,null,null,null,null,null,null,null,null,null,null,null,null,null,null,null,null,null,null,null,null,null,null,null,null,null,null,null,null,null,null,null,null,null,null,null,null,null,null,null,null,null,null,null,null,null,null,null,null,null,null,null,null,null,null,null,null,null,null,null,null,null,null,null,null,null,null,null,null,null,null,null,null,null,null,null,null,null,null,null,null,null,null,null,null,null,null,null,null,null,null,null,null,null,null,null,null,null,null,null,null,null,null,null,null,null,null,null,null,null,null,null,null,null,null,null,null,null,null,null,null,null,null,null,null,null,null,null,null,null,null,null,null,null,null,null,null,null,null,null,null,null,null,null,null,null,null,null,null,null,null,null,null,null,null,null,null,null,null,null,null,null,null,null,null,null,null,null,null,null,null,null,null,null,null,null,null,null,null,null,null,null,null,null,null,null,null,null,null,null,null,null,null,null,null,null,null,null,null,null,null,null,null,null,null,null,null,null,null,null,null,null,null,null,null,null,null,null,null,null,null,null,null,null,null,null,null,null,null,null,null,null,null,null,null,null,null,null,null,null,null,null,null,null,null,null,null,null,null,null,null,null,null,null,null,null,null,null,null,null,null,null,null,null,null,null,null,null,null,null,null,null,null,null,null,null,null,null,null,null,null,null,null,null,null,null,null,null,null,null,null,null,null,null,null,null,null,null,null,null,null,null,null,null,null,null,null,null,null,null,null,null,null,null,null,null,null,null,null,null,null,null,null,null,null,null,null,null,null,null,null,null,null,null,null,null,null,null,null,null,null,null,null,null,null,null,null,null,null,null,null,null,null,null,null,null,null,null,null,null,null,null,null,null,null,null,null,null,null,null,null,null,null,null,null,null,null,null,null,null,null,null,null,null,null,null,null,null,null,null,null,null,null,null,null,null,null,null,null,null,null,null,null,null,null,null,null,null,null,null,null,null,null,null,null,null,null,null,null,null,null,null,null,null,null,null,null,null,null,null,null,null,null,null,null,null,null,null,null,null,null,null,null,null,null,null,null,null,null,null,null,null,null,null,null,null,null,null,null,null,null,null,null,null,null,null,null,null,null,null,null,null,null,null,null,null,null,null,null,null,null,null,null,null,null,null,null,null,null,null,null,null,null,null,null,null,null,null,null,null,null,null,null,null,null,null,null,null,null,null,null,null,null,null,null,null,null,null,null,null,null,null,null,null,null,null,null,null,null,null,null,null,null,null,null,null,null,null,null,null,null,null,null,null,null,null,null,null,null,null,null,null,null,null,null,null,null,null,null,null,null,null,null,null,null,null,null,null,null,null,null,null,null,null,null,null,null,null,null,null,null,null,null,null,null,null,null,null,null,null,null,null,null,null,null,null,null,null,null,null,null,null,null,null,null,null,null,null,null,null,null,null,null,null,null,null,null,null,null,null,null,null,null,null,null,null,null,null,null,null,null,null,null,null,null,null,null,null,null,null,null,null,null,null,null,null,null,null,null,null,null,null,null,null,null,null,null,null,null,null,null,null,null,null,"zeer fijn tot middelmatig zand,78","kleibrokjes,59"]
[null,null,null,null,null,null,null,null,null,null,null,null,null,null,null,null,null,null,null,null,null,null,null,null,null,null,null,null,null,null,null,null,null,null,null,null,null,null,null,null,null,null,null,null,null,null,null,null,null,null,null,null,null,null,null,null,null,null,null,null,null,null,null,null,null,null,null,null,null,null,null,null,null,null,null,null,null,null,null,null,null,null,null,null,null,null,null,null,null,null,null,null,null,null,null,null,null,null,null,null,null,null,null,null,null,null,null,null,null,null,null,null,null,null,null,null,null,null,null,null,null,null,null,null,null,null,null,null,null,null,null,null,null,null,null,null,null,null,null,null,null,null,null,null,null,null,null,null,null,null,null,null,null,null,null,null,null,null,null,null,null,null,null,null,null,null,null,null,null,null,null,null,null,null,null,null,null,null,null,null,null,null,null,null,null,null,null,null,null,null,null,null,null,null,null,null,null,null,null,null,null,null,null,null,null,null,null,null,null,null,null,null,null,null,null,null,null,null,null,null,null,null,null,null,null,null,null,null,null,null,null,null,null,null,null,null,null,null,null,null,null,null,null,null,null,null,null,null,null,null,null,null,null,null,null,null,null,null,null,null,null,null,null,null,null,null,null,null,null,null,null,null,null,null,null,null,null,null,null,null,null,null,null,null,null,null,null,null,null,null,null,null,null,null,null,null,null,null,null,null,null,null,null,null,null,null,null,null,null,null,null,null,null,null,null,null,null,null,null,null,null,null,null,null,null,null,null,null,null,null,null,null,null,null,null,null,null,null,null,null,null,null,null,null,null,null,null,null,null,null,null,null,null,null,null,null,null,null,null,null,null,null,null,null,null,null,null,null,null,null,null,null,null,null,null,null,null,null,null,null,null,null,null,null,null,null,null,null,null,null,null,null,null,null,null,null,null,null,null,null,null,null,null,null,null,null,null,null,null,null,null,null,null,null,null,null,null,null,null,null,null,null,null,null,null,null,null,null,null,null,null,null,null,null,null,null,null,null,null,null,null,null,null,null,null,null,null,null,null,null,null,null,null,null,null,null,null,null,null,null,null,null,null,null,null,null,null,null,null,null,null,null,null,null,null,null,null,null,null,null,null,null,null,null,null,null,null,null,null,null,null,null,null,null,null,null,null,null,null,null,null,null,null,null,null,null,null,null,null,null,null,null,null,null,null,null,null,null,null,null,null,null,null,null,null,null,null,null,null,null,null,null,null,null,null,null,null,null,null,null,null,null,null,null,null,null,null,null,null,null,null,null,null,null,null,null,null,null,null,null,null,null,null,null,null,null,null,null,null,null,null,null,null,null,null,null,null,null,null,null,null,null,null,null,null,null,null,null,null,null,null,null,null,null,null,null,null,null,null,null,null,null,null,null,null,null,null,null,null,null,null,null,null,null,null,null,null,null,null,null,null,null,null,null,null,null,null,null,null,null,null,null,null,null,null,null,null,null,null,null,null,null,null,null,null,null,null,null,null,null,null,null,null,null,null,null,null,null,null,null,null,null,null,null,null,null,null,null,null,null,null,null,null,null,null,null,null,null,null,null,null,null,null,null,null,null,null,null,null,null,null,null,null,null,null,null,null,null,null,null,null,null,null,null,null,null,null,null,null,null,null,null,null,null,null,null,null,null,null,null,null,null,null,null,null,null,null,null,null,null,null,null,null,null,null,null,null,null,null,null,null,null,null,null,null,null,null,null,null,null,null,null,null,null,null,null,null,null,null,null,null,null,null,null,null,null,null,null,null,null,null,null,null,null,null,null,null,null,null,null,null,null,null,null,null,null,null,null,null,null,null,null,null,null,null,null,null,null,null,null,null,null,null,null,null,null,null,null,null,null,null,null,null,null,null,null,null,null,null,null,null,null,null,null,null,null,null,null,null,null,null,null,null,null,null,null,null,null,null,null,null,null,null,null,null,null,null,null,null,null,null,null,null,null,null,null,null,null,null,null,null,null,null,null,null,null,null,null,null,null,null,null,null,null,null,null,null,null,null,null,null,null,null,null,null,null,null,null,null,null,null,null,null,null,null,null,null,null,null,null,null,null,null,null,null,null,null,null,null,null,null,null,null,null,null,null,null,null,null,null,null,null,null,null,null,null,null,null,null,null,null,null,null,null,null,null,null,null,null,null,null,null,null,null,null,null,null,null,null,null,null,null,null,null,null,null,null,null,null,null,"middelmatig zand,78","kleibrokken,59","steen,107"]
[null,null,null,null,null,null,null,null,null,null,null,null,null,null,null,null,null,null,null,null,null,null,null,null,null,null,null,null,null,null,null,null,null,null,null,null,null,null,null,null,null,null,null,null,null,null,null,null,null,null,null,null,null,null,null,null,null,null,null,null,null,null,null,null,null,null,null,null,null,null,null,null,null,null,null,null,null,null,null,null,null,null,null,null,null,null,null,null,null,null,null,null,null,null,null,null,null,null,null,null,null,null,null,null,null,null,null,null,null,null,null,null,null,null,null,null,null,null,null,null,null,null,null,null,null,null,null,null,null,null,null,null,null,null,null,null,null,null,null,null,null,null,null,null,null,null,null,null,null,null,null,null,null,null,null,null,null,null,null,null,null,null,null,null,null,null,null,null,null,null,null,null,null,null,null,null,null,null,null,null,null,null,null,null,null,null,null,null,null,null,null,null,null,null,null,null,null,null,null,null,null,null,null,null,null,null,null,null,null,null,null,null,null,null,null,null,null,null,null,null,null,null,null,null,null,null,null,null,null,null,null,null,null,null,null,null,null,null,null,null,null,null,null,null,null,null,null,null,null,null,null,null,null,null,null,null,null,null,null,null,null,null,null,null,null,null,null,null,null,null,null,null,null,null,null,null,null,null,null,null,null,null,null,null,null,null,null,null,null,null,null,null,null,null,null,null,null,null,null,null,null,null,null,null,null,null,null,null,null,null,null,null,null,null,null,null,null,null,null,null,null,null,null,null,null,null,null,null,null,null,null,null,null,null,null,null,null,null,null,null,null,null,null,null,null,null,null,null,null,null,null,null,null,null,null,null,null,null,null,null,null,null,null,null,null,null,null,null,null,null,null,null,null,null,null,null,null,null,null,null,null,null,null,null,null,null,null,null,null,null,null,null,null,null,null,null,null,null,null,null,null,null,null,null,null,null,null,null,null,null,null,null,null,null,null,null,null,null,null,null,null,null,null,null,null,null,null,null,null,null,null,null,null,null,null,null,null,null,null,null,null,null,null,null,null,null,null,null,null,null,null,null,null,null,null,null,null,null,null,null,null,null,null,null,null,null,null,null,null,null,null,null,null,null,null,null,null,null,null,null,null,null,null,null,null,null,null,null,null,null,null,null,null,null,null,null,null,null,null,null,null,null,null,null,null,null,null,null,null,null,null,null,null,null,null,null,null,null,null,null,null,null,null,null,null,null,null,null,null,null,null,null,null,null,null,null,null,null,null,null,null,null,null,null,null,null,null,null,null,null,null,null,null,null,null,null,null,null,null,null,null,null,null,null,null,null,null,null,null,null,null,null,null,null,null,null,null,null,null,null,null,null,null,null,null,null,null,null,null,null,null,null,null,null,null,null,null,null,null,null,null,null,null,null,null,null,null,null,null,null,null,null,null,null,null,null,null,null,null,null,null,null,null,null,null,null,null,null,null,null,null,null,null,null,null,null,null,null,null,null,null,null,null,null,null,null,null,null,null,null,null,null,null,null,null,null,null,null,null,null,null,null,null,null,null,null,null,null,null,null,null,null,null,null,null,null,null,null,null,null,null,null,null,null,null,null,null,null,null,null,null,null,null,null,null,null,null,null,null,null,null,null,null,null,null,null,null,null,null,null,null,null,null,null,null,null,null,null,null,null,null,null,null,null,null,null,null,null,null,null,null,null,null,null,null,null,null,null,null,null,null,null,null,null,null,null,null,null,null,null,null,null,null,null,null,null,null,null,null,null,null,null,null,null,null,null,null,null,null,null,null,null,null,null,null,null,null,null,null,null,null,null,null,null,null,null,null,null,null,null,null,null,null,null,null,null,null,null,null,null,null,null,null,null,null,null,null,null,null,null,null,null,null,null,null,null,null,null,null,null,null,null,null,null,null,null,null,null,null,null,null,null,null,null,null,null,null,null,null,null,null,null,null,null,null,null,null,null,null,null,null,null,null,null,null,null,null,null,null,null,null,null,null,null,null,null,null,null,null,null,null,null,null,null,null,null,null,null,null,null,null,null,null,null,null,null,null,null,null,null,null,null,null,null,null,null,null,null,null,null,null,null,null,null,null,null,null,null,null,null,null,null,null,null,null,null,null,null,null,null,null,null,null,null,null,null,null,null,null,null,null,null,null,null,null,null,null,null,null,null,null,null,null,null,null,null,null,null,null,null,null,null,null,null,null,null,null,null,null,null,"middelmatig tot grof zand,78","kleilenzen,59","steengruis,108"]
[null,null,null,null,null,null,null,null,null,null,null,null,null,null,null,null,null,null,null,null,null,null,null,null,null,null,null,null,null,null,null,null,null,null,null,null,null,null,null,null,null,null,null,null,null,null,null,null,null,null,null,null,null,null,null,null,null,null,null,null,null,null,null,null,null,null,null,null,null,null,null,null,null,null,null,null,null,null,null,null,null,null,null,null,null,null,null,null,null,null,null,null,null,null,null,null,null,null,null,null,null,null,null,null,null,null,null,null,null,null,null,null,null,null,null,null,null,null,null,null,null,null,null,null,null,null,null,null,null,null,null,null,null,null,null,null,null,null,null,null,null,null,null,null,null,null,null,null,null,null,null,null,null,null,null,null,null,null,null,null,null,null,null,null,null,null,null,null,null,null,null,null,null,null,null,null,null,null,null,null,null,null,null,null,null,null,null,null,null,null,null,null,null,null,null,null,null,null,null,null,null,null,null,null,null,null,null,null,null,null,null,null,null,null,null,null,null,null,null,null,null,null,null,null,null,null,null,null,null,null,null,null,null,null,null,null,null,null,null,null,null,null,null,null,null,null,null,null,null,null,null,null,null,null,null,null,null,null,null,null,null,null,null,null,null,null,null,null,null,null,null,null,null,null,null,null,null,null,null,null,null,null,null,null,null,null,null,null,null,null,null,null,null,null,null,null,null,null,null,null,null,null,null,null,null,null,null,null,null,null,null,null,null,null,null,null,null,null,null,null,null,null,null,null,null,null,null,null,null,null,null,null,null,null,null,null,null,null,null,null,null,null,null,null,null,null,null,null,null,null,null,null,null,null,null,null,null,null,null,null,null,null,null,null,null,null,null,null,null,null,null,null,null,null,null,null,null,null,null,null,null,null,null,null,null,null,null,null,null,null,null,null,null,null,null,null,null,null,null,null,null,null,null,null,null,null,null,null,null,null,null,null,null,null,null,null,null,null,null,null,null,null,null,null,null,null,null,null,null,null,null,null,null,null,null,null,null,null,null,null,null,null,null,null,null,null,null,null,null,null,null,null,null,null,null,null,null,null,null,null,null,null,null,null,null,null,null,null,null,null,null,null,null,null,null,null,null,null,null,null,null,null,null,null,null,null,null,null,null,null,null,null,null,null,null,null,null,null,null,null,null,null,null,null,null,null,null,null,null,null,null,null,null,null,null,null,null,null,null,null,null,null,null,null,null,null,null,null,null,null,null,null,null,null,null,null,null,null,null,null,null,null,null,null,null,null,null,null,null,null,null,null,null,null,null,null,null,null,null,null,null,null,null,null,null,null,null,null,null,null,null,null,null,null,null,null,null,null,null,null,null,null,null,null,null,null,null,null,null,null,null,null,null,null,null,null,null,null,null,null,null,null,null,null,null,null,null,null,null,null,null,null,null,null,null,null,null,null,null,null,null,null,null,null,null,null,null,null,null,null,null,null,null,null,null,null,null,null,null,null,null,null,null,null,null,null,null,null,null,null,null,null,null,null,null,null,null,null,null,null,null,null,null,null,null,null,null,null,null,null,null,null,null,null,null,null,null,null,null,null,null,null,null,null,null,null,null,null,null,null,null,null,null,null,null,null,null,null,null,null,null,null,null,null,null,null,null,null,null,null,null,null,null,null,null,null,null,null,null,null,null,null,null,null,null,null,null,null,null,null,null,null,null,null,null,null,null,null,null,null,null,null,null,null,null,null,null,null,null,null,null,null,null,null,null,null,null,null,null,null,null,null,null,null,null,null,null,null,null,null,null,null,null,null,null,null,null,null,null,null,null,null,null,null,null,null,null,null,null,null,null,null,null,null,null,null,null,null,null,null,null,null,null,null,null,null,null,null,null,null,null,null,null,null,null,null,null,null,null,null,null,null,null,null,null,null,null,null,null,null,null,null,null,null,null,null,null,null,null,null,null,null,null,null,null,null,null,null,null,null,null,null,null,null,null,null,null,null,null,null,null,null,null,null,null,null,null,null,null,null,null,null,null,null,null,null,null,null,null,null,null,null,null,null,null,null,null,null,null,null,null,null,null,null,null,null,null,null,null,null,null,null,null,null,null,null,null,null,null,null,null,null,null,null,null,null,null,null,null,null,null,null,null,null,null,null,null,null,null,null,null,null,null,null,null,null,null,null,null,null,null,null,null,null,null,null,null,null,null,null,null,null,null,null,null,null,null,null,null,null,"grof zand,47","kleilenjes,59","steenbrokken,108"]
[null,null,null,null,null,null,null,null,null,null,null,null,null,null,null,null,null,null,null,null,null,null,null,null,null,null,null,null,null,null,null,null,null,null,null,null,null,null,null,null,null,null,null,null,null,null,null,null,null,null,null,null,null,null,null,null,null,null,null,null,null,null,null,null,null,null,null,null,null,null,null,null,null,null,null,null,null,null,null,null,null,null,null,null,null,null,null,null,null,null,null,null,null,null,null,null,null,null,null,null,null,null,null,null,null,null,null,null,null,null,null,null,null,null,null,null,null,null,null,null,null,null,null,null,null,null,null,null,null,null,null,null,null,null,null,null,null,null,null,null,null,null,null,null,null,null,null,null,null,null,null,null,null,null,null,null,null,null,null,null,null,null,null,null,null,null,null,null,null,null,null,null,null,null,null,null,null,null,null,null,null,null,null,null,null,null,null,null,null,null,null,null,null,null,null,null,null,null,null,null,null,null,null,null,null,null,null,null,null,null,null,null,null,null,null,null,null,null,null,null,null,null,null,null,null,null,null,null,null,null,null,null,null,null,null,null,null,null,null,null,null,null,null,null,null,null,null,null,null,null,null,null,null,null,null,null,null,null,null,null,null,null,null,null,null,null,null,null,null,null,null,null,null,null,null,null,null,null,null,null,null,null,null,null,null,null,null,null,null,null,null,null,null,null,null,null,null,null,null,null,null,null,null,null,null,null,null,null,null,null,null,null,null,null,null,null,null,null,null,null,null,null,null,null,null,null,null,null,null,null,null,null,null,null,null,null,null,null,null,null,null,null,null,null,null,null,null,null,null,null,null,null,null,null,null,null,null,null,null,null,null,null,null,null,null,null,null,null,null,null,null,null,null,null,null,null,null,null,null,null,null,null,null,null,null,null,null,null,null,null,null,null,null,null,null,null,null,null,null,null,null,null,null,null,null,null,null,null,null,null,null,null,null,null,null,null,null,null,null,null,null,null,null,null,null,null,null,null,null,null,null,null,null,null,null,null,null,null,null,null,null,null,null,null,null,null,null,null,null,null,null,null,null,null,null,null,null,null,null,null,null,null,null,null,null,null,null,null,null,null,null,null,null,null,null,null,null,null,null,null,null,null,null,null,null,null,null,null,null,null,null,null,null,null,null,null,null,null,null,null,null,null,null,null,null,null,null,null,null,null,null,null,null,null,null,null,null,null,null,null,null,null,null,null,null,null,null,null,null,null,null,null,null,null,null,null,null,null,null,null,null,null,null,null,null,null,null,null,null,null,null,null,null,null,null,null,null,null,null,null,null,null,null,null,null,null,null,null,null,null,null,null,null,null,null,null,null,null,null,null,null,null,null,null,null,null,null,null,null,null,null,null,null,null,null,null,null,null,null,null,null,null,null,null,null,null,null,null,null,null,null,null,null,null,null,null,null,null,null,null,null,null,null,null,null,null,null,null,null,null,null,null,null,null,null,null,null,null,null,null,null,null,null,null,null,null,null,null,null,null,null,null,null,null,null,null,null,null,null,null,null,null,null,null,null,null,null,null,null,null,null,null,null,null,null,null,null,null,null,null,null,null,null,null,null,null,null,null,null,null,null,null,null,null,null,null,null,null,null,null,null,null,null,null,null,null,null,null,null,null,null,null,null,null,null,null,null,null,null,null,null,null,null,null,null,null,null,null,null,null,null,null,null,null,null,null,null,null,null,null,null,null,null,null,null,null,null,null,null,null,null,null,null,null,null,null,null,null,null,null,null,null,null,null,null,null,null,null,null,null,null,null,null,null,null,null,null,null,null,null,null,null,null,null,null,null,null,null,null,null,null,null,null,null,null,null,null,null,null,null,null,null,null,null,null,null,null,null,null,null,null,null,null,null,null,null,null,null,null,null,null,null,null,null,null,null,null,null,null,null,null,null,null,null,null,null,null,null,null,null,null,null,null,null,null,null,null,null,null,null,null,null,null,null,null,null,null,null,null,null,null,null,null,null,null,null,null,null,null,null,null,null,null,null,null,null,null,null,null,null,null,null,null,null,null,null,null,null,null,null,null,null,null,null,null,null,null,null,null,null,null,null,null,null,null,null,null,null,null,null,null,null,null,null,null,null,null,null,null,null,null,null,null,null,null,null,null,null,null,null,null,null,null,null,null,null,null,null,null,null,null,null,null,null,null,null,null,null,null,null,null,null,null,null,null,null,null,null,null,null,"grof tot zeer grof zand,47",null,"steenfragmenten,108"]